﻿OrganisationName,OrganisationalUnit,BeneficiaryName,PaymentDate,Amount,Purpose,CategoryInternal,OrganisationURI
Staffordshire County Council,Think 2 Project,Little Stars Childcare,11/07/2022,2317.90,Awards Funded Childcare Places,Awards Funded Childcare Places,http://opendatacommunities.org/id/county-council/staffordshire  
Staffordshire County Council,Nursery Education Grant,Little Stars Childcare,11/07/2022,706.08,Grants Nursery Education Pymnt,Grants Nursery Education Pymnt,http://opendatacommunities.org/id/county-council/staffordshire  
Staffordshire County Council,Home to school transport-main,24 Taxis Lichfield Ltd,01/07/2022,72328.75,Home School Contract Vehicles,Home School Contract Vehicles,http://opendatacommunities.org/id/county-council/staffordshire  
Staffordshire County Council,Home to school transport-main,24 Taxis Lichfield Ltd,29/07/2022,74078.36,Home School Contract Vehicles,Home School Contract Vehicles,http://opendatacommunities.org/id/county-council/staffordshire  
Staffordshire County Council,STAF Child in Care/Care Leaver,247 Cars Willenhall Ltd,26/07/2022,1391.00,S17 TRANSPORT,S17 TRANSPORT,http://opendatacommunities.org/id/county-council/staffordshire  
Staffordshire County Council,Home to school transport-main,24HR WEST SIDE TAXIS,04/07/2022,25633.04,Home School Contract Vehicles,Home School Contract Vehicles,http://opendatacommunities.org/id/county-council/staffordshire  
Staffordshire County Council,Home to school transport-main,24x7 (Staffordshire) Ltd,28/07/2022,69977.47,Home School Contract Vehicles,Home School Contract Vehicles,http://opendatacommunities.org/id/county-council/staffordshire  
Staffordshire County Council,Tam Children with Disability,3 Angels Complex Care Services Ltd,13/07/2022,3360.00,S17 FAMILY SUPPORT,S17 FAMILY SUPPORT,http://opendatacommunities.org/id/county-council/staffordshire  
Staffordshire County Council,Tam Children with Disability,3 Angels Complex Care Services Ltd,05/07/2022,3252.00,S17 FAMILY SUPPORT,S17 FAMILY SUPPORT,http://opendatacommunities.org/id/county-council/staffordshire  
Staffordshire County Council,Tam Children with Disability,3 Angels Complex Care Services Ltd,26/07/2022,2328.00,S17 FAMILY SUPPORT,S17 FAMILY SUPPORT,http://opendatacommunities.org/id/county-council/staffordshire  
Staffordshire County Council,Childcare,3PB Barristers (Chambers Account),13/07/2022,1020.00,Legal Costs and Stamp Duty,Legal Costs and Stamp Duty,http://opendatacommunities.org/id/county-council/staffordshire  
Staffordshire County Council,Childcare,3PB Barristers (Chambers Account),13/07/2022,1080.00,Legal Costs and Stamp Duty,Legal Costs and Stamp Duty,http://opendatacommunities.org/id/county-council/staffordshire  
Staffordshire County Council,Childcare,3PB Barristers (Chambers Account),13/07/2022,1110.00,Legal Costs and Stamp Duty,Legal Costs and Stamp Duty,http://opendatacommunities.org/id/county-council/staffordshire  
Staffordshire County Council,ES Child in Care/Care Leavers,5 TEN CONTRACTS LTD,12/07/2022,1360.20,Home School Contract Vehicles,Home School Contract Vehicles,http://opendatacommunities.org/id/county-council/staffordshire  
Staffordshire County Council,ES Child in Care/Care Leavers,5 TEN CONTRACTS LTD,12/07/2022,2473.80,Home School Contract Vehicles,Home School Contract Vehicles,http://opendatacommunities.org/id/county-council/staffordshire  
Staffordshire County Council,Chaselea Short Stay School,5 TEN CONTRACTS LTD,05/07/2022,63582.43,Home School Contract Vehicles,Home School Contract Vehicles,http://opendatacommunities.org/id/county-council/staffordshire  
Staffordshire County Council,Home to school transport-main,57 Cars Ltd,28/07/2022,69859.87,Home School Tickets,Home School Tickets,http://opendatacommunities.org/id/county-council/staffordshire  
Staffordshire County Council,Queen's Croft Community School,A Cars,01/07/2022,18047.74,Home School Contract Vehicles,Home School Contract Vehicles,http://opendatacommunities.org/id/county-council/staffordshire  
Staffordshire County Council,Queen's Croft Community School,A Cars,28/07/2022,16713.88,Home School Contract Vehicles,Home School Contract Vehicles,http://opendatacommunities.org/id/county-council/staffordshire  
Staffordshire County Council,Home to school transport-main,A D RUTTER,28/07/2022,2620.28,Home School Contract Vehicles,Home School Contract Vehicles,http://opendatacommunities.org/id/county-council/staffordshire  
Staffordshire County Council,Nursery Education Grant,A DAVIES-HILL,11/07/2022,539.94,Grants Nursery Education Pymnt,Grants Nursery Education Pymnt,http://opendatacommunities.org/id/county-council/staffordshire  
Staffordshire County Council,South Staffs Coroner,A J SELLMAN LTD,28/07/2022,630.00,OTHER HIRED SERVICES,OTHER HIRED SERVICES,http://opendatacommunities.org/id/county-council/staffordshire  
Staffordshire County Council,Loxley Hall School,A Matthews Travel,28/07/2022,1949.40,Home School Contract Vehicles,Home School Contract Vehicles,http://opendatacommunities.org/id/county-council/staffordshire  
Staffordshire County Council,Nursery Education Grant,A PODMORE,11/07/2022,1038.37,Grants Nursery Education Pymnt,Grants Nursery Education Pymnt,http://opendatacommunities.org/id/county-council/staffordshire  
Staffordshire County Council,HWRC Mobilisation,A R Richards Ltd,22/07/2022,1069.32,WASTE MANAGEMENT,WASTE MANAGEMENT,http://opendatacommunities.org/id/county-council/staffordshire  
Staffordshire County Council,Workforce Wellbeing Strategy,A Rose,04/07/2022,670.00,CONSULTANT FEES,CONSULTANT FEES,http://opendatacommunities.org/id/county-council/staffordshire  
Staffordshire County Council,Workforce Wellbeing Strategy,A Rose,27/07/2022,1460.00,CONSULTANT FEES,CONSULTANT FEES,http://opendatacommunities.org/id/county-council/staffordshire  
Staffordshire County Council,Nursery Education Grant,A SCOTT,11/07/2022,3698.09,Grants Nursery Education Pymnt,Grants Nursery Education Pymnt,http://opendatacommunities.org/id/county-council/staffordshire  
Staffordshire County Council,Think 2 Project,A STERN,11/07/2022,533.33,Awards Funded Childcare Places,Awards Funded Childcare Places,http://opendatacommunities.org/id/county-council/staffordshire  
Staffordshire County Council,Nursery Education Grant,A STERN,11/07/2022,1218.36,Grants Nursery Education Pymnt,Grants Nursery Education Pymnt,http://opendatacommunities.org/id/county-council/staffordshire  
Staffordshire County Council,Cicely Haughton School,A1 Embassy Taxis Stoke Ltd,29/07/2022,14532.41,Home School Contract Vehicles,Home School Contract Vehicles,http://opendatacommunities.org/id/county-council/staffordshire  
Staffordshire County Council,Home to school transport-main,A1 Travel,28/07/2022,8758.46,Home School Contract Vehicles,Home School Contract Vehicles,http://opendatacommunities.org/id/county-council/staffordshire  
Staffordshire County Council,STAF Child in Care/Care Leaver,A1 Wolves Taxis,06/07/2022,528.00,S17 TRANSPORT,S17 TRANSPORT,http://opendatacommunities.org/id/county-council/staffordshire  
Staffordshire County Council,SS Assess & Staying Together,A1 Wolves Taxis,06/07/2022,3120.00,S17 TRANSPORT,S17 TRANSPORT,http://opendatacommunities.org/id/county-council/staffordshire  
Staffordshire County Council,Home to school transport-main,A1 Wolves Taxis,28/07/2022,34858.66,Home School Contract Vehicles,Home School Contract Vehicles,http://opendatacommunities.org/id/county-council/staffordshire  
Staffordshire County Council,Cicely Haughton School,A2B Airport Travel,28/07/2022,3629.17,Home School Contract Vehicles,Home School Contract Vehicles,http://opendatacommunities.org/id/county-council/staffordshire  
Staffordshire County Council,Rocklands School,A2B Cars,29/07/2022,17939.59,Home School Contract Vehicles,Home School Contract Vehicles,http://opendatacommunities.org/id/county-council/staffordshire  
Staffordshire County Council,"0816 County building,Martin St",A2B Signs & Graphics Ltd,15/07/2022,574.85,Day to Day Int Wall Door etc,Day to Day Int Wall Door etc,http://opendatacommunities.org/id/county-council/staffordshire  
Staffordshire County Council,"0816 County building,Martin St",A2B Signs & Graphics Ltd,15/07/2022,1082.46,Day to Day Int Wall Door etc,Day to Day Int Wall Door etc,http://opendatacommunities.org/id/county-council/staffordshire  
Staffordshire County Council,"Server, Storage and DBA",A4S Cloud Solutions,28/07/2022,4680.00,Purchase of Hardware,Purchase of Hardware,http://opendatacommunities.org/id/county-council/staffordshire  
Staffordshire County Council,Think 2 Project,ABACUS NURSERY,11/07/2022,5353.74,Awards Funded Childcare Places,Awards Funded Childcare Places,http://opendatacommunities.org/id/county-council/staffordshire  
Staffordshire County Council,Nursery Education Grant,ABACUS NURSERY,11/07/2022,5342.68,Grants Nursery Education Pymnt,Grants Nursery Education Pymnt,http://opendatacommunities.org/id/county-council/staffordshire  
Staffordshire County Council,Think 2 Project,ABACUS PRE SCHOOL LICHFIELD,11/07/2022,2471.07,Awards Funded Childcare Places,Awards Funded Childcare Places,http://opendatacommunities.org/id/county-council/staffordshire  
Staffordshire County Council,Nursery Education Grant,ABACUS PRE SCHOOL LICHFIELD,11/07/2022,5657.01,Grants Nursery Education Pymnt,Grants Nursery Education Pymnt,http://opendatacommunities.org/id/county-council/staffordshire  
Staffordshire County Council,Adoption Support Fund,Abacus Psychology Ltd,05/07/2022,1533.50,PROFESSIONAL FEES,PROFESSIONAL FEES,http://opendatacommunities.org/id/county-council/staffordshire  
Staffordshire County Council,Adoption Support Fund,Abacus Psychology Ltd,19/07/2022,1500.00,PROFESSIONAL FEES,PROFESSIONAL FEES,http://opendatacommunities.org/id/county-council/staffordshire  
Staffordshire County Council,Adoption Support Fund,Abacus Psychology Ltd,27/07/2022,875.00,PROFESSIONAL FEES,PROFESSIONAL FEES,http://opendatacommunities.org/id/county-council/staffordshire  
Staffordshire County Council,Adoption Support Fund,Abacus Psychology Ltd,27/07/2022,1066.25,PROFESSIONAL FEES,PROFESSIONAL FEES,http://opendatacommunities.org/id/county-council/staffordshire  
Staffordshire County Council,Chasetown Special School,Abbey Cars,29/07/2022,18914.40,Home School Contract Vehicles,Home School Contract Vehicles,http://opendatacommunities.org/id/county-council/staffordshire  
Staffordshire County Council,ES Child in Care/Care Leavers,Abbey Cars,29/07/2022,2166.00,Home School Contract Vehicles,Home School Contract Vehicles,http://opendatacommunities.org/id/county-council/staffordshire  
Staffordshire County Council,ES Child in Care/Care Leavers,ABC Coaches (2002) Ltd,19/07/2022,2052.00,Home School Contract Vehicles,Home School Contract Vehicles,http://opendatacommunities.org/id/county-council/staffordshire  
Staffordshire County Council,ES Child in Care/Care Leavers,ABC Coaches (2002) Ltd,28/07/2022,2052.00,Home School Contract Vehicles,Home School Contract Vehicles,http://opendatacommunities.org/id/county-council/staffordshire  
Staffordshire County Council,Cedars Short Stay School,ABC Coaches (2002) Ltd,28/07/2022,10900.10,Home School Contract Vehicles,Home School Contract Vehicles,http://opendatacommunities.org/id/county-council/staffordshire  
Staffordshire County Council,Think 2 Project,ABC DAY NURSERY,11/07/2022,799.98,Awards Funded Childcare Places,Awards Funded Childcare Places,http://opendatacommunities.org/id/county-council/staffordshire  
Staffordshire County Council,Nursery Education Grant,ABC DAY NURSERY,11/07/2022,4153.41,Grants Nursery Education Pymnt,Grants Nursery Education Pymnt,http://opendatacommunities.org/id/county-council/staffordshire  
Staffordshire County Council,Think 2 Project,ABC Early Learning & Childcare Cent,11/07/2022,7538.69,Awards Funded Childcare Places,Awards Funded Childcare Places,http://opendatacommunities.org/id/county-council/staffordshire  
Staffordshire County Council,Nursery Education Grant,ABC Early Learning & Childcare Cent,11/07/2022,35823.33,Grants Nursery Education Pymnt,Grants Nursery Education Pymnt,http://opendatacommunities.org/id/county-council/staffordshire  
Staffordshire County Council,Think 2 Project,ABC Early Learning & Childcare Cent,11/07/2022,737.87,Awards Funded Childcare Places,Awards Funded Childcare Places,http://opendatacommunities.org/id/county-council/staffordshire  
Staffordshire County Council,Nursery Education Grant,ABC Early Learning & Childcare Cent,11/07/2022,615.86,Grants Nursery Education Pymnt,Grants Nursery Education Pymnt,http://opendatacommunities.org/id/county-council/staffordshire  
Staffordshire County Council,Independent Sch Fees Mainstr'm,ABC EARLY LEARNING & CHLDCRE CNTR,26/07/2022,1802.59,Fees to Independent Schools,Fees to Independent Schools,http://opendatacommunities.org/id/county-council/staffordshire  
Staffordshire County Council,Stat-OOC transport,Abdul Mojid TA Abduls Private Hire,28/07/2022,2243.98,Home School Contract Vehicles,Home School Contract Vehicles,http://opendatacommunities.org/id/county-council/staffordshire  
Staffordshire County Council,MOOR Child in Care/Care Leaver,ABLE TAXIS,19/07/2022,3840.00,Home School Contract Vehicles,Home School Contract Vehicles,http://opendatacommunities.org/id/county-council/staffordshire  
Staffordshire County Council,USAC Programme,Above N Beyond Limited,28/07/2022,13500.00,Premises Services,Premises Services,http://opendatacommunities.org/id/county-council/staffordshire  
Staffordshire County Council,Think 2 Project,ACADEMY EARLY YEARS CHILDCARE LTD,11/07/2022,533.31,Awards Funded Childcare Places,Awards Funded Childcare Places,http://opendatacommunities.org/id/county-council/staffordshire  
Staffordshire County Council,Nursery Education Grant,ACADEMY EARLY YEARS CHILDCARE LTD,11/07/2022,6153.88,Grants Nursery Education Pymnt,Grants Nursery Education Pymnt,http://opendatacommunities.org/id/county-council/staffordshire  
Staffordshire County Council,Newcastle MH Team U65,Accomplish Group Ltd,12/07/2022,3170.02,Supported Group Care,Supported Group Care,http://opendatacommunities.org/id/county-council/staffordshire  
Staffordshire County Council,Newcastle MH Team U65,Accomplish Group Ltd,18/07/2022,3170.02,Supported Group Care,Supported Group Care,http://opendatacommunities.org/id/county-council/staffordshire  
Staffordshire County Council,Newcastle MH Team U65,Accomplish Group Ltd,18/07/2022,3170.02,Supported Group Care,Supported Group Care,http://opendatacommunities.org/id/county-council/staffordshire  
Staffordshire County Council,Newcastle MH Team U65,Accomplish Group Ltd,18/07/2022,3170.02,Supported Group Care,Supported Group Care,http://opendatacommunities.org/id/county-council/staffordshire  
Staffordshire County Council,Newcastle MH Team U65,Accomplish Group Ltd,18/07/2022,3170.02,Supported Group Care,Supported Group Care,http://opendatacommunities.org/id/county-council/staffordshire  
Staffordshire County Council,Get Started,Accounting Insight Ltd,04/07/2022,1008.00,PROFESSIONAL FEES,PROFESSIONAL FEES,http://opendatacommunities.org/id/county-council/staffordshire  
Staffordshire County Council,Get Started,Accounting Insight Ltd,11/07/2022,1008.00,PROFESSIONAL FEES,PROFESSIONAL FEES,http://opendatacommunities.org/id/county-council/staffordshire  
Staffordshire County Council,Get Started,Accounting Insight Ltd,12/07/2022,1008.00,PROFESSIONAL FEES,PROFESSIONAL FEES,http://opendatacommunities.org/id/county-council/staffordshire  
Staffordshire County Council,SS Child in Care/Care Leavers,Achieving Goalz and Dreamz,29/07/2022,700.00,Community Project,Community Project,http://opendatacommunities.org/id/county-council/staffordshire  
Staffordshire County Council,Independent School Fee Special,Acorn Care & Education Ltd,11/07/2022,12303.12,Fees to Independent Schools,Fees to Independent Schools,http://opendatacommunities.org/id/county-council/staffordshire  
Staffordshire County Council,Independent School Fee Special,Acorn Care & Education Ltd,15/07/2022,6666.67,Fees to Independent Schools,Fees to Independent Schools,http://opendatacommunities.org/id/county-council/staffordshire  
Staffordshire County Council,Independent School Fee Special,Acorn Care & Education Ltd,15/07/2022,4222.22,Fees to Independent Schools,Fees to Independent Schools,http://opendatacommunities.org/id/county-council/staffordshire  
Staffordshire County Council,Independent School Fee Special,Acorn Care & Education Ltd,13/07/2022,13302.15,Fees to Independent Schools,Fees to Independent Schools,http://opendatacommunities.org/id/county-council/staffordshire  
Staffordshire County Council,Independent School Fee Special,Acorn Care & Education Ltd,21/07/2022,14475.88,Fees to Independent Schools,Fees to Independent Schools,http://opendatacommunities.org/id/county-council/staffordshire  
Staffordshire County Council,Independent School Fee Special,Acorn Care & Education Ltd,21/07/2022,13209.24,Fees to Independent Schools,Fees to Independent Schools,http://opendatacommunities.org/id/county-council/staffordshire  
Staffordshire County Council,Independent School Fee Special,Acorn Care & Education Ltd,21/07/2022,14475.88,Fees to Independent Schools,Fees to Independent Schools,http://opendatacommunities.org/id/county-council/staffordshire  
Staffordshire County Council,LICH Assess & Staying Together,ACPAS LTD,05/07/2022,1016.16,Case Work,Case Work,http://opendatacommunities.org/id/county-council/staffordshire  
Staffordshire County Council,LICH Assess & Staying Together,ACPAS LTD,05/07/2022,1016.16,Case Work,Case Work,http://opendatacommunities.org/id/county-council/staffordshire  
Staffordshire County Council,ES Assess & Staying Together,ACPAS LTD,08/07/2022,1080.94,S17 FAMILY SUPPORT,S17 FAMILY SUPPORT,http://opendatacommunities.org/id/county-council/staffordshire  
Staffordshire County Council,MCA / DoLs / AMHP,Action First Assessments Ltd,07/07/2022,840.00,Contingency,Contingency,http://opendatacommunities.org/id/county-council/staffordshire  
Staffordshire County Council,MCA / DoLs / AMHP,Action First Assessments Ltd,07/07/2022,840.00,Contingency,Contingency,http://opendatacommunities.org/id/county-council/staffordshire  
Staffordshire County Council,MCA / DoLs / AMHP,Action First Assessments Ltd,07/07/2022,1680.00,Contingency,Contingency,http://opendatacommunities.org/id/county-council/staffordshire  
Staffordshire County Council,MCA / DoLs / AMHP,Action First Assessments Ltd,07/07/2022,1260.00,Contingency,Contingency,http://opendatacommunities.org/id/county-council/staffordshire  
Staffordshire County Council,MCA / DoLs / AMHP,Action First Assessments Ltd,07/07/2022,840.00,Contingency,Contingency,http://opendatacommunities.org/id/county-council/staffordshire  
Staffordshire County Council,MCA / DoLs / AMHP,Action First Assessments Ltd,07/07/2022,1260.00,Contingency,Contingency,http://opendatacommunities.org/id/county-council/staffordshire  
Staffordshire County Council,MCA / DoLs / AMHP,Action First Assessments Ltd,07/07/2022,840.00,Contingency,Contingency,http://opendatacommunities.org/id/county-council/staffordshire  
Staffordshire County Council,MCA / DoLs / AMHP,Action First Assessments Ltd,19/07/2022,840.00,Contingency,Contingency,http://opendatacommunities.org/id/county-council/staffordshire  
Staffordshire County Council,MCA / DoLs / AMHP,Action First Assessments Ltd,19/07/2022,840.00,Contingency,Contingency,http://opendatacommunities.org/id/county-council/staffordshire  
Staffordshire County Council,MCA / DoLs / AMHP,Action First Assessments Ltd,19/07/2022,1260.00,Contingency,Contingency,http://opendatacommunities.org/id/county-council/staffordshire  
Staffordshire County Council,MCA / DoLs / AMHP,Action First Assessments Ltd,19/07/2022,1260.00,Contingency,Contingency,http://opendatacommunities.org/id/county-council/staffordshire  
Staffordshire County Council,MCA / DoLs / AMHP,Action First Assessments Ltd,19/07/2022,1260.00,Contingency,Contingency,http://opendatacommunities.org/id/county-council/staffordshire  
Staffordshire County Council,MCA / DoLs / AMHP,Action First Assessments Ltd,19/07/2022,840.00,Contingency,Contingency,http://opendatacommunities.org/id/county-council/staffordshire  
Staffordshire County Council,MCA / DoLs / AMHP,Action First Assessments Ltd,19/07/2022,840.00,Contingency,Contingency,http://opendatacommunities.org/id/county-council/staffordshire  
Staffordshire County Council,MCA / DoLs / AMHP,Action First Assessments Ltd,19/07/2022,840.00,Contingency,Contingency,http://opendatacommunities.org/id/county-council/staffordshire  
Staffordshire County Council,MCA / DoLs / AMHP,Action First Assessments Ltd,19/07/2022,1260.00,Contingency,Contingency,http://opendatacommunities.org/id/county-council/staffordshire  
Staffordshire County Council,MCA / DoLs / AMHP,Action First Assessments Ltd,19/07/2022,840.00,Contingency,Contingency,http://opendatacommunities.org/id/county-council/staffordshire  
Staffordshire County Council,MCA / DoLs / AMHP,Action First Assessments Ltd,20/07/2022,840.00,Independent Investigations,Independent Investigations,http://opendatacommunities.org/id/county-council/staffordshire  
Staffordshire County Council,MCA / DoLs / AMHP,Action First Assessments Ltd,20/07/2022,840.00,Independent Investigations,Independent Investigations,http://opendatacommunities.org/id/county-council/staffordshire  
Staffordshire County Council,MCA / DoLs / AMHP,Action First Assessments Ltd,20/07/2022,840.00,Independent Investigations,Independent Investigations,http://opendatacommunities.org/id/county-council/staffordshire  
Staffordshire County Council,MCA / DoLs / AMHP,Action First Assessments Ltd,20/07/2022,1260.00,Independent Investigations,Independent Investigations,http://opendatacommunities.org/id/county-council/staffordshire  
Staffordshire County Council,MCA / DoLs / AMHP,Action First Assessments Ltd,20/07/2022,840.00,Independent Investigations,Independent Investigations,http://opendatacommunities.org/id/county-council/staffordshire  
Staffordshire County Council,MCA / DoLs / AMHP,Action First Assessments Ltd,20/07/2022,1260.00,Independent Investigations,Independent Investigations,http://opendatacommunities.org/id/county-council/staffordshire  
Staffordshire County Council,MCA / DoLs / AMHP,Action First Assessments Ltd,20/07/2022,840.00,Independent Investigations,Independent Investigations,http://opendatacommunities.org/id/county-council/staffordshire  
Staffordshire County Council,MCA / DoLs / AMHP,Action First Assessments Ltd,20/07/2022,840.00,Independent Investigations,Independent Investigations,http://opendatacommunities.org/id/county-council/staffordshire  
Staffordshire County Council,MCA / DoLs / AMHP,Action First Assessments Ltd,27/07/2022,840.00,Contingency,Contingency,http://opendatacommunities.org/id/county-council/staffordshire  
Staffordshire County Council,MCA / DoLs / AMHP,Action First Assessments Ltd,27/07/2022,840.00,Contingency,Contingency,http://opendatacommunities.org/id/county-council/staffordshire  
Staffordshire County Council,MCA / DoLs / AMHP,Action First Assessments Ltd,27/07/2022,1260.00,Contingency,Contingency,http://opendatacommunities.org/id/county-council/staffordshire  
Staffordshire County Council,MCA / DoLs / AMHP,Action First Assessments Ltd,27/07/2022,1260.00,Contingency,Contingency,http://opendatacommunities.org/id/county-council/staffordshire  
Staffordshire County Council,MCA / DoLs / AMHP,Action First Assessments Ltd,27/07/2022,840.00,Contingency,Contingency,http://opendatacommunities.org/id/county-council/staffordshire  
Staffordshire County Council,MCA / DoLs / AMHP,Action First Assessments Ltd,27/07/2022,840.00,Contingency,Contingency,http://opendatacommunities.org/id/county-council/staffordshire  
Staffordshire County Council,Independent School Fee Special,Active Resilience Ltd ,19/07/2022,3273.00,Fees to Independent Schools,Fees to Independent Schools,http://opendatacommunities.org/id/county-council/staffordshire  
Staffordshire County Council,Stat-OOC transport,Adam's Taxis (Mushtaq Ali TA),28/07/2022,1539.00,Home School Contract Vehicles,Home School Contract Vehicles,http://opendatacommunities.org/id/county-council/staffordshire  
Staffordshire County Council,Other Service Strategy,ADASS,04/07/2022,2673.00,Other Employee Expenses,Other Employee Expenses,http://opendatacommunities.org/id/county-council/staffordshire  
Staffordshire County Council,Specialist Assessment,ADVANCED CHILD CARE ASSESSMENTS LTD,11/07/2022,2678.16,Prev Supp Legal Costs,Prev Supp Legal Costs,http://opendatacommunities.org/id/county-council/staffordshire  
Staffordshire County Council,Specialist Assessment,ADVANCED CHILD CARE ASSESSMENTS LTD,06/07/2022,2271.71,Prev Supp Legal Costs,Prev Supp Legal Costs,http://opendatacommunities.org/id/county-council/staffordshire  
Staffordshire County Council,Specialist Assessment,ADVANCED CHILD CARE ASSESSMENTS LTD,06/07/2022,2657.88,Prev Supp Legal Costs,Prev Supp Legal Costs,http://opendatacommunities.org/id/county-council/staffordshire  
Staffordshire County Council,Specialist Assessment,ADVANCED CHILD CARE ASSESSMENTS LTD,11/07/2022,2816.70,Prev Supp Legal Costs,Prev Supp Legal Costs,http://opendatacommunities.org/id/county-council/staffordshire  
Staffordshire County Council,Specialist Assessment,ADVANCED CHILD CARE ASSESSMENTS LTD,11/07/2022,2678.16,Prev Supp Legal Costs,Prev Supp Legal Costs,http://opendatacommunities.org/id/county-council/staffordshire  
Staffordshire County Council,Specialist Assessment,ADVANCED CHILD CARE ASSESSMENTS LTD,01/07/2022,2309.16,Prev Supp Legal Costs,Prev Supp Legal Costs,http://opendatacommunities.org/id/county-council/staffordshire  
Staffordshire County Council,Specialist Assessment,ADVANCED CHILD CARE ASSESSMENTS LTD,28/07/2022,2483.64,Prev Supp Legal Costs,Prev Supp Legal Costs,http://opendatacommunities.org/id/county-council/staffordshire  
Staffordshire County Council,Specialist Assessment,ADVANCED CHILD CARE ASSESSMENTS LTD,21/07/2022,2243.76,Prev Supp Legal Costs,Prev Supp Legal Costs,http://opendatacommunities.org/id/county-council/staffordshire  
Staffordshire County Council,Specialist Assessment,ADVANCED CHILD CARE ASSESSMENTS LTD,21/07/2022,589.59,Prev Supp Legal Costs,Prev Supp Legal Costs,http://opendatacommunities.org/id/county-council/staffordshire  
Staffordshire County Council,Specialist Assessment,ADVANCED CHILD CARE ASSESSMENTS LTD,29/07/2022,2284.50,Prev Supp Legal Costs,Prev Supp Legal Costs,http://opendatacommunities.org/id/county-council/staffordshire  
Staffordshire County Council,Think 2 Project,Adventure Farm Day Nursery Ltd,11/07/2022,905.97,Awards Funded Childcare Places,Awards Funded Childcare Places,http://opendatacommunities.org/id/county-council/staffordshire  
Staffordshire County Council,Nursery Education Grant,Adventure Farm Day Nursery Ltd,11/07/2022,3485.16,Grants Nursery Education Pymnt,Grants Nursery Education Pymnt,http://opendatacommunities.org/id/county-council/staffordshire  
Staffordshire County Council,Workshop Overheads,AEBI SCHMIDT UK Limited,05/07/2022,7534.43,Training Expenses,Training Expenses,http://opendatacommunities.org/id/county-council/staffordshire  
Staffordshire County Council,Spot Hire,AFFORD RENT A CAR,07/07/2022,720.00,CFC Recharge for Vehicles,CFC Recharge for Vehicles,http://opendatacommunities.org/id/county-council/staffordshire  
Staffordshire County Council,Spot Hire,AFFORD RENT A CAR,07/07/2022,720.00,CFC Recharge for Vehicles,CFC Recharge for Vehicles,http://opendatacommunities.org/id/county-council/staffordshire  
Staffordshire County Council,Spot Hire,AFFORD RENT A CAR,07/07/2022,1243.20,CFC Recharge for Vehicles,CFC Recharge for Vehicles,http://opendatacommunities.org/id/county-council/staffordshire  
Staffordshire County Council,Spot Hire,AFFORD RENT A CAR,07/07/2022,1243.20,CFC Recharge for Vehicles,CFC Recharge for Vehicles,http://opendatacommunities.org/id/county-council/staffordshire  
Staffordshire County Council,Spot Hire,AFFORD RENT A CAR,07/07/2022,1243.20,CFC Recharge for Vehicles,CFC Recharge for Vehicles,http://opendatacommunities.org/id/county-council/staffordshire  
Staffordshire County Council,Spot Hire,AFFORD RENT A CAR,28/07/2022,1243.20,CFC Recharge for Vehicles,CFC Recharge for Vehicles,http://opendatacommunities.org/id/county-council/staffordshire  
Staffordshire County Council,Spot Hire,AFFORD RENT A CAR,28/07/2022,1411.20,CFC Recharge for Vehicles,CFC Recharge for Vehicles,http://opendatacommunities.org/id/county-council/staffordshire  
Staffordshire County Council,Spot Hire,AFFORD RENT A CAR,14/07/2022,1411.20,CFC Recharge for Vehicles,CFC Recharge for Vehicles,http://opendatacommunities.org/id/county-council/staffordshire  
Staffordshire County Council,Spot Hire,AFFORD RENT A CAR,29/07/2022,1243.20,CFC Recharge for Vehicles,CFC Recharge for Vehicles,http://opendatacommunities.org/id/county-council/staffordshire  
Staffordshire County Council,Spot Hire,AFFORD RENT A CAR,29/07/2022,1243.20,CFC Recharge for Vehicles,CFC Recharge for Vehicles,http://opendatacommunities.org/id/county-council/staffordshire  
Staffordshire County Council,Home to school transport-main,Aftab Najib t/a Elite Private Hire,29/07/2022,20535.34,Home School Contract Vehicles,Home School Contract Vehicles,http://opendatacommunities.org/id/county-council/staffordshire  
Staffordshire County Council,Stafford Invoice Led Older Peo,AGE CONCERN STAFFORD & DIST,13/07/2022,16998.40,Day Care,Day Care,http://opendatacommunities.org/id/county-council/staffordshire  
Staffordshire County Council,Stafford Invoice Led Older Peo,AGE CONCERN STAFFORD & DIST,13/07/2022,3186.00,Rental of Vehicles,Rental of Vehicles,http://opendatacommunities.org/id/county-council/staffordshire  
Staffordshire County Council,Concessionary Fare Schemes,Aimee's Travel,15/07/2022,13197.00,Payments to Bus Operators,Payments to Bus Operators,http://opendatacommunities.org/id/county-council/staffordshire  
Staffordshire County Council,Public Transp Support & Co-ord,Aimee's Travel,28/07/2022,33067.79,Manned Transport - Hire,Manned Transport - Hire,http://opendatacommunities.org/id/county-council/staffordshire  
Staffordshire County Council,Meadows School,Aimee's Travel,28/07/2022,3880.16,Home School Contract Vehicles,Home School Contract Vehicles,http://opendatacommunities.org/id/county-council/staffordshire  
Staffordshire County Council,SEN Direct Payments,,27/07/2022,850.60,Direct Payments Other,Direct Payments Other,http://opendatacommunities.org/id/county-council/staffordshire  
Staffordshire County Council,SEN Direct Payments,,28/07/2022,15459.60,Direct Payments Other,Direct Payments Other,http://opendatacommunities.org/id/county-council/staffordshire  
Staffordshire County Council,1323 Hawthorn House WS13 6EN,ALARM RADIO MONITORING LTD,29/07/2022,540.00,Service/Test Call Systems,Service/Test Call Systems,http://opendatacommunities.org/id/county-council/staffordshire  
Staffordshire County Council,Think 2 Project,ALBERT BEAR PLAYGROUP,11/07/2022,1997.91,Awards Funded Childcare Places,Awards Funded Childcare Places,http://opendatacommunities.org/id/county-council/staffordshire  
Staffordshire County Council,Nursery Education Grant,ALBERT BEAR PLAYGROUP,11/07/2022,9665.95,Grants Nursery Education Pymnt,Grants Nursery Education Pymnt,http://opendatacommunities.org/id/county-council/staffordshire  
Staffordshire County Council,Nursery Education Grant,Alison Skipper,11/07/2022,1802.79,Grants Nursery Education Pymnt,Grants Nursery Education Pymnt,http://opendatacommunities.org/id/county-council/staffordshire  
Staffordshire County Council,Nursery Education Grant,All Saints' CE (A) First Sch,11/07/2022,4897.22,Grants Nursery Education Pymnt,Grants Nursery Education Pymnt,http://opendatacommunities.org/id/county-council/staffordshire  
Staffordshire County Council,Nursery Education Grant,"All Saints CE First School, Church Leigh",11/07/2022,2242.85,Grants Nursery Education Pymnt,Grants Nursery Education Pymnt,http://opendatacommunities.org/id/county-council/staffordshire  
Staffordshire County Council,Nursery Education Grant,All Saints' CE Primary School,11/07/2022,2076.69,Grants Nursery Education Pymnt,Grants Nursery Education Pymnt,http://opendatacommunities.org/id/county-council/staffordshire  
Staffordshire County Council,Nursery Education Grant,All Saints CofE Academy Denstone,11/07/2022,2869.35,Grants Nursery Education Pymnt,Grants Nursery Education Pymnt,http://opendatacommunities.org/id/county-council/staffordshire  
Staffordshire County Council,Rowan Contract,Allpay Ltd,28/07/2022,9603.00,COMM CARE DIRECT PAYMENTS,COMM CARE DIRECT PAYMENTS,http://opendatacommunities.org/id/county-council/staffordshire  
Staffordshire County Council,SASCAT,ALLSORTS OFFICE SUPPLIES LTD,18/07/2022,558.00,Furniture & Bedding,Furniture & Bedding,http://opendatacommunities.org/id/county-council/staffordshire  
Staffordshire County Council,Fuel,ALLSTAR BUSINESS SOLUTIONS LTD,06/07/2022,5954.62,Petrol & Oil,Petrol & Oil,http://opendatacommunities.org/id/county-council/staffordshire  
Staffordshire County Council,Fuel,ALLSTAR BUSINESS SOLUTIONS LTD,13/07/2022,4620.67,Petrol & Oil,Petrol & Oil,http://opendatacommunities.org/id/county-council/staffordshire  
Staffordshire County Council,Fuel,ALLSTAR BUSINESS SOLUTIONS LTD,20/07/2022,6782.97,Petrol & Oil,Petrol & Oil,http://opendatacommunities.org/id/county-council/staffordshire  
Staffordshire County Council,Fuel,ALLSTAR BUSINESS SOLUTIONS LTD,27/07/2022,5838.59,Petrol & Oil,Petrol & Oil,http://opendatacommunities.org/id/county-council/staffordshire  
Staffordshire County Council,Chasetown Special School,ALMAR CABS LTD,07/07/2022,68041.62,Home School Contract Vehicles,Home School Contract Vehicles,http://opendatacommunities.org/id/county-council/staffordshire  
Staffordshire County Council,Specialist Assessment,Alpha Biolabs,11/07/2022,718.08,Prev Supp Legal Costs,Prev Supp Legal Costs,http://opendatacommunities.org/id/county-council/staffordshire  
Staffordshire County Council,Specialist Assessment,Alpha Biolabs,19/07/2022,718.08,Prev Supp Legal Costs,Prev Supp Legal Costs,http://opendatacommunities.org/id/county-council/staffordshire  
Staffordshire County Council,Specialist Assessment,Alpha Biolabs,15/07/2022,607.20,Prev Supp Legal Costs,Prev Supp Legal Costs,http://opendatacommunities.org/id/county-council/staffordshire  
Staffordshire County Council,Specialist Assessment,Alpha Biolabs,21/07/2022,502.80,Prev Supp Legal Costs,Prev Supp Legal Costs,http://opendatacommunities.org/id/county-council/staffordshire  
Staffordshire County Council,LICH Assess & Staying Together,Alpha Training Academy Uk Ltd,29/07/2022,600.00,Case Work,Case Work,http://opendatacommunities.org/id/county-council/staffordshire  
Staffordshire County Council,LICH Assess & Staying Together,Alpha Training Academy Uk Ltd,08/07/2022,600.00,Case Work,Case Work,http://opendatacommunities.org/id/county-council/staffordshire  
Staffordshire County Council,Loxley Hall School,Alpha Transport,28/07/2022,1763.82,Home School Contract Vehicles,Home School Contract Vehicles,http://opendatacommunities.org/id/county-council/staffordshire  
Staffordshire County Council,AEN Funding Academy Recoupment,Alsager School,19/07/2022,12057.50,Grants to third parties,Grants to third parties,http://opendatacommunities.org/id/county-council/staffordshire  
Staffordshire County Council,Nursery Education Grant,Alsagers Bank Primary Academy,11/07/2022,8394.59,Grants Nursery Education Pymnt,Grants Nursery Education Pymnt,http://opendatacommunities.org/id/county-council/staffordshire  
Staffordshire County Council,Nursery Education Grant,Alsagers Bank Primary Academy,11/07/2022,2793.45,Grants Nursery Education Pymnt,Grants Nursery Education Pymnt,http://opendatacommunities.org/id/county-council/staffordshire  
Staffordshire County Council,Fost Central & Approval,Amanda Newins,29/07/2022,561.00,Fostering Special Guardianship,Fostering Special Guardianship,http://opendatacommunities.org/id/county-council/staffordshire  
Staffordshire County Council,Nursery Education Grant,Amanda Smith,11/07/2022,511.20,Grants Nursery Education Pymnt,Grants Nursery Education Pymnt,http://opendatacommunities.org/id/county-council/staffordshire  
Staffordshire County Council,Highway Indirect Cost/Overhead,AMEY LG LTD,28/07/2022,8257451.93,Gen highway Maint bud only,Gen highway Maint bud only,http://opendatacommunities.org/id/county-council/staffordshire  
Staffordshire County Council,Nursery Education Grant,AMINGTON & DISTRICT PRE SCHOOL,11/07/2022,7940.80,Grants Nursery Education Pymnt,Grants Nursery Education Pymnt,http://opendatacommunities.org/id/county-council/staffordshire  
Staffordshire County Council,Hugo Meynell Primary,AMP Clean Energy,22/07/2022,3239.26,Wood Chip,Wood Chip,http://opendatacommunities.org/id/county-council/staffordshire  
Staffordshire County Council,Stock Management,AMS Digital Publishing Ltd,26/07/2022,675.00,Newspapers Periodicals Mags,Newspapers Periodicals Mags,http://opendatacommunities.org/id/county-council/staffordshire  
Staffordshire County Council,Nursery Education Grant,Amy Bardsley,11/07/2022,2611.38,Grants Nursery Education Pymnt,Grants Nursery Education Pymnt,http://opendatacommunities.org/id/county-council/staffordshire  
Staffordshire County Council,Nursery Education Grant,Anglesey Nursery,11/07/2022,14759.26,Grants Nursery Education Pymnt,Grants Nursery Education Pymnt,http://opendatacommunities.org/id/county-council/staffordshire  
Staffordshire County Council,Stat-OOC transport,,01/07/2022,675.71,Personal Travel Budgets,Personal Travel Budgets,http://opendatacommunities.org/id/county-council/staffordshire  
Staffordshire County Council,Stat-mst transport,,25/07/2022,680.00,Home School Direct Payment,Home School Direct Payment,http://opendatacommunities.org/id/county-council/staffordshire  
Staffordshire County Council,Stat-OOC transport,,01/07/2022,580.36,Personal Travel Budgets,Personal Travel Budgets,http://opendatacommunities.org/id/county-council/staffordshire  
Staffordshire County Council,Home to school transport-main,Antey Ltd,28/07/2022,2237.16,Home School Contract Vehicles,Home School Contract Vehicles,http://opendatacommunities.org/id/county-council/staffordshire  
Staffordshire County Council,Ass. Director of People,ANTHONY COLLINS SOLICITORS,13/07/2022,900.00,Legal Costs and Stamp Duty,Legal Costs and Stamp Duty,http://opendatacommunities.org/id/county-council/staffordshire  
Staffordshire County Council,Ass. Director of People,ANTHONY COLLINS SOLICITORS,13/07/2022,600.00,Legal Costs and Stamp Duty,Legal Costs and Stamp Duty,http://opendatacommunities.org/id/county-council/staffordshire  
Staffordshire County Council,People Solutions,ANTHONY COLLINS SOLICITORS,22/07/2022,1800.00,PROFESSIONAL FEES,PROFESSIONAL FEES,http://opendatacommunities.org/id/county-council/staffordshire  
Staffordshire County Council,Loxley Hall School,ANTHONYS AJ'S,28/07/2022,8380.49,Home School Contract Vehicles,Home School Contract Vehicles,http://opendatacommunities.org/id/county-council/staffordshire  
Staffordshire County Council,Staffs Apprenticeship 500,ANTIDOTE HAIR LTD,28/07/2022,5000.00,Grants to third parties,Grants to third parties,http://opendatacommunities.org/id/county-council/staffordshire  
Staffordshire County Council,Marshlands School,APH Travel LTD,29/07/2022,2781.17,Home School Contract Vehicles,Home School Contract Vehicles,http://opendatacommunities.org/id/county-council/staffordshire  
Staffordshire County Council,Contact Centre,APS Group,26/07/2022,6865.67,Other contribs to provisions,Other contribs to provisions,http://opendatacommunities.org/id/county-council/staffordshire  
Staffordshire County Council,Other Service Strategy,Aquarius Ballroom & Function Suite,21/07/2022,500.00,Training Expenses,Training Expenses,http://opendatacommunities.org/id/county-council/staffordshire  
Staffordshire County Council,Specialist Assessment,AR Assessments Ltd,04/07/2022,2601.05,Prev Supp Legal Costs,Prev Supp Legal Costs,http://opendatacommunities.org/id/county-council/staffordshire  
Staffordshire County Council,Independent School Fee Special,ARC SCHOOL,28/07/2022,4563.95,Fees to Independent Schools,Fees to Independent Schools,http://opendatacommunities.org/id/county-council/staffordshire  
Staffordshire County Council,Independent School Fee Special,ARC SCHOOL,29/07/2022,18625.00,Fees to Independent Schools,Fees to Independent Schools,http://opendatacommunities.org/id/county-council/staffordshire  
Staffordshire County Council,Independent School Fee Special,ARC SCHOOL,29/07/2022,18625.00,Fees to Independent Schools,Fees to Independent Schools,http://opendatacommunities.org/id/county-council/staffordshire  
Staffordshire County Council,Think 2 Project,ARGYLE PRE SCHOOL NURSERY,11/07/2022,2274.83,Awards Funded Childcare Places,Awards Funded Childcare Places,http://opendatacommunities.org/id/county-council/staffordshire  
Staffordshire County Council,Nursery Education Grant,ARGYLE PRE SCHOOL NURSERY,11/07/2022,4727.39,Grants Nursery Education Pymnt,Grants Nursery Education Pymnt,http://opendatacommunities.org/id/county-council/staffordshire  
Staffordshire County Council,Public Transp Support & Co-ord,ARRIVA MIDLANDS LTD,25/07/2022,1242.00,Payments to Bus Operators,Payments to Bus Operators,http://opendatacommunities.org/id/county-council/staffordshire  
Staffordshire County Council,Public Transp Support & Co-ord,ARRIVA MIDLANDS LTD,25/07/2022,864.00,Payments to Bus Operators,Payments to Bus Operators,http://opendatacommunities.org/id/county-council/staffordshire  
Staffordshire County Council,Public Transp Support & Co-ord,ARRIVA MIDLANDS LTD,25/07/2022,810.00,Payments to Bus Operators,Payments to Bus Operators,http://opendatacommunities.org/id/county-council/staffordshire  
Staffordshire County Council,Public Transp Support & Co-ord,ARRIVA MIDLANDS LTD,25/07/2022,1188.00,Payments to Bus Operators,Payments to Bus Operators,http://opendatacommunities.org/id/county-council/staffordshire  
Staffordshire County Council,Public Transp Support & Co-ord,ARRIVA MIDLANDS LTD,25/07/2022,702.00,Payments to Bus Operators,Payments to Bus Operators,http://opendatacommunities.org/id/county-council/staffordshire  
Staffordshire County Council,Concessionary Fare Schemes,ARRIVA MIDLANDS LTD,15/07/2022,122397.00,Payments to Bus Operators,Payments to Bus Operators,http://opendatacommunities.org/id/county-council/staffordshire  
Staffordshire County Council,Public Transp Support & Co-ord,ARRIVA MIDLANDS LTD,25/07/2022,1080.00,Payments to Bus Operators,Payments to Bus Operators,http://opendatacommunities.org/id/county-council/staffordshire  
Staffordshire County Council,1331 114 Douglas Rd Newcastle ,ARROW COUNTY SUPPLIES,18/07/2022,953.83,Cleaning Materials supplies,Cleaning Materials supplies,http://opendatacommunities.org/id/county-council/staffordshire  
Staffordshire County Council,Fradley Park Primary,ARROW COUNTY SUPPLIES,22/07/2022,2824.01,Furniture/Equip Purchase,Furniture/Equip Purchase,http://opendatacommunities.org/id/county-council/staffordshire  
Staffordshire County Council,1323 Hawthorn House WS13 6EN,ARROW COUNTY SUPPLIES,27/07/2022,1764.05,Cleaning Materials supplies,Cleaning Materials supplies,http://opendatacommunities.org/id/county-council/staffordshire  
Staffordshire County Council,Staffordshire Wood Fuel,Ashwell Biomass & Heating Ltd,12/07/2022,684.00,Wood Chip,Wood Chip,http://opendatacommunities.org/id/county-council/staffordshire  
Staffordshire County Council,CAN Assess & Staying Together,ASIST,22/07/2022,649.80,S17 FAMILY SUPPORT,S17 FAMILY SUPPORT,http://opendatacommunities.org/id/county-council/staffordshire  
Staffordshire County Council,Sec 256 Within BCF,ASIST,28/07/2022,2500.00,OTHER HIRED SERVICES,OTHER HIRED SERVICES,http://opendatacommunities.org/id/county-council/staffordshire  
Staffordshire County Council,Advocacy,ASIST,28/07/2022,119113.75,OTHER HIRED SERVICES,OTHER HIRED SERVICES,http://opendatacommunities.org/id/county-council/staffordshire  
Staffordshire County Council,Advocacy,ASIST,28/07/2022,22000.00,OTHER HIRED SERVICES,OTHER HIRED SERVICES,http://opendatacommunities.org/id/county-council/staffordshire  
Staffordshire County Council,Stock Management,Askews & Holts Library Services Ltd,19/07/2022,793.82,Books,Books,http://opendatacommunities.org/id/county-council/staffordshire  
Staffordshire County Council,Stock Management,Askews & Holts Library Services Ltd,19/07/2022,758.77,Books,Books,http://opendatacommunities.org/id/county-council/staffordshire  
Staffordshire County Council,Stock Management,Askews & Holts Library Services Ltd,19/07/2022,706.38,Books,Books,http://opendatacommunities.org/id/county-council/staffordshire  
Staffordshire County Council,Stock Management,Askews & Holts Library Services Ltd,19/07/2022,785.14,Books,Books,http://opendatacommunities.org/id/county-council/staffordshire  
Staffordshire County Council,Stock Management,Askews & Holts Library Services Ltd,19/07/2022,763.74,Books,Books,http://opendatacommunities.org/id/county-council/staffordshire  
Staffordshire County Council,Stock Management,Askews & Holts Library Services Ltd,19/07/2022,764.59,Books,Books,http://opendatacommunities.org/id/county-council/staffordshire  
Staffordshire County Council,Stock Management,Askews & Holts Library Services Ltd,19/07/2022,803.67,Books,Books,http://opendatacommunities.org/id/county-council/staffordshire  
Staffordshire County Council,Stock Management,Askews & Holts Library Services Ltd,19/07/2022,756.19,Books,Books,http://opendatacommunities.org/id/county-council/staffordshire  
Staffordshire County Council,Stock Management,Askews & Holts Library Services Ltd,19/07/2022,794.56,Books,Books,http://opendatacommunities.org/id/county-council/staffordshire  
Staffordshire County Council,Stock Management,Askews & Holts Library Services Ltd,19/07/2022,777.96,Books,Books,http://opendatacommunities.org/id/county-council/staffordshire  
Staffordshire County Council,Stock Management,Askews & Holts Library Services Ltd,19/07/2022,690.04,Books,Books,http://opendatacommunities.org/id/county-council/staffordshire  
Staffordshire County Council,Prison Libraries,Askews & Holts Library Services Ltd,19/07/2022,897.90,Books,Books,http://opendatacommunities.org/id/county-council/staffordshire  
Staffordshire County Council,Stock Management,Askews & Holts Library Services Ltd,26/07/2022,652.76,Books,Books,http://opendatacommunities.org/id/county-council/staffordshire  
Staffordshire County Council,Stock Management,Askews & Holts Library Services Ltd,26/07/2022,790.83,Books,Books,http://opendatacommunities.org/id/county-council/staffordshire  
Staffordshire County Council,Stock Management,Askews & Holts Library Services Ltd,26/07/2022,587.83,Books,Books,http://opendatacommunities.org/id/county-council/staffordshire  
Staffordshire County Council,Stock Management,Askews & Holts Library Services Ltd,26/07/2022,699.26,Books,Books,http://opendatacommunities.org/id/county-council/staffordshire  
Staffordshire County Council,Stock Management,Askews & Holts Library Services Ltd,26/07/2022,711.11,Books,Books,http://opendatacommunities.org/id/county-council/staffordshire  
Staffordshire County Council,Stock Management,Askews & Holts Library Services Ltd,26/07/2022,711.13,Books,Books,http://opendatacommunities.org/id/county-council/staffordshire  
Staffordshire County Council,Moorlands LD Team,Aspects Staffordshire Ltd,04/07/2022,663.00,Practical Care,Practical Care,http://opendatacommunities.org/id/county-council/staffordshire  
Staffordshire County Council,Cannock Chase LD Team,Aspire (Stafford) Ltd,29/07/2022,612.00,Day Care,Day Care,http://opendatacommunities.org/id/county-council/staffordshire  
Staffordshire County Council,Stafford LD Team,Aspire (Stafford) Ltd,29/07/2022,707.04,Day Care,Day Care,http://opendatacommunities.org/id/county-council/staffordshire  
Staffordshire County Council,Stafford LD Team,Aspire (Stafford) Ltd,29/07/2022,612.00,Day Care,Day Care,http://opendatacommunities.org/id/county-council/staffordshire  
Staffordshire County Council,Stafford LD Team,Aspire (Stafford) Ltd,29/07/2022,1048.00,Day Care,Day Care,http://opendatacommunities.org/id/county-council/staffordshire  
Staffordshire County Council,Procurement Administration,Aspire Procurement Training Ltd,21/07/2022,2634.00,Training Expenses,Training Expenses,http://opendatacommunities.org/id/county-council/staffordshire  
Staffordshire County Council,Think 2 Project,ASQUITH NURSERIES LTD,11/07/2022,2867.86,Awards Funded Childcare Places,Awards Funded Childcare Places,http://opendatacommunities.org/id/county-council/staffordshire  
Staffordshire County Council,Nursery Education Grant,ASQUITH NURSERIES LTD,11/07/2022,18767.53,Grants Nursery Education Pymnt,Grants Nursery Education Pymnt,http://opendatacommunities.org/id/county-council/staffordshire  
Staffordshire County Council,SBEN,ASTON MARINA LTD,07/07/2022,504.00,Premises Services,Premises Services,http://opendatacommunities.org/id/county-council/staffordshire  
Staffordshire County Council,Transport Planning,Atkins Ltd,14/07/2022,56400.00,CONSULTANT FEES,CONSULTANT FEES,http://opendatacommunities.org/id/county-council/staffordshire  
Staffordshire County Council,Capability Fund,Atkins Ltd,13/07/2022,13653.60,CONSULTANT FEES,CONSULTANT FEES,http://opendatacommunities.org/id/county-council/staffordshire  
Staffordshire County Council,Improvements Contracts,ATKINS TRANSPORT PLANNING,11/07/2022,5073.60,SOFTWARE LICENCES,SOFTWARE LICENCES,http://opendatacommunities.org/id/county-council/staffordshire  
Staffordshire County Council,Specialist Assessment,Atkinson Lewis,07/07/2022,570.24,Prev Supp Legal Costs,Prev Supp Legal Costs,http://opendatacommunities.org/id/county-council/staffordshire  
Staffordshire County Council,Specialist Assessment,Atkinson Lewis,15/07/2022,535.20,Prev Supp Legal Costs,Prev Supp Legal Costs,http://opendatacommunities.org/id/county-council/staffordshire  
Staffordshire County Council,Specialist Assessment,Atkinson Lewis,18/07/2022,3886.80,Prev Supp Legal Costs,Prev Supp Legal Costs,http://opendatacommunities.org/id/county-council/staffordshire  
Staffordshire County Council,Specialist Assessment,Atkinson Lewis,25/07/2022,787.80,Prev Supp Legal Costs,Prev Supp Legal Costs,http://opendatacommunities.org/id/county-council/staffordshire  
Staffordshire County Council,MOOR Assess & Staying Together,Atkinson Lewis,12/07/2022,892.00,Case Work,Case Work,http://opendatacommunities.org/id/county-council/staffordshire  
Staffordshire County Council,CAN Assess & Staying Together,Atkinson Lewis,19/07/2022,877.20,Case Work,Case Work,http://opendatacommunities.org/id/county-council/staffordshire  
Staffordshire County Council,Specialist Assessment,Atkinson Lewis,26/07/2022,845.60,Prev Supp Legal Costs,Prev Supp Legal Costs,http://opendatacommunities.org/id/county-council/staffordshire  
Staffordshire County Council,Specialist Assessment,Atkinson Lewis,21/07/2022,559.20,Prev Supp Legal Costs,Prev Supp Legal Costs,http://opendatacommunities.org/id/county-council/staffordshire  
Staffordshire County Council,Specialist Assessment,Atkinson Lewis,21/07/2022,669.00,Prev Supp Legal Costs,Prev Supp Legal Costs,http://opendatacommunities.org/id/county-council/staffordshire  
Staffordshire County Council,Specialist Assessment,Atkinson Lewis,28/07/2022,892.80,Prev Supp Legal Costs,Prev Supp Legal Costs,http://opendatacommunities.org/id/county-council/staffordshire  
Staffordshire County Council,Stat-OOC transport,,25/07/2022,761.60,Home School Direct Payment,Home School Direct Payment,http://opendatacommunities.org/id/county-council/staffordshire  
Staffordshire County Council,Independent School Fee Special,Aurora ASD Ltd T/A Aurora Hanley Sch,14/07/2022,3618.36,Grants to third parties,Grants to third parties,http://opendatacommunities.org/id/county-council/staffordshire  
Staffordshire County Council,Independent School Fee Special,Aurora ASD Ltd T/A Aurora Hanley Sch,14/07/2022,2610.00,Grants to third parties,Grants to third parties,http://opendatacommunities.org/id/county-council/staffordshire  
Staffordshire County Council,Independent School Fee Special,Aurora Brambles School,11/07/2022,15345.22,Fees to Independent Schools,Fees to Independent Schools,http://opendatacommunities.org/id/county-council/staffordshire  
Staffordshire County Council,Specialist Assessment,Austen Psychology,27/07/2022,525.00,Prev Supp Legal Costs,Prev Supp Legal Costs,http://opendatacommunities.org/id/county-council/staffordshire  
Staffordshire County Council,Home to school transport-main,Austins,28/07/2022,10102.45,Home School Contract Vehicles,Home School Contract Vehicles,http://opendatacommunities.org/id/county-council/staffordshire  
Staffordshire County Council,Bailey Street AP,Autocab Private Hire,29/07/2022,50572.02,Home School Contract Vehicles,Home School Contract Vehicles,http://opendatacommunities.org/id/county-council/staffordshire  
Staffordshire County Council,Other Corporate Items,AVC Wise Ltd,25/07/2022,1541.74,OTHER HIRED SERVICES,OTHER HIRED SERVICES,http://opendatacommunities.org/id/county-council/staffordshire  
Staffordshire County Council,Newcastle LD Team,Avenues South,29/07/2022,2033.60,Supported Group Care,Supported Group Care,http://opendatacommunities.org/id/county-council/staffordshire  
Staffordshire County Council,Comp Dev,AXIELL ALM Limited,28/07/2022,6000.00,Computer Support Charges,Computer Support Charges,http://opendatacommunities.org/id/county-council/staffordshire  
Staffordshire County Council,Comp Dev,AXIELL ALM Limited,28/07/2022,960.00,SOFTWARE LICENCES,SOFTWARE LICENCES,http://opendatacommunities.org/id/county-council/staffordshire  
Staffordshire County Council,SSS - ASD Enhanc Key Stage 1/2,B Daniels,12/07/2022,510.50,PROFESSIONAL FEES,PROFESSIONAL FEES,http://opendatacommunities.org/id/county-council/staffordshire  
Staffordshire County Council,Think 2 Project,B Geyer,11/07/2022,1333.31,Awards Funded Childcare Places,Awards Funded Childcare Places,http://opendatacommunities.org/id/county-council/staffordshire  
Staffordshire County Council,Nursery Education Grant,B Geyer,11/07/2022,4568.82,Grants Nursery Education Pymnt,Grants Nursery Education Pymnt,http://opendatacommunities.org/id/county-council/staffordshire  
Staffordshire County Council,Public Transp Support & Co-ord,B P BROWN TRAVEL LTD,01/07/2022,47995.56,Manned Transport - Hire,Manned Transport - Hire,http://opendatacommunities.org/id/county-council/staffordshire  
Staffordshire County Council,Concessionary Fare Schemes,B P BROWN TRAVEL LTD,14/07/2022,42734.00,Payments to Bus Operators,Payments to Bus Operators,http://opendatacommunities.org/id/county-council/staffordshire  
Staffordshire County Council,Public Transp Support & Co-ord,B P BROWN TRAVEL LTD,28/07/2022,46933.99,Manned Transport - Hire,Manned Transport - Hire,http://opendatacommunities.org/id/county-council/staffordshire  
Staffordshire County Council,Home to college transport SEN,,01/07/2022,1049.49,Personal Travel Budgets,Personal Travel Budgets,http://opendatacommunities.org/id/county-council/staffordshire  
Staffordshire County Council,Liability,B4 LEGAL,08/07/2022,708.00,Payment of Insurance Claims,Payment of Insurance Claims,http://opendatacommunities.org/id/county-council/staffordshire  
Staffordshire County Council,SS Assess & Staying Together,BAILEY HOTEL,12/07/2022,571.20,S17 - Refuge Accommodation DV,S17 - Refuge Accommodation DV,http://opendatacommunities.org/id/county-council/staffordshire  
Staffordshire County Council,Think 2 Project,BAMBINO'S PRIVATE DAY NURSERY LTD,11/07/2022,1985.60,Awards Funded Childcare Places,Awards Funded Childcare Places,http://opendatacommunities.org/id/county-council/staffordshire  
Staffordshire County Council,Nursery Education Grant,BAMBINO'S PRIVATE DAY NURSERY LTD,11/07/2022,10158.70,Grants Nursery Education Pymnt,Grants Nursery Education Pymnt,http://opendatacommunities.org/id/county-council/staffordshire  
Staffordshire County Council,Adoption Team,BANNER GROUP LTD,13/07/2022,619.00,Postages,Postages,http://opendatacommunities.org/id/county-council/staffordshire  
Staffordshire County Council,New School - Land Henhurst Rid,BANNER GROUP LTD,28/07/2022,2232.00,Construction Works,Construction Works,http://opendatacommunities.org/id/county-council/staffordshire  
Staffordshire County Council,Amey Routine Highway Maint,BARLASTON PARISH COUNCIL,04/07/2022,3192.00,Parish District Grass Cutting,Parish District Grass Cutting,http://opendatacommunities.org/id/county-council/staffordshire  
Staffordshire County Council,Nursery Education Grant,Barney Bears Nursery,11/07/2022,9342.00,Grants Nursery Education Pymnt,Grants Nursery Education Pymnt,http://opendatacommunities.org/id/county-council/staffordshire  
Staffordshire County Council,Chasetown Special School,Barton Village Taxis Ltd,28/07/2022,6779.86,Home School Contract Vehicles,Home School Contract Vehicles,http://opendatacommunities.org/id/county-council/staffordshire  
Staffordshire County Council,Childcare,Basharat Hussain,14/07/2022,2280.00,Legal Costs and Stamp Duty,Legal Costs and Stamp Duty,http://opendatacommunities.org/id/county-council/staffordshire  
Staffordshire County Council,Community Renewal Fund,Baswich Business Services Ltd,28/07/2022,11700.00,CONSULTANT FEES,CONSULTANT FEES,http://opendatacommunities.org/id/county-council/staffordshire  
Staffordshire County Council,Attendance & Inclusion,BDG Training Consultancy Limited,26/07/2022,811.50,Courses,Courses,http://opendatacommunities.org/id/county-council/staffordshire  
Staffordshire County Council,Staffs Warmer Homes Phase 2,Be Smart Design Ltd,08/07/2022,618.00,OTHER HIRED SERVICES,OTHER HIRED SERVICES,http://opendatacommunities.org/id/county-council/staffordshire  
Staffordshire County Council,Recycling Publicity,Be Smart Design Ltd,15/07/2022,1478.40,Advertising,Advertising,http://opendatacommunities.org/id/county-council/staffordshire  
Staffordshire County Council,Think 2 Project,Beeches Park Day Nursery,11/07/2022,2036.48,Awards Funded Childcare Places,Awards Funded Childcare Places,http://opendatacommunities.org/id/county-council/staffordshire  
Staffordshire County Council,Nursery Education Grant,Beeches Park Day Nursery,11/07/2022,7134.37,Grants Nursery Education Pymnt,Grants Nursery Education Pymnt,http://opendatacommunities.org/id/county-council/staffordshire  
Staffordshire County Council,P16 top up for Indep Specialis,Beechwood College,29/07/2022,12806.49,Events and Competitions,Events and Competitions,http://opendatacommunities.org/id/county-council/staffordshire  
Staffordshire County Council,Speech and Language/O Therapy,Behavioural Services,29/07/2022,1122.00,OTHER HIRED SERVICES,OTHER HIRED SERVICES,http://opendatacommunities.org/id/county-council/staffordshire  
Staffordshire County Council,Speech and Language/O Therapy,Behavioural Services,12/07/2022,1122.00,OTHER HIRED SERVICES,OTHER HIRED SERVICES,http://opendatacommunities.org/id/county-council/staffordshire  
Staffordshire County Council,Home to school transport-main,BENNETT'S TAXIS,28/07/2022,31029.16,Home School Contract Vehicles,Home School Contract Vehicles,http://opendatacommunities.org/id/county-council/staffordshire  
Staffordshire County Council,Home to school transport-main,BENNETTS TRAVEL (CRANBERRY) LTD,28/07/2022,19131.67,Home School Contract Vehicles,Home School Contract Vehicles,http://opendatacommunities.org/id/county-council/staffordshire  
Staffordshire County Council,Public Transp Support & Co-ord,BENNETTS TRAVEL (CRANBERRY) LTD,28/07/2022,14599.87,Payments to Bus Operators,Payments to Bus Operators,http://opendatacommunities.org/id/county-council/staffordshire  
Staffordshire County Council,Public Transp Support & Co-ord,BENNETTS TRAVEL (CRANBERRY) LTD,28/07/2022,14891.30,Manned Transport - Hire,Manned Transport - Hire,http://opendatacommunities.org/id/county-council/staffordshire  
Staffordshire County Council,Public Transp Support & Co-ord,BENNETTS TRAVEL (CRANBERRY) LTD,28/07/2022,13480.76,Manned Transport - Hire,Manned Transport - Hire,http://opendatacommunities.org/id/county-council/staffordshire  
Staffordshire County Council,Improvements Contracts,BENTLEY SYSTEMS INTERNATIONAL LTD,15/07/2022,8224.80,SOFTWARE LICENCES,SOFTWARE LICENCES,http://opendatacommunities.org/id/county-council/staffordshire  
Staffordshire County Council,Nursery Education Grant,Beresford Memorial CofE First School,11/07/2022,5598.45,Grants Nursery Education Pymnt,Grants Nursery Education Pymnt,http://opendatacommunities.org/id/county-council/staffordshire  
Staffordshire County Council,Amey Routine Highway Maint,BERKSWICH PARISH COUNCIL,04/07/2022,2206.00,Parish District Grass Cutting,Parish District Grass Cutting,http://opendatacommunities.org/id/county-council/staffordshire  
Staffordshire County Council,South Staffs Coroner,BHam Womens & Childrens NHS FT,13/07/2022,1440.00,GOOD HOPE SLA,GOOD HOPE SLA,http://opendatacommunities.org/id/county-council/staffordshire  
Staffordshire County Council,Pooled Accom Central Charges,BID Group Ltd,14/07/2022,4098.00,Service/Test  Other,Service/Test  Other,http://opendatacommunities.org/id/county-council/staffordshire  
Staffordshire County Council,Chase Terrace Primary School,BID Group Ltd,05/07/2022,504.00,Service/Test Controlled Access,Service/Test Controlled Access,http://opendatacommunities.org/id/county-council/staffordshire  
Staffordshire County Council,Lymedale Enterprise Centre,BID Group Ltd,05/07/2022,936.00,Service/Test Controlled Access,Service/Test Controlled Access,http://opendatacommunities.org/id/county-council/staffordshire  
Staffordshire County Council,0953 Glascote LibC Caledonian ,BID Group Ltd,20/07/2022,612.00,Service/Test Controlled Access,Service/Test Controlled Access,http://opendatacommunities.org/id/county-council/staffordshire  
Staffordshire County Council,7115 Unit Qa Beacon Business P,BID Group Ltd,20/07/2022,576.00,Service/Test Controlled Access,Service/Test Controlled Access,http://opendatacommunities.org/id/county-council/staffordshire  
Staffordshire County Council,Codsall Community High School,BID Group Ltd,20/07/2022,576.00,Service/Test Controlled Access,Service/Test Controlled Access,http://opendatacommunities.org/id/county-council/staffordshire  
Staffordshire County Council,5438 Staffs Place 1&2Tipping S,BID Group Ltd,28/07/2022,828.00,Service/Test Controlled Access,Service/Test Controlled Access,http://opendatacommunities.org/id/county-council/staffordshire  
Staffordshire County Council,Marshlands School,BID Group Ltd,28/07/2022,504.00,Service/Test Controlled Access,Service/Test Controlled Access,http://opendatacommunities.org/id/county-council/staffordshire  
Staffordshire County Council,7269 Apedale Energy Visitor Ce,BID Group Ltd,29/07/2022,912.00,Day to Day Mechanical Services,Day to Day Mechanical Services,http://opendatacommunities.org/id/county-council/staffordshire  
Staffordshire County Council,LMG Staffs Moorlands,BIDDULPH HIGH SCHOOL (ACADEMY),18/07/2022,2825.00,Devolved Services,Devolved Services,http://opendatacommunities.org/id/county-council/staffordshire  
Staffordshire County Council,0008 Stafford Ccent Faraday Ro,BIFFA WASTE SERVICES LTD,22/07/2022,685.92,WASTE COLLECTION,WASTE COLLECTION,http://opendatacommunities.org/id/county-council/staffordshire  
Staffordshire County Council,HWS Unallocated,BIFFA WASTE SERVICES LTD,26/07/2022,129594.25,WASTE MANAGEMENT,WASTE MANAGEMENT,http://opendatacommunities.org/id/county-council/staffordshire  
Staffordshire County Council,Think 2 Project,Big Robin's Nursery,11/07/2022,1333.31,Awards Funded Childcare Places,Awards Funded Childcare Places,http://opendatacommunities.org/id/county-council/staffordshire  
Staffordshire County Council,Nursery Education Grant,Big Robin's Nursery,11/07/2022,10424.96,Grants Nursery Education Pymnt,Grants Nursery Education Pymnt,http://opendatacommunities.org/id/county-council/staffordshire  
Staffordshire County Council,Think 2 Project,BILBROOK PLAYGROUP,11/07/2022,1333.30,Awards Funded Childcare Places,Awards Funded Childcare Places,http://opendatacommunities.org/id/county-council/staffordshire  
Staffordshire County Council,Nursery Education Grant,BILBROOK PLAYGROUP,11/07/2022,1785.96,Grants Nursery Education Pymnt,Grants Nursery Education Pymnt,http://opendatacommunities.org/id/county-council/staffordshire  
Staffordshire County Council,Nursery Education Grant,Birches First School,11/07/2022,6994.21,Grants Nursery Education Pymnt,Grants Nursery Education Pymnt,http://opendatacommunities.org/id/county-council/staffordshire  
Staffordshire County Council,Think 2 Project,Birchwood Private Day Nursery,11/07/2022,2276.88,Awards Funded Childcare Places,Awards Funded Childcare Places,http://opendatacommunities.org/id/county-council/staffordshire  
Staffordshire County Council,Nursery Education Grant,Birchwood Private Day Nursery,11/07/2022,4674.57,Grants Nursery Education Pymnt,Grants Nursery Education Pymnt,http://opendatacommunities.org/id/county-council/staffordshire  
Staffordshire County Council,Fost Supervise & Support North,Birchwood Private Day Nursery,20/07/2022,1145.00,Fostering Equipment on Loans,Fostering Equipment on Loans,http://opendatacommunities.org/id/county-council/staffordshire  
Staffordshire County Council,LMG Tamworth,Bird's Bush Primary School,18/07/2022,1200.00,Devolved Services,Devolved Services,http://opendatacommunities.org/id/county-council/staffordshire  
Staffordshire County Council,South Staffs Coroner,BIRMINGHAM CITY COUNCIL,06/07/2022,1980.00,INQ EXPS S STAFFS,INQ EXPS S STAFFS,http://opendatacommunities.org/id/county-council/staffordshire  
Staffordshire County Council,Nursery Education Grant,Bishops Lonsdale Nursery,11/07/2022,9739.73,Grants Nursery Education Pymnt,Grants Nursery Education Pymnt,http://opendatacommunities.org/id/county-council/staffordshire  
Staffordshire County Council,Speech and Language/O Therapy,BLACKFRIARS ACADEMY,08/07/2022,38570.00,Devolved Services,Devolved Services,http://opendatacommunities.org/id/county-council/staffordshire  
Staffordshire County Council,Nursery Education Grant,Blackshaw Moor CofE First School,11/07/2022,2264.69,Grants Nursery Education Pymnt,Grants Nursery Education Pymnt,http://opendatacommunities.org/id/county-council/staffordshire  
Staffordshire County Council,Hawthorn House,BLAKEMORE FOOD SERVICE LTD,15/07/2022,1208.22,Catering Provisions,Catering Provisions,http://opendatacommunities.org/id/county-council/staffordshire  
Staffordshire County Council,Nursery Education Grant,Blessed Mother Teresa's RC Pri Sch,11/07/2022,7549.38,Grants Nursery Education Pymnt,Grants Nursery Education Pymnt,http://opendatacommunities.org/id/county-council/staffordshire  
Staffordshire County Council,Think 2 Project,Blossoms on the Chase,11/07/2022,4533.21,Awards Funded Childcare Places,Awards Funded Childcare Places,http://opendatacommunities.org/id/county-council/staffordshire  
Staffordshire County Council,Nursery Education Grant,Blossoms on the Chase,11/07/2022,15611.85,Grants Nursery Education Pymnt,Grants Nursery Education Pymnt,http://opendatacommunities.org/id/county-council/staffordshire  
Staffordshire County Council,NEW Child in Care/Care Leavers,Bloxwich Radio Taxis,22/07/2022,4752.00,S17 TRANSPORT,S17 TRANSPORT,http://opendatacommunities.org/id/county-council/staffordshire  
Staffordshire County Council,Think 2 Project,Bluebell Hill Nursery,11/07/2022,892.29,Awards Funded Childcare Places,Awards Funded Childcare Places,http://opendatacommunities.org/id/county-council/staffordshire  
Staffordshire County Council,Think 2 Project,BLYTHE BRIDGE DAY NURSERY,11/07/2022,2133.30,Awards Funded Childcare Places,Awards Funded Childcare Places,http://opendatacommunities.org/id/county-council/staffordshire  
Staffordshire County Council,Nursery Education Grant,BLYTHE BRIDGE DAY NURSERY,11/07/2022,41555.70,Grants Nursery Education Pymnt,Grants Nursery Education Pymnt,http://opendatacommunities.org/id/county-council/staffordshire  
Staffordshire County Council,Nursery Education Grant,BLYTHE BRIDGE DAY NURSERY,11/07/2022,1661.40,Grants Nursery Education Pymnt,Grants Nursery Education Pymnt,http://opendatacommunities.org/id/county-council/staffordshire  
Staffordshire County Council,HWRC Mobilisation,Boden and Davies Ltd,05/07/2022,750.00,WASTE MANAGEMENT,WASTE MANAGEMENT,http://opendatacommunities.org/id/county-council/staffordshire  
Staffordshire County Council,HWRC Mobilisation,Boden and Davies Ltd,05/07/2022,3062.40,WASTE MANAGEMENT,WASTE MANAGEMENT,http://opendatacommunities.org/id/county-council/staffordshire  
Staffordshire County Council,HWRC Mobilisation,Boden and Davies Ltd,05/07/2022,2775.00,WASTE MANAGEMENT,WASTE MANAGEMENT,http://opendatacommunities.org/id/county-council/staffordshire  
Staffordshire County Council,HWRC Mobilisation,Boden and Davies Ltd,05/07/2022,3666.00,WASTE MANAGEMENT,WASTE MANAGEMENT,http://opendatacommunities.org/id/county-council/staffordshire  
Staffordshire County Council,HWRC Mobilisation,Boden and Davies Ltd,05/07/2022,3368.40,WASTE MANAGEMENT,WASTE MANAGEMENT,http://opendatacommunities.org/id/county-council/staffordshire  
Staffordshire County Council,HWRC Mobilisation,Boden and Davies Ltd,05/07/2022,3358.20,WASTE MANAGEMENT,WASTE MANAGEMENT,http://opendatacommunities.org/id/county-council/staffordshire  
Staffordshire County Council,HWRC Mobilisation,Boden and Davies Ltd,05/07/2022,2933.40,WASTE MANAGEMENT,WASTE MANAGEMENT,http://opendatacommunities.org/id/county-council/staffordshire  
Staffordshire County Council,HWRC Mobilisation,Boden and Davies Ltd,05/07/2022,703.80,WASTE MANAGEMENT,WASTE MANAGEMENT,http://opendatacommunities.org/id/county-council/staffordshire  
Staffordshire County Council,HWRC Mobilisation,Boden and Davies Ltd,05/07/2022,993.60,WASTE MANAGEMENT,WASTE MANAGEMENT,http://opendatacommunities.org/id/county-council/staffordshire  
Staffordshire County Council,HWRC Mobilisation,Boden and Davies Ltd,05/07/2022,894.00,WASTE MANAGEMENT,WASTE MANAGEMENT,http://opendatacommunities.org/id/county-council/staffordshire  
Staffordshire County Council,HWRC Mobilisation,Boden and Davies Ltd,22/07/2022,1297.20,WASTE MANAGEMENT,WASTE MANAGEMENT,http://opendatacommunities.org/id/county-council/staffordshire  
Staffordshire County Council,HWRC Mobilisation,Boden and Davies Ltd,22/07/2022,1495.20,WASTE MANAGEMENT,WASTE MANAGEMENT,http://opendatacommunities.org/id/county-council/staffordshire  
Staffordshire County Council,HWRC Mobilisation,Boden and Davies Ltd,22/07/2022,771.00,WASTE MANAGEMENT,WASTE MANAGEMENT,http://opendatacommunities.org/id/county-council/staffordshire  
Staffordshire County Council,HWRC Mobilisation,Boden and Davies Ltd,22/07/2022,797.40,WASTE MANAGEMENT,WASTE MANAGEMENT,http://opendatacommunities.org/id/county-council/staffordshire  
Staffordshire County Council,HWRC Mobilisation,Boden and Davies Ltd,22/07/2022,1645.80,WASTE MANAGEMENT,WASTE MANAGEMENT,http://opendatacommunities.org/id/county-council/staffordshire  
Staffordshire County Council,HWRC Mobilisation,Boden and Davies Ltd,22/07/2022,1769.40,WASTE MANAGEMENT,WASTE MANAGEMENT,http://opendatacommunities.org/id/county-council/staffordshire  
Staffordshire County Council,HWRC Mobilisation,Boden and Davies Ltd,22/07/2022,791.40,WASTE MANAGEMENT,WASTE MANAGEMENT,http://opendatacommunities.org/id/county-council/staffordshire  
Staffordshire County Council,HWRC Mobilisation,Boden and Davies Ltd,22/07/2022,3110.40,WASTE MANAGEMENT,WASTE MANAGEMENT,http://opendatacommunities.org/id/county-council/staffordshire  
Staffordshire County Council,HWRC Mobilisation,Boden and Davies Ltd,22/07/2022,799.80,WASTE MANAGEMENT,WASTE MANAGEMENT,http://opendatacommunities.org/id/county-council/staffordshire  
Staffordshire County Council,HWRC Mobilisation,Boden and Davies Ltd,22/07/2022,3546.00,WASTE MANAGEMENT,WASTE MANAGEMENT,http://opendatacommunities.org/id/county-council/staffordshire  
Staffordshire County Council,HWRC Mobilisation,Boden and Davies Ltd,22/07/2022,2243.40,WASTE MANAGEMENT,WASTE MANAGEMENT,http://opendatacommunities.org/id/county-council/staffordshire  
Staffordshire County Council,HWRC Mobilisation,Boden and Davies Ltd,22/07/2022,2997.60,WASTE MANAGEMENT,WASTE MANAGEMENT,http://opendatacommunities.org/id/county-council/staffordshire  
Staffordshire County Council,Think 2 Project,BOLEY PARK PRE-SCHOOL,11/07/2022,533.33,Awards Funded Childcare Places,Awards Funded Childcare Places,http://opendatacommunities.org/id/county-council/staffordshire  
Staffordshire County Council,Nursery Education Grant,BOLEY PARK PRE-SCHOOL,11/07/2022,2496.94,Grants Nursery Education Pymnt,Grants Nursery Education Pymnt,http://opendatacommunities.org/id/county-council/staffordshire  
Staffordshire County Council,Asset Renewal  - Maint Work 04,BOURNE ELECTRICAL CONTR LTD,07/07/2022,21600.00,Construction Works,Construction Works,http://opendatacommunities.org/id/county-council/staffordshire  
Staffordshire County Council,5438 Staffs Place 1&2Tipping S,BOURNE ELECTRICAL CONTR LTD,26/07/2022,7242.94,Day to Day Electrical Services,Day to Day Electrical Services,http://opendatacommunities.org/id/county-council/staffordshire  
Staffordshire County Council,Home to school transport-main,Boydons Coaches Ltd,06/07/2022,8264.62,Home School Contract Vehicles,Home School Contract Vehicles,http://opendatacommunities.org/id/county-council/staffordshire  
Staffordshire County Council,Local Members Initiatives,Bradwell Lodge Community Centre Ltd,20/07/2022,650.00,Local Member Initiative Scheme,Local Member Initiative Scheme,http://opendatacommunities.org/id/county-council/staffordshire  
Staffordshire County Council,Nursery Education Grant,BRANSTON PRE SCHOOL CENTRE,11/07/2022,7136.33,Grants Nursery Education Pymnt,Grants Nursery Education Pymnt,http://opendatacommunities.org/id/county-council/staffordshire  
Staffordshire County Council,LICH Child in Care/Care Leaver,BRANSTON TAXIS LTD,28/07/2022,12096.00,S17 TRANSPORT,S17 TRANSPORT,http://opendatacommunities.org/id/county-council/staffordshire  
Staffordshire County Council,HRSSC,Bravo Benefits Ltd,07/07/2022,17040.68,Extra District Charges Other,Extra District Charges Other,http://opendatacommunities.org/id/county-council/staffordshire  
Staffordshire County Council,Childcare,Brian Morton,05/07/2022,1020.00,Legal Costs and Stamp Duty,Legal Costs and Stamp Duty,http://opendatacommunities.org/id/county-council/staffordshire  
Staffordshire County Council,Childcare,Brian Morton,14/07/2022,1140.00,Legal Costs and Stamp Duty,Legal Costs and Stamp Duty,http://opendatacommunities.org/id/county-council/staffordshire  
Staffordshire County Council,Lichfield LD Team,BRIARS BARN LTD,08/07/2022,1395.00,Day Care,Day Care,http://opendatacommunities.org/id/county-council/staffordshire  
Staffordshire County Council,Cannock Chase LD Team,BRIARS BARN LTD,08/07/2022,554.22,Day Care,Day Care,http://opendatacommunities.org/id/county-council/staffordshire  
Staffordshire County Council,Nursery Education Grant,BRIGHT BEGINNINGS DAY NURSERY,11/07/2022,6412.19,Grants Nursery Education Pymnt,Grants Nursery Education Pymnt,http://opendatacommunities.org/id/county-council/staffordshire  
Staffordshire County Council,Think 2 Project,Bright Minds Daycare Codsall,11/07/2022,581.87,Awards Funded Childcare Places,Awards Funded Childcare Places,http://opendatacommunities.org/id/county-council/staffordshire  
Staffordshire County Council,Nursery Education Grant,Bright Minds Daycare Codsall,11/07/2022,3115.63,Grants Nursery Education Pymnt,Grants Nursery Education Pymnt,http://opendatacommunities.org/id/county-council/staffordshire  
Staffordshire County Council,County,BRISTOL STREET MOTORS,11/07/2022,14759.80,Excise Licence,Excise Licence,http://opendatacommunities.org/id/county-council/staffordshire  
Staffordshire County Council,i54 Plot D Access Road,BRITISH TELECOMMUNICATIONS PLC.,08/07/2022,13062.53,Utilities Construction,Utilities Construction,http://opendatacommunities.org/id/county-council/staffordshire  
Staffordshire County Council,Amey Routine Highway Maint,BROCTON PARISH COUNCIL,04/07/2022,1766.00,Parish District Grass Cutting,Parish District Grass Cutting,http://opendatacommunities.org/id/county-council/staffordshire  
Staffordshire County Council,Family and Friends Team,Brookfields Day Nursery,29/07/2022,720.00,Fostering Discretionary Paymts,Fostering Discretionary Paymts,http://opendatacommunities.org/id/county-council/staffordshire  
Staffordshire County Council,Stafford LD Team,BROTHERS OF CHARITY LANCS,14/07/2022,2496.00,Supported Group Care,Supported Group Care,http://opendatacommunities.org/id/county-council/staffordshire  
Staffordshire County Council,Nursery Education Grant,BROWN EDGE BUSY BEES CIO,11/07/2022,2746.77,Grants Nursery Education Pymnt,Grants Nursery Education Pymnt,http://opendatacommunities.org/id/county-council/staffordshire  
Staffordshire County Council,Eastgate Regeneration,BROWNE JACOBSON,13/07/2022,2340.00,Ext Fees Construction,Ext Fees Construction,http://opendatacommunities.org/id/county-council/staffordshire  
Staffordshire County Council,Rights of Way,BROWNE JACOBSON,27/07/2022,925.20,legal services,legal services,http://opendatacommunities.org/id/county-council/staffordshire  
Staffordshire County Council,KCOM - Wholesale Line Rental,BT Plc,11/07/2022,774.64,CALL CHARGES,CALL CHARGES,http://opendatacommunities.org/id/county-council/staffordshire  
Staffordshire County Council,Think 2 Project,BUCKINGHAM'S NURSERY SCHOOL LTD,11/07/2022,4755.24,Awards Funded Childcare Places,Awards Funded Childcare Places,http://opendatacommunities.org/id/county-council/staffordshire  
Staffordshire County Council,Nursery Education Grant,BUCKINGHAM'S NURSERY SCHOOL LTD,11/07/2022,18767.41,Grants Nursery Education Pymnt,Grants Nursery Education Pymnt,http://opendatacommunities.org/id/county-council/staffordshire  
Staffordshire County Council,0952 Tamworth Lib CorporationS,Bullet Lift Services Ltd,05/07/2022,13410.00,Planned Mechanical Services,Planned Mechanical Services,http://opendatacommunities.org/id/county-council/staffordshire  
Staffordshire County Council,1178 Moorlands Ccent Albert St,Bullet Lift Services Ltd,20/07/2022,611.70,Day to Day Electrical Services,Day to Day Electrical Services,http://opendatacommunities.org/id/county-council/staffordshire  
Staffordshire County Council,Pre-Sale And Planning Costs,Burley Browne Chartered Surveyors,13/07/2022,12486.00,Ext Fees Construction,Ext Fees Construction,http://opendatacommunities.org/id/county-council/staffordshire  
Staffordshire County Council,Workforce Wellbeing Strategy,BURTON  & DISTRICT MIND,29/07/2022,990.00,CONSULTANT FEES,CONSULTANT FEES,http://opendatacommunities.org/id/county-council/staffordshire  
Staffordshire County Council,Think 2 Project,BURTON & STH DERBYS COLLEGE NRSRY,11/07/2022,1148.68,Awards Funded Childcare Places,Awards Funded Childcare Places,http://opendatacommunities.org/id/county-council/staffordshire  
Staffordshire County Council,Nursery Education Grant,BURTON & STH DERBYS COLLEGE NRSRY,11/07/2022,948.30,Grants Nursery Education Pymnt,Grants Nursery Education Pymnt,http://opendatacommunities.org/id/county-council/staffordshire  
Staffordshire County Council,HAF Summer 2022,Burton Albion Community Trust,04/07/2022,30150.70,OTHER HIRED SERVICES,OTHER HIRED SERVICES,http://opendatacommunities.org/id/county-council/staffordshire  
Staffordshire County Council,Hanburys Farm fire precautions,BURTON ENVIRONMENTAL SERVS LTD,18/07/2022,972.00,Construction Works,Construction Works,http://opendatacommunities.org/id/county-council/staffordshire  
Staffordshire County Council,Nursery Education Grant,Busy Bees at St Matthews,11/07/2022,29949.92,Grants Nursery Education Pymnt,Grants Nursery Education Pymnt,http://opendatacommunities.org/id/county-council/staffordshire  
Staffordshire County Council,Think 2 Project,Busy Bees Day Nursery Limited,11/07/2022,2399.94,Awards Funded Childcare Places,Awards Funded Childcare Places,http://opendatacommunities.org/id/county-council/staffordshire  
Staffordshire County Council,Nursery Education Grant,Busy Bees Day Nursery Limited,11/07/2022,21319.50,Grants Nursery Education Pymnt,Grants Nursery Education Pymnt,http://opendatacommunities.org/id/county-council/staffordshire  
Staffordshire County Council,Nursery Education Grant,BUSYDAYS CHILDCARE,11/07/2022,1341.29,Grants Nursery Education Pymnt,Grants Nursery Education Pymnt,http://opendatacommunities.org/id/county-council/staffordshire  
Staffordshire County Council,Think 2 Project,Butterflies Day Care Stafford Ltd,11/07/2022,1241.00,Awards Funded Childcare Places,Awards Funded Childcare Places,http://opendatacommunities.org/id/county-council/staffordshire  
Staffordshire County Council,Nursery Education Grant,Butterflies Day Care Stafford Ltd,11/07/2022,3294.06,Grants Nursery Education Pymnt,Grants Nursery Education Pymnt,http://opendatacommunities.org/id/county-council/staffordshire  
Staffordshire County Council,Think 2 Project,Butterflies Nursery,11/07/2022,1015.36,Awards Funded Childcare Places,Awards Funded Childcare Places,http://opendatacommunities.org/id/county-council/staffordshire  
Staffordshire County Council,Nursery Education Grant,Butterflies Nursery,11/07/2022,4995.22,Grants Nursery Education Pymnt,Grants Nursery Education Pymnt,http://opendatacommunities.org/id/county-council/staffordshire  
Staffordshire County Council,Blackfriars School,,01/07/2022,909.09,Personal Travel Budgets,Personal Travel Budgets,http://opendatacommunities.org/id/county-council/staffordshire  
Staffordshire County Council,Nursery Education Grant,C Caton,11/07/2022,623.01,Grants Nursery Education Pymnt,Grants Nursery Education Pymnt,http://opendatacommunities.org/id/county-council/staffordshire  
Staffordshire County Council,Saxon Hill School,,01/07/2022,559.64,Personal Travel Budgets,Personal Travel Budgets,http://opendatacommunities.org/id/county-council/staffordshire  
Staffordshire County Council,Audit,C I P F A Business Ltd,22/07/2022,4944.00,Subscriptions General,Subscriptions General,http://opendatacommunities.org/id/county-council/staffordshire  
Staffordshire County Council,Stat-OOC transport,,01/07/2022,732.58,Personal Travel Budgets,Personal Travel Budgets,http://opendatacommunities.org/id/county-council/staffordshire  
Staffordshire County Council,Amey Winter Maintenance,C M ROWLINSON LTD,05/07/2022,14414.40,Winter Maint - Prec Salting,Winter Maint - Prec Salting,http://opendatacommunities.org/id/county-council/staffordshire  
Staffordshire County Council,Amey Winter Maintenance,C M ROWLINSON LTD,05/07/2022,18911.40,Winter Maint - Prec Salting,Winter Maint - Prec Salting,http://opendatacommunities.org/id/county-council/staffordshire  
Staffordshire County Council,Childcare,C RANK,19/07/2022,1200.00,Legal Costs and Stamp Duty,Legal Costs and Stamp Duty,http://opendatacommunities.org/id/county-council/staffordshire  
Staffordshire County Council,Nursery Education Grant,C Tyson,11/07/2022,652.26,Grants Nursery Education Pymnt,Grants Nursery Education Pymnt,http://opendatacommunities.org/id/county-council/staffordshire  
Staffordshire County Council,Nursery Education Grant,C Yallop,11/07/2022,742.58,Grants Nursery Education Pymnt,Grants Nursery Education Pymnt,http://opendatacommunities.org/id/county-council/staffordshire  
Staffordshire County Council,Stat-OOC transport,Cabability Ltd,08/07/2022,9829.81,Home School Contract Vehicles,Home School Contract Vehicles,http://opendatacommunities.org/id/county-council/staffordshire  
Staffordshire County Council,Stat-OOC transport,Cabability Ltd,28/07/2022,9375.40,Home School Contract Vehicles,Home School Contract Vehicles,http://opendatacommunities.org/id/county-council/staffordshire  
Staffordshire County Council,Eastgate Regeneration,Cadence Management Services Ltd,29/07/2022,5760.00,Ext Fees Construction,Ext Fees Construction,http://opendatacommunities.org/id/county-council/staffordshire  
Staffordshire County Council,Cannock Enterprise Centre,CALOR GAS LTD,21/07/2022,1276.28,Gas,Gas,http://opendatacommunities.org/id/county-council/staffordshire  
Staffordshire County Council,Cannock Enterprise Centre,CALOR GAS LTD,21/07/2022,1804.64,Gas,Gas,http://opendatacommunities.org/id/county-council/staffordshire  
Staffordshire County Council,Cannock Enterprise Centre,CALOR GAS LTD,21/07/2022,2090.24,Gas,Gas,http://opendatacommunities.org/id/county-council/staffordshire  
Staffordshire County Council,Statutory Recycling Credits,CANNOCK CHASE COUNCIL,01/07/2022,64312.00,Recycling Credits,Recycling Credits,http://opendatacommunities.org/id/county-council/staffordshire  
Staffordshire County Council,Cannock Tipping Away,CANNOCK CHASE COUNCIL,27/07/2022,709.20,WASTE TRANSPORT,WASTE TRANSPORT,http://opendatacommunities.org/id/county-council/staffordshire  
Staffordshire County Council,Homes for Ukraine,CANNOCK CHASE COUNCIL,13/07/2022,15970.00,Payments to other Authorities,Payments to other Authorities,http://opendatacommunities.org/id/county-council/staffordshire  
Staffordshire County Council,Cannock Tipping Away,CANNOCK CHASE COUNCIL,25/07/2022,878.50,WASTE TRANSPORT,WASTE TRANSPORT,http://opendatacommunities.org/id/county-council/staffordshire  
Staffordshire County Council,Cannock Enterprise Centre,CANNOCK CHASE COUNCIL,26/07/2022,935.63,Business Rates,Business Rates,http://opendatacommunities.org/id/county-council/staffordshire  
Staffordshire County Council,7339 Cannock Chase District Co,Cannock Chase District Council,29/07/2022,3620.00,Rent / Lease Of Premises,Rent / Lease Of Premises,http://opendatacommunities.org/id/county-council/staffordshire  
Staffordshire County Council,7339 Cannock Chase District Co,Cannock Chase District Council,22/07/2022,1867.50,Rent / Lease Of Premises,Rent / Lease Of Premises,http://opendatacommunities.org/id/county-council/staffordshire  
Staffordshire County Council,LMG Cannock,CANNOCK CHASE HIGH SCHOOL,18/07/2022,1800.00,Devolved Services,Devolved Services,http://opendatacommunities.org/id/county-council/staffordshire  
Staffordshire County Council,LMG Cannock,CANNOCK CHASE HIGH SCHOOL,18/07/2022,1800.00,Devolved Services,Devolved Services,http://opendatacommunities.org/id/county-council/staffordshire  
Staffordshire County Council,Corporate Accounting,CAPITA BUSINESS SERVICES LTD,05/07/2022,5991.36,CONSULTANT FEES,CONSULTANT FEES,http://opendatacommunities.org/id/county-council/staffordshire  
Staffordshire County Council,People Solutions,CAPITA RESOURCING LIMITED,27/07/2022,1996.49,Subscriptions General,Subscriptions General,http://opendatacommunities.org/id/county-council/staffordshire  
Staffordshire County Council,Think 2 Project,Care by Claire,11/07/2022,923.06,Awards Funded Childcare Places,Awards Funded Childcare Places,http://opendatacommunities.org/id/county-council/staffordshire  
Staffordshire County Council,Nursery Education Grant,Care by Claire,11/07/2022,1767.24,Grants Nursery Education Pymnt,Grants Nursery Education Pymnt,http://opendatacommunities.org/id/county-council/staffordshire  
Staffordshire County Council,Tamworth LD Team,Care First,01/07/2022,2726.35,Day Care,Day Care,http://opendatacommunities.org/id/county-council/staffordshire  
Staffordshire County Council,Tamworth LD Team,Care First,01/07/2022,2003.04,Day Care,Day Care,http://opendatacommunities.org/id/county-council/staffordshire  
Staffordshire County Council,1348 Greenfields House ST13 6L,CARE SHOP,20/07/2022,796.94,Cleaning Materials supplies,Cleaning Materials supplies,http://opendatacommunities.org/id/county-council/staffordshire  
Staffordshire County Council,114 Douglas Road,CARE SHOP,07/07/2022,557.83,Furniture & Bedding,Furniture & Bedding,http://opendatacommunities.org/id/county-council/staffordshire  
Staffordshire County Council,Independent School Fee Special,CARE TODAY,29/07/2022,4319.92,Fees to Independent Schools,Fees to Independent Schools,http://opendatacommunities.org/id/county-council/staffordshire  
Staffordshire County Council,Independent School Fee Special,CARE TODAY,29/07/2022,4319.92,Fees to Independent Schools,Fees to Independent Schools,http://opendatacommunities.org/id/county-council/staffordshire  
Staffordshire County Council,Independent School Fee Special,CARE TODAY,29/07/2022,4319.92,Fees to Independent Schools,Fees to Independent Schools,http://opendatacommunities.org/id/county-council/staffordshire  
Staffordshire County Council,Independent School Fee Special,CARE TODAY,29/07/2022,4319.92,Fees to Independent Schools,Fees to Independent Schools,http://opendatacommunities.org/id/county-council/staffordshire  
Staffordshire County Council,Independent School Fee Special,CARE TODAY,29/07/2022,4319.92,Fees to Independent Schools,Fees to Independent Schools,http://opendatacommunities.org/id/county-council/staffordshire  
Staffordshire County Council,Independent School Fee Special,CARE TODAY,29/07/2022,4319.92,Fees to Independent Schools,Fees to Independent Schools,http://opendatacommunities.org/id/county-council/staffordshire  
Staffordshire County Council,Independent School Fee Special,CARE TODAY,29/07/2022,3420.00,Fees to Independent Schools,Fees to Independent Schools,http://opendatacommunities.org/id/county-council/staffordshire  
Staffordshire County Council,Independent School Fee Special,CARE TODAY,29/07/2022,4319.92,Fees to Independent Schools,Fees to Independent Schools,http://opendatacommunities.org/id/county-council/staffordshire  
Staffordshire County Council,Independent School Fee Special,CARE TODAY,29/07/2022,4319.92,Fees to Independent Schools,Fees to Independent Schools,http://opendatacommunities.org/id/county-council/staffordshire  
Staffordshire County Council,Independent School Fee Special,CARE TODAY,29/07/2022,4319.92,Fees to Independent Schools,Fees to Independent Schools,http://opendatacommunities.org/id/county-council/staffordshire  
Staffordshire County Council,Independent School Fee Special,CARE TODAY,29/07/2022,4319.92,Fees to Independent Schools,Fees to Independent Schools,http://opendatacommunities.org/id/county-council/staffordshire  
Staffordshire County Council,E Staffs LD Team,Care World Wide,15/07/2022,3120.00,Supported Group Care,Supported Group Care,http://opendatacommunities.org/id/county-council/staffordshire  
Staffordshire County Council,E Staffs LD Team,Care World Wide,11/07/2022,2600.00,Supported Group Care,Supported Group Care,http://opendatacommunities.org/id/county-council/staffordshire  
Staffordshire County Council,Lichfield LD Team,Care World Wide,15/07/2022,3840.00,Supported Group Care,Supported Group Care,http://opendatacommunities.org/id/county-council/staffordshire  
Staffordshire County Council,MCA / DoLs / AMHP,Carmiya Cee Limited,01/07/2022,1150.00,Independent Investigations,Independent Investigations,http://opendatacommunities.org/id/county-council/staffordshire  
Staffordshire County Council,MCA / DoLs / AMHP,Carmiya Cee Limited,15/07/2022,1380.00,Independent Investigations,Independent Investigations,http://opendatacommunities.org/id/county-council/staffordshire  
Staffordshire County Council,MCA / DoLs / AMHP,Carmiya Cee Limited,27/07/2022,2300.00,Independent Investigations,Independent Investigations,http://opendatacommunities.org/id/county-council/staffordshire  
Staffordshire County Council,Stat-OOC transport,,01/07/2022,791.78,Personal Travel Budgets,Personal Travel Budgets,http://opendatacommunities.org/id/county-council/staffordshire  
Staffordshire County Council,Specialist Assessment,Carter Brown The Expert Service Limited,06/07/2022,1504.56,Prev Supp Legal Costs,Prev Supp Legal Costs,http://opendatacommunities.org/id/county-council/staffordshire  
Staffordshire County Council,Specialist Assessment,Carter Brown The Expert Service Limited,25/07/2022,2500.00,Prev Supp Legal Costs,Prev Supp Legal Costs,http://opendatacommunities.org/id/county-council/staffordshire  
Staffordshire County Council,Specialist Assessment,Carter Brown The Expert Service Limited,25/07/2022,2500.00,Prev Supp Legal Costs,Prev Supp Legal Costs,http://opendatacommunities.org/id/county-council/staffordshire  
Staffordshire County Council,Specialist Assessment,Carter Brown The Expert Service Limited,20/07/2022,1481.64,Prev Supp Legal Costs,Prev Supp Legal Costs,http://opendatacommunities.org/id/county-council/staffordshire  
Staffordshire County Council,Case Manage Team -Central West,Carter Brown The Expert Service Limited,25/07/2022,2134.68,legal services,legal services,http://opendatacommunities.org/id/county-council/staffordshire  
Staffordshire County Council,Think 2 Project,CARVER ROAD PLAYGROUP,11/07/2022,1599.96,Awards Funded Childcare Places,Awards Funded Childcare Places,http://opendatacommunities.org/id/county-council/staffordshire  
Staffordshire County Council,Nursery Education Grant,CARVER ROAD PLAYGROUP,11/07/2022,7875.03,Grants Nursery Education Pymnt,Grants Nursery Education Pymnt,http://opendatacommunities.org/id/county-council/staffordshire  
Staffordshire County Council,Stat-OOC transport,Casper Cars,01/07/2022,2246.37,Home School Contract Vehicles,Home School Contract Vehicles,http://opendatacommunities.org/id/county-council/staffordshire  
Staffordshire County Council,Nursery Education Grant,Castle Primary School,11/07/2022,2049.79,Grants Nursery Education Pymnt,Grants Nursery Education Pymnt,http://opendatacommunities.org/id/county-council/staffordshire  
Staffordshire County Council,Nursery Education Grant,Castlechurch Primary School,11/07/2022,6640.16,Grants Nursery Education Pymnt,Grants Nursery Education Pymnt,http://opendatacommunities.org/id/county-council/staffordshire  
Staffordshire County Council,Nursery Education Grant,Caterpillars Nursery,11/07/2022,6544.16,Grants Nursery Education Pymnt,Grants Nursery Education Pymnt,http://opendatacommunities.org/id/county-council/staffordshire  
Staffordshire County Council,HAF Summer 2022,Caudwell Children,04/07/2022,8223.36,OTHER HIRED SERVICES,OTHER HIRED SERVICES,http://opendatacommunities.org/id/county-council/staffordshire  
Staffordshire County Council,"Server, Storage and DBA",CDW Limited UK,22/07/2022,62300.21,Purchase of Hardware,Purchase of Hardware,http://opendatacommunities.org/id/county-council/staffordshire  
Staffordshire County Council,Nursery Education Grant,CEAT: Three Peaks Primary Academy,11/07/2022,18386.28,Grants Nursery Education Pymnt,Grants Nursery Education Pymnt,http://opendatacommunities.org/id/county-council/staffordshire  
Staffordshire County Council,Think 2 Project,Cedar Tree Pre-School,11/07/2022,536.74,Awards Funded Childcare Places,Awards Funded Childcare Places,http://opendatacommunities.org/id/county-council/staffordshire  
Staffordshire County Council,Nursery Education Grant,Cedar Tree Pre-School,11/07/2022,4413.65,Grants Nursery Education Pymnt,Grants Nursery Education Pymnt,http://opendatacommunities.org/id/county-council/staffordshire  
Staffordshire County Council,South Staffs Coroner,Central England Co-operative,06/07/2022,1530.00,OTHER HIRED SERVICES,OTHER HIRED SERVICES,http://opendatacommunities.org/id/county-council/staffordshire  
Staffordshire County Council,South Staffs Coroner,Central England Co-operative,06/07/2022,1170.00,OTHER HIRED SERVICES,OTHER HIRED SERVICES,http://opendatacommunities.org/id/county-council/staffordshire  
Staffordshire County Council,Think 2 Project,CENTRAL PRE SCH PLAYGROUP,11/07/2022,2942.86,Awards Funded Childcare Places,Awards Funded Childcare Places,http://opendatacommunities.org/id/county-council/staffordshire  
Staffordshire County Council,Rights of Way,CENTREWIRE LTD,06/07/2022,4536.00,General Equipment Purchase,General Equipment Purchase,http://opendatacommunities.org/id/county-council/staffordshire  
Staffordshire County Council,Haulage & Materials,Certas Energy UK LTD,05/07/2022,3675.12,Petrol & Oil,Petrol & Oil,http://opendatacommunities.org/id/county-council/staffordshire  
Staffordshire County Council,Haulage & Materials,Certas Energy UK LTD,07/07/2022,3745.68,Petrol & Oil,Petrol & Oil,http://opendatacommunities.org/id/county-council/staffordshire  
Staffordshire County Council,Haulage & Materials,Certas Energy UK LTD,06/07/2022,1887.00,Petrol & Oil,Petrol & Oil,http://opendatacommunities.org/id/county-council/staffordshire  
Staffordshire County Council,Haulage & Materials,Certas Energy UK LTD,08/07/2022,1304.89,Petrol & Oil,Petrol & Oil,http://opendatacommunities.org/id/county-council/staffordshire  
Staffordshire County Council,Haulage & Materials,Certas Energy UK LTD,11/07/2022,1751.35,Petrol & Oil,Petrol & Oil,http://opendatacommunities.org/id/county-council/staffordshire  
Staffordshire County Council,Haulage & Materials,Certas Energy UK LTD,22/07/2022,1875.24,Petrol & Oil,Petrol & Oil,http://opendatacommunities.org/id/county-council/staffordshire  
Staffordshire County Council,Haulage & Materials,Certas Energy UK LTD,07/07/2022,1337.00,Petrol & Oil,Petrol & Oil,http://opendatacommunities.org/id/county-council/staffordshire  
Staffordshire County Council,Nursery Education Grant,Chadsmead Primary Academy,11/07/2022,8066.88,Grants Nursery Education Pymnt,Grants Nursery Education Pymnt,http://opendatacommunities.org/id/county-council/staffordshire  
Staffordshire County Council,Think 2 Project,CHAPEL STREET NURSERY,11/07/2022,533.32,Awards Funded Childcare Places,Awards Funded Childcare Places,http://opendatacommunities.org/id/county-council/staffordshire  
Staffordshire County Council,Nursery Education Grant,CHAPEL STREET NURSERY,11/07/2022,3568.50,Grants Nursery Education Pymnt,Grants Nursery Education Pymnt,http://opendatacommunities.org/id/county-council/staffordshire  
Staffordshire County Council,ES Child in Care/Care Leavers,Charles Watson Taxis,28/07/2022,1320.00,Home School Contract Vehicles,Home School Contract Vehicles,http://opendatacommunities.org/id/county-council/staffordshire  
Staffordshire County Council,Stat-OOC transport,Charles Watson Taxis,28/07/2022,4433.08,Home School Contract Vehicles,Home School Contract Vehicles,http://opendatacommunities.org/id/county-council/staffordshire  
Staffordshire County Council,Stat-OOC transport,,01/07/2022,675.71,Personal Travel Budgets,Personal Travel Budgets,http://opendatacommunities.org/id/county-council/staffordshire  
Staffordshire County Council,Highways Laboratory,Charnwood Instrumentation Servs LTD,05/07/2022,676.80,General Equipment Repair/Maint,General Equipment Repair/Maint,http://opendatacommunities.org/id/county-council/staffordshire  
Staffordshire County Council,Nursery Education Grant,Charnwood Primary Academy,11/07/2022,11349.45,Grants Nursery Education Pymnt,Grants Nursery Education Pymnt,http://opendatacommunities.org/id/county-council/staffordshire  
Staffordshire County Council,Afghan Resettlement Scheme,Charnwood Primary Academy,21/07/2022,2700.00,Other Agency Contributions,Other Agency Contributions,http://opendatacommunities.org/id/county-council/staffordshire  
Staffordshire County Council,Nursery Education Grant,Chase Grammar School.,11/07/2022,1304.50,Grants Nursery Education Pymnt,Grants Nursery Education Pymnt,http://opendatacommunities.org/id/county-council/staffordshire  
Staffordshire County Council,CRF Staffs Apprenticeship 500,Chasebuild ltd,07/07/2022,5000.00,Grants to third parties,Grants to third parties,http://opendatacommunities.org/id/county-council/staffordshire  
Staffordshire County Council,CRF Staffs Apprenticeship 500,Chasebuild ltd,07/07/2022,5000.00,Grants to third parties,Grants to third parties,http://opendatacommunities.org/id/county-council/staffordshire  
Staffordshire County Council,CRF Staffs Apprenticeship 500,Chasebuild ltd,07/07/2022,5000.00,Grants to third parties,Grants to third parties,http://opendatacommunities.org/id/county-council/staffordshire  
Staffordshire County Council,StrategicHubOutreach,Chaselea Alternate Provision Academy,18/07/2022,27500.00,Devolved Services,Devolved Services,http://opendatacommunities.org/id/county-council/staffordshire  
Staffordshire County Council,Foster Care Recruitment Team,CHEADLE & TEAN TIMES LTD,11/07/2022,720.00,Advertising,Advertising,http://opendatacommunities.org/id/county-council/staffordshire  
Staffordshire County Council,Think 2 Project,Cheadle Kindergarten,11/07/2022,1599.96,Awards Funded Childcare Places,Awards Funded Childcare Places,http://opendatacommunities.org/id/county-council/staffordshire  
Staffordshire County Council,Nursery Education Grant,Cheadle Kindergarten,11/07/2022,5452.06,Grants Nursery Education Pymnt,Grants Nursery Education Pymnt,http://opendatacommunities.org/id/county-council/staffordshire  
Staffordshire County Council,Fost Central & Approval,Cheadle Kindergarten,29/07/2022,564.00,Fostering Special Guardianship,Fostering Special Guardianship,http://opendatacommunities.org/id/county-council/staffordshire  
Staffordshire County Council,Think 2 Project,CHEEKY MONKEYS DAY NURSERY,11/07/2022,1302.54,Awards Funded Childcare Places,Awards Funded Childcare Places,http://opendatacommunities.org/id/county-council/staffordshire  
Staffordshire County Council,Nursery Education Grant,CHEEKY MONKEYS DAY NURSERY,11/07/2022,9091.83,Grants Nursery Education Pymnt,Grants Nursery Education Pymnt,http://opendatacommunities.org/id/county-council/staffordshire  
Staffordshire County Council,Lichfield LD Team,CHERRY ORCHARD GARDEN SERVICES,29/07/2022,594.88,Day Care,Day Care,http://opendatacommunities.org/id/county-council/staffordshire  
Staffordshire County Council,Lichfield LD Team,CHERRY ORCHARD GARDEN SERVICES,29/07/2022,1019.84,Day Care,Day Care,http://opendatacommunities.org/id/county-council/staffordshire  
Staffordshire County Council,Independent Sch Fees Mainstr'm,Cheshire Alternative Provision Schl,28/07/2022,1185.00,Fees to Independent Schools,Fees to Independent Schools,http://opendatacommunities.org/id/county-council/staffordshire  
Staffordshire County Council,Further Education Placements,Cheshire College South & West,15/07/2022,1863.00,Events and Competitions,Events and Competitions,http://opendatacommunities.org/id/county-council/staffordshire  
Staffordshire County Council,Think 2 Project,Chesterton Primary School,11/07/2022,1733.30,Awards Funded Childcare Places,Awards Funded Childcare Places,http://opendatacommunities.org/id/county-council/staffordshire  
Staffordshire County Council,Nursery Education Grant,Chesterton Primary School,11/07/2022,4357.35,Grants Nursery Education Pymnt,Grants Nursery Education Pymnt,http://opendatacommunities.org/id/county-council/staffordshire  
Staffordshire County Council,Specialist Assessment,Child Psychology Service,27/07/2022,572.90,Prev Supp Legal Costs,Prev Supp Legal Costs,http://opendatacommunities.org/id/county-council/staffordshire  
Staffordshire County Council,Adoption Support Fund,Child Psychology Service,26/07/2022,525.00,PROFESSIONAL FEES,PROFESSIONAL FEES,http://opendatacommunities.org/id/county-council/staffordshire  
Staffordshire County Council,Adoption Support Fund,Child Psychology Service,04/07/2022,635.00,PROFESSIONAL FEES,PROFESSIONAL FEES,http://opendatacommunities.org/id/county-council/staffordshire  
Staffordshire County Council,Adoption Support Fund,Child Psychology Service,26/07/2022,560.00,PROFESSIONAL FEES,PROFESSIONAL FEES,http://opendatacommunities.org/id/county-council/staffordshire  
Staffordshire County Council,Adoption Support Fund,Child Psychology Service,28/07/2022,560.00,PROFESSIONAL FEES,PROFESSIONAL FEES,http://opendatacommunities.org/id/county-council/staffordshire  
Staffordshire County Council,Adoption Support Fund,Child Psychology Service,28/07/2022,647.25,PROFESSIONAL FEES,PROFESSIONAL FEES,http://opendatacommunities.org/id/county-council/staffordshire  
Staffordshire County Council,Adoption Support Fund,Child Psychology Service,28/07/2022,945.00,PROFESSIONAL FEES,PROFESSIONAL FEES,http://opendatacommunities.org/id/county-council/staffordshire  
Staffordshire County Council,Adoption Support Fund,Child Psychology Service,29/07/2022,840.00,PROFESSIONAL FEES,PROFESSIONAL FEES,http://opendatacommunities.org/id/county-council/staffordshire  
Staffordshire County Council,Think 2 Project,Children 1st Nursery,11/07/2022,4354.17,Awards Funded Childcare Places,Awards Funded Childcare Places,http://opendatacommunities.org/id/county-council/staffordshire  
Staffordshire County Council,Nursery Education Grant,Children 1st Nursery,11/07/2022,26099.12,Grants Nursery Education Pymnt,Grants Nursery Education Pymnt,http://opendatacommunities.org/id/county-council/staffordshire  
Staffordshire County Council,Adoption Support Fund,Childrens Choice Therapy Service Ltd,01/07/2022,618.50,PROFESSIONAL FEES,PROFESSIONAL FEES,http://opendatacommunities.org/id/county-council/staffordshire  
Staffordshire County Council,Adoption Support Fund,Childrens Choice Therapy Service Ltd,27/07/2022,787.50,PROFESSIONAL FEES,PROFESSIONAL FEES,http://opendatacommunities.org/id/county-council/staffordshire  
Staffordshire County Council,Speech and Language/O Therapy,Childrens Choice Therapy Service Ltd,11/07/2022,501.20,OTHER HIRED SERVICES,OTHER HIRED SERVICES,http://opendatacommunities.org/id/county-council/staffordshire  
Staffordshire County Council,Prevention and Placement,Children's First Consultancy,05/07/2022,1037.40,CONSULTANT FEES,CONSULTANT FEES,http://opendatacommunities.org/id/county-council/staffordshire  
Staffordshire County Council,Fost Central & Approval,Chris Dennison Consulting Ltd,05/07/2022,1785.00,other services external,other services external,http://opendatacommunities.org/id/county-council/staffordshire  
Staffordshire County Council,Nursery Education Grant,Christ The King T/A St Mary's CPS,11/07/2022,10149.75,Grants Nursery Education Pymnt,Grants Nursery Education Pymnt,http://opendatacommunities.org/id/county-council/staffordshire  
Staffordshire County Council,1857 MarquisDriveBrindleyHeath,CHUBB FIRE & SECURITY LTD,14/07/2022,738.00,Service/Test Intruder Alarms,Service/Test Intruder Alarms,http://opendatacommunities.org/id/county-council/staffordshire  
Staffordshire County Council,Castle House (The Hub),CHUBB FIRE & SECURITY LTD,11/07/2022,853.87,Day to Day Electrical Services,Day to Day Electrical Services,http://opendatacommunities.org/id/county-council/staffordshire  
Staffordshire County Council,Shire Hall Enterprise Centre,CHUBB FIRE & SECURITY LTD,21/07/2022,2854.20,General Equipment Purchase,General Equipment Purchase,http://opendatacommunities.org/id/county-council/staffordshire  
Staffordshire County Council,Rising Brook High School,CHUBB FIRE & SECURITY LTD,20/07/2022,738.00,Service/Test Intruder Alarms,Service/Test Intruder Alarms,http://opendatacommunities.org/id/county-council/staffordshire  
Staffordshire County Council,Nursery Education Grant,Church Eaton Primary School,11/07/2022,3116.64,Grants Nursery Education Pymnt,Grants Nursery Education Pymnt,http://opendatacommunities.org/id/county-council/staffordshire  
Staffordshire County Council,Think 2 Project,CHURCH LEIGH PRE SCH PLAYGROUP,11/07/2022,1066.65,Awards Funded Childcare Places,Awards Funded Childcare Places,http://opendatacommunities.org/id/county-council/staffordshire  
Staffordshire County Council,Nursery Education Grant,CHURCH LEIGH PRE SCH PLAYGROUP,11/07/2022,3350.43,Grants Nursery Education Pymnt,Grants Nursery Education Pymnt,http://opendatacommunities.org/id/county-council/staffordshire  
Staffordshire County Council,Think 2 Project,Churchfield C E Primary Academy,11/07/2022,902.55,Awards Funded Childcare Places,Awards Funded Childcare Places,http://opendatacommunities.org/id/county-council/staffordshire  
Staffordshire County Council,Nursery Education Grant,Churchfield C E Primary Academy,11/07/2022,4654.32,Grants Nursery Education Pymnt,Grants Nursery Education Pymnt,http://opendatacommunities.org/id/county-council/staffordshire  
Staffordshire County Council,Nursery Education Grant,CHURCHFIELDS PRIM SCHOOL,11/07/2022,5605.47,Grants Nursery Education Pymnt,Grants Nursery Education Pymnt,http://opendatacommunities.org/id/county-council/staffordshire  
Staffordshire County Council,Cannock Enterprise Centre,Citron Hygiene,29/07/2022,3818.89,General Equipment Purchase,General Equipment Purchase,http://opendatacommunities.org/id/county-council/staffordshire  
Staffordshire County Council,Bridge Short Stay School,CITY CARS (MIDLANDS)LTD,07/07/2022,20837.31,Home School Contract Vehicles,Home School Contract Vehicles,http://opendatacommunities.org/id/county-council/staffordshire  
Staffordshire County Council,Cicely Haughton School,CITY CENTRE CENTRAL,12/07/2022,153242.95,Home School Contract Vehicles,Home School Contract Vehicles,http://opendatacommunities.org/id/county-council/staffordshire  
Staffordshire County Council,Cicely Haughton School,CITY CENTRE CENTRAL,29/07/2022,147596.83,Home School Contract Vehicles,Home School Contract Vehicles,http://opendatacommunities.org/id/county-council/staffordshire  
Staffordshire County Council,Stat-OOC transport,City Link Private Hire,22/07/2022,579.39,Home School Contract Vehicles,Home School Contract Vehicles,http://opendatacommunities.org/id/county-council/staffordshire  
Staffordshire County Council,Think 2 Project,CLAYTON PRESCHOOL PLAYGROUP,11/07/2022,799.98,Awards Funded Childcare Places,Awards Funded Childcare Places,http://opendatacommunities.org/id/county-council/staffordshire  
Staffordshire County Council,Nursery Education Grant,CLAYTON PRESCHOOL PLAYGROUP,11/07/2022,1927.53,Grants Nursery Education Pymnt,Grants Nursery Education Pymnt,http://opendatacommunities.org/id/county-council/staffordshire  
Staffordshire County Council,Licences and subscriptions-Pri,CLEAPSS,08/07/2022,2585.00,SOFTWARE LICENCES,SOFTWARE LICENCES,http://opendatacommunities.org/id/county-council/staffordshire  
Staffordshire County Council,Licences and subscriptions-Pri,CLEAPSS,18/07/2022,11629.65,SOFTWARE LICENCES,SOFTWARE LICENCES,http://opendatacommunities.org/id/county-council/staffordshire  
Staffordshire County Council,Central Programme Costs,,29/07/2022,673.00,Other Travel,Other Travel,http://opendatacommunities.org/id/county-council/staffordshire  
Staffordshire County Council,Think 2 Project,CLOUD 9 @ ST BERNADETTES,11/07/2022,1866.62,Awards Funded Childcare Places,Awards Funded Childcare Places,http://opendatacommunities.org/id/county-council/staffordshire  
Staffordshire County Council,Nursery Education Grant,CLOUD 9 @ ST BERNADETTES,11/07/2022,6323.85,Grants Nursery Education Pymnt,Grants Nursery Education Pymnt,http://opendatacommunities.org/id/county-council/staffordshire  
Staffordshire County Council,Think 2 Project,CLOUD 9 @ ST BERNADETTES,11/07/2022,710.10,Awards Funded Childcare Places,Awards Funded Childcare Places,http://opendatacommunities.org/id/county-council/staffordshire  
Staffordshire County Council,Meadows School,CLOWES COACHES,29/07/2022,4261.44,Home School Contract Vehicles,Home School Contract Vehicles,http://opendatacommunities.org/id/county-council/staffordshire  
Staffordshire County Council,Think 2 Project,Codsall Community Nursery,11/07/2022,2010.22,Awards Funded Childcare Places,Awards Funded Childcare Places,http://opendatacommunities.org/id/county-council/staffordshire  
Staffordshire County Council,Nursery Education Grant,Codsall Community Nursery,11/07/2022,532.34,Grants Nursery Education Pymnt,Grants Nursery Education Pymnt,http://opendatacommunities.org/id/county-council/staffordshire  
Staffordshire County Council,Nursery Education Grant,COLLECTIVE VISION TRUST,11/07/2022,3524.96,Grants Nursery Education Pymnt,Grants Nursery Education Pymnt,http://opendatacommunities.org/id/county-council/staffordshire  
Staffordshire County Council,ESFA Community Learning,COLLECTIVE VISION TRUST,11/07/2022,1980.00,Grants To Clubs,Grants To Clubs,http://opendatacommunities.org/id/county-council/staffordshire  
Staffordshire County Council,Amey Routine Highway Maint,Colwich Parish Council,26/07/2022,1591.30,Parish District Grass Cutting,Parish District Grass Cutting,http://opendatacommunities.org/id/county-council/staffordshire  
Staffordshire County Council,Amey Routine Highway Maint,Colwich Parish Council,26/07/2022,1591.30,Parish District Grass Cutting,Parish District Grass Cutting,http://opendatacommunities.org/id/county-council/staffordshire  
Staffordshire County Council,Amey Routine Highway Maint,Colwich Parish Council,26/07/2022,1591.30,Parish District Grass Cutting,Parish District Grass Cutting,http://opendatacommunities.org/id/county-council/staffordshire  
Staffordshire County Council,Amey Routine Highway Maint,Colwich Parish Council,26/07/2022,1591.30,Parish District Grass Cutting,Parish District Grass Cutting,http://opendatacommunities.org/id/county-council/staffordshire  
Staffordshire County Council,Nursery Education Grant,COLWICH PLAYGROUP,11/07/2022,3859.22,Grants Nursery Education Pymnt,Grants Nursery Education Pymnt,http://opendatacommunities.org/id/county-council/staffordshire  
Staffordshire County Council,Various,Comensura Ltd,22/07/2022,199719.88,Agency Staff,Agency Staff,http://opendatacommunities.org/id/county-council/staffordshire  
Staffordshire County Council,Various,Comensura Ltd,15/07/2022,175424.71,Agency Staff,Agency Staff,http://opendatacommunities.org/id/county-council/staffordshire  
Staffordshire County Council,Various,Comensura Ltd,08/07/2022,193116.39,Agency Staff,Agency Staff,http://opendatacommunities.org/id/county-council/staffordshire  
Staffordshire County Council,Various,Comensura Ltd,01/07/2022,177461.78,Agency Staff,Agency Staff,http://opendatacommunities.org/id/county-council/staffordshire  
Staffordshire County Council,District Strategy & Delivery,Comensura Ltd,06/07/2022,61325.64,Agency Staff,Agency Staff,http://opendatacommunities.org/id/county-council/staffordshire  
Staffordshire County Council,District Strategy & Delivery,Comensura Ltd,11/07/2022,30445.90,Agency Staff,Agency Staff,http://opendatacommunities.org/id/county-council/staffordshire  
Staffordshire County Council,District Strategy & Delivery,Comensura Ltd,13/07/2022,30411.35,Agency Staff,Agency Staff,http://opendatacommunities.org/id/county-council/staffordshire  
Staffordshire County Council,Special Schools Maintained Rec,Community Academies Trust,15/07/2022,31663.00,Payments to other Authorities,Payments to other Authorities,http://opendatacommunities.org/id/county-council/staffordshire  
Staffordshire County Council,AEN Funding Academy Recoupment,Community Academies Trust,15/07/2022,26861.00,Grants to third parties,Grants to third parties,http://opendatacommunities.org/id/county-council/staffordshire  
Staffordshire County Council,ESFA Community Learning,Community Forest Services Ltd,07/07/2022,38360.00,Courses,Courses,http://opendatacommunities.org/id/county-council/staffordshire  
Staffordshire County Council,Home to school transport-main,COMMUNITY LINK STAFFORD & DISTRICT,29/07/2022,71325.47,Home School Contract Vehicles,Home School Contract Vehicles,http://opendatacommunities.org/id/county-council/staffordshire  
Staffordshire County Council,HAF Summer 2022,COMMUNITY TOGETHER CIC,04/07/2022,17250.00,OTHER HIRED SERVICES,OTHER HIRED SERVICES,http://opendatacommunities.org/id/county-council/staffordshire  
Staffordshire County Council,Fountains High School,Community Transport Swadlincote,28/07/2022,18253.75,Home School Contract Vehicles,Home School Contract Vehicles,http://opendatacommunities.org/id/county-council/staffordshire  
Staffordshire County Council,Specialist Assessment,Compass Psychology Services,20/07/2022,3177.96,Prev Supp Legal Costs,Prev Supp Legal Costs,http://opendatacommunities.org/id/county-council/staffordshire  
Staffordshire County Council,Specialist Assessment,Compass Psychology Services,28/07/2022,1107.37,Prev Supp Legal Costs,Prev Supp Legal Costs,http://opendatacommunities.org/id/county-council/staffordshire  
Staffordshire County Council,Specialist Assessment,Compass Psychology Services,25/07/2022,1270.16,Prev Supp Legal Costs,Prev Supp Legal Costs,http://opendatacommunities.org/id/county-council/staffordshire  
Staffordshire County Council,Specialist Supp Serv HI Cent,CONNEVANS LTD,15/07/2022,1041.82,Social Aids Sensory Impairment,Social Aids Sensory Impairment,http://opendatacommunities.org/id/county-council/staffordshire  
Staffordshire County Council,People Solutions,Connop  Brown Associates Ltd,14/07/2022,8578.80,PROFESSIONAL FEES,PROFESSIONAL FEES,http://opendatacommunities.org/id/county-council/staffordshire  
Staffordshire County Council,Marketing & Comms,Conservative Party,25/07/2022,36000.00,Conference Fees,Conference Fees,http://opendatacommunities.org/id/county-council/staffordshire  
Staffordshire County Council,Think 2 Project,Co-operative Childcare,11/07/2022,1312.80,Awards Funded Childcare Places,Awards Funded Childcare Places,http://opendatacommunities.org/id/county-council/staffordshire  
Staffordshire County Council,Nursery Education Grant,Co-operative Childcare,11/07/2022,16890.48,Grants Nursery Education Pymnt,Grants Nursery Education Pymnt,http://opendatacommunities.org/id/county-council/staffordshire  
Staffordshire County Council,Fost Central & Approval,Co-operative Childcare,29/07/2022,823.65,Fostering Special Guardianship,Fostering Special Guardianship,http://opendatacommunities.org/id/county-council/staffordshire  
Staffordshire County Council,Home to school transport-main,COPELAND'S TOURS (S-O-T) LTD,28/07/2022,15643.28,Home School Contract Vehicles,Home School Contract Vehicles,http://opendatacommunities.org/id/county-council/staffordshire  
Staffordshire County Council,Complaints Team,CORAM VOICE,01/07/2022,849.00,Independent Investigations,Independent Investigations,http://opendatacommunities.org/id/county-council/staffordshire  
Staffordshire County Council,Complaints Team,CORAM VOICE,01/07/2022,735.00,Independent Investigations,Independent Investigations,http://opendatacommunities.org/id/county-council/staffordshire  
Staffordshire County Council,CAN Assess & Staying Together,CORKYS CARS MIDLANDS LTD,05/07/2022,773.16,S17 TRANSPORT,S17 TRANSPORT,http://opendatacommunities.org/id/county-council/staffordshire  
Staffordshire County Council,LD North (LD North Team),Cornerstone Barristers,19/07/2022,1500.00,Legal Costs and Stamp Duty,Legal Costs and Stamp Duty,http://opendatacommunities.org/id/county-council/staffordshire  
Staffordshire County Council,Childcare,Cornwall Street Chambers,29/07/2022,1020.00,Legal Costs and Stamp Duty,Legal Costs and Stamp Duty,http://opendatacommunities.org/id/county-council/staffordshire  
Staffordshire County Council,Childcare,Cornwall Street Chambers,21/07/2022,1200.00,Legal Costs and Stamp Duty,Legal Costs and Stamp Duty,http://opendatacommunities.org/id/county-council/staffordshire  
Staffordshire County Council,Childcare,Cornwall Street Chambers,28/07/2022,7020.00,Legal Costs and Stamp Duty,Legal Costs and Stamp Duty,http://opendatacommunities.org/id/county-council/staffordshire  
Staffordshire County Council,Lymedale West Business Centre,CORONA ENERGY,14/07/2022,828.82,Gas,Gas,http://opendatacommunities.org/id/county-council/staffordshire  
Staffordshire County Council,Lymedale West Business Centre,CORONA ENERGY,14/07/2022,1882.52,Gas,Gas,http://opendatacommunities.org/id/county-council/staffordshire  
Staffordshire County Council,Pooled Accom Central Charges,CORONA ENERGY,14/07/2022,183101.71,Gas,Gas,http://opendatacommunities.org/id/county-council/staffordshire  
Staffordshire County Council,Meadowyrthe OPH,CORONA ENERGY,14/07/2022,7179.72,Gas,Gas,http://opendatacommunities.org/id/county-council/staffordshire  
Staffordshire County Council,Meadowyrthe OPH,CORONA ENERGY,14/07/2022,7089.54,Gas,Gas,http://opendatacommunities.org/id/county-council/staffordshire  
Staffordshire County Council,Meadowyrthe OPH,CORONA ENERGY,14/07/2022,7293.39,Gas,Gas,http://opendatacommunities.org/id/county-council/staffordshire  
Staffordshire County Council,Meadowyrthe OPH,CORONA ENERGY,14/07/2022,7179.72,Gas,Gas,http://opendatacommunities.org/id/county-council/staffordshire  
Staffordshire County Council,Meadowyrthe OPH,CORONA ENERGY,14/07/2022,7293.39,Gas,Gas,http://opendatacommunities.org/id/county-council/staffordshire  
Staffordshire County Council,Bracken House OPH,CORONA ENERGY,14/07/2022,7770.44,Gas,Gas,http://opendatacommunities.org/id/county-council/staffordshire  
Staffordshire County Council,Bracken House OPH,CORONA ENERGY,14/07/2022,6716.70,Gas,Gas,http://opendatacommunities.org/id/county-council/staffordshire  
Staffordshire County Council,Meadowyrthe OPH,CORONA ENERGY,14/07/2022,6961.07,Gas,Gas,http://opendatacommunities.org/id/county-council/staffordshire  
Staffordshire County Council,Think 2 Project,Coton Green Church Preschool,11/07/2022,2666.63,Awards Funded Childcare Places,Awards Funded Childcare Places,http://opendatacommunities.org/id/county-council/staffordshire  
Staffordshire County Council,Nursery Education Grant,Coton Green Church Preschool,11/07/2022,21986.70,Grants Nursery Education Pymnt,Grants Nursery Education Pymnt,http://opendatacommunities.org/id/county-council/staffordshire  
Staffordshire County Council,Think 2 Project,COTON GREEN PRE-SCHOOL NURSERY,11/07/2022,3786.61,Awards Funded Childcare Places,Awards Funded Childcare Places,http://opendatacommunities.org/id/county-council/staffordshire  
Staffordshire County Council,Nursery Education Grant,COTON GREEN PRE-SCHOOL NURSERY,11/07/2022,10149.65,Grants Nursery Education Pymnt,Grants Nursery Education Pymnt,http://opendatacommunities.org/id/county-council/staffordshire  
Staffordshire County Council,Nursery Education Grant,COTON GREEN PRE-SCHOOL NURSERY,11/07/2022,781.92,Grants Nursery Education Pymnt,Grants Nursery Education Pymnt,http://opendatacommunities.org/id/county-council/staffordshire  
Staffordshire County Council,Home to college transport SEN,County Cabs,29/07/2022,3342.32,Manned Transpt - Hire Medical,Manned Transpt - Hire Medical,http://opendatacommunities.org/id/county-council/staffordshire  
Staffordshire County Council,HAF Summer 2022,Cox Sports Stafford Ltd t/a Sport4Kids,04/07/2022,3200.00,OTHER HIRED SERVICES,OTHER HIRED SERVICES,http://opendatacommunities.org/id/county-council/staffordshire  
Staffordshire County Council,Family and Friends Team,CPK Empowering Families Ltd,08/07/2022,1304.20,Agency Staff,Agency Staff,http://opendatacommunities.org/id/county-council/staffordshire  
Staffordshire County Council,Family and Friends Team,CPK Empowering Families Ltd,01/07/2022,2663.60,Agency Staff,Agency Staff,http://opendatacommunities.org/id/county-council/staffordshire  
Staffordshire County Council,Fost Supervise & Support South,CPK Empowering Families Ltd,08/07/2022,552.40,Fostering Equipment on Loans,Fostering Equipment on Loans,http://opendatacommunities.org/id/county-council/staffordshire  
Staffordshire County Council,S Staffs LD Team,Craegmoor Bentons Lane 297,29/07/2022,4330.40,Supported Group Care,Supported Group Care,http://opendatacommunities.org/id/county-council/staffordshire  
Staffordshire County Council,S Staffs LD Team,Craegmoor Bentons Lane 297,29/07/2022,4330.40,Supported Group Care,Supported Group Care,http://opendatacommunities.org/id/county-council/staffordshire  
Staffordshire County Council,S Staffs LD Team,Craegmoor Bentons Lane 297,29/07/2022,4330.40,Supported Group Care,Supported Group Care,http://opendatacommunities.org/id/county-council/staffordshire  
Staffordshire County Council,E Staffs LD Team,Craegmoor Priory Group,15/07/2022,1831.80,Supported Group Care,Supported Group Care,http://opendatacommunities.org/id/county-council/staffordshire  
Staffordshire County Council,E Staffs LD Team,Craegmoor Priory Group,14/07/2022,1831.80,Supported Group Care,Supported Group Care,http://opendatacommunities.org/id/county-council/staffordshire  
Staffordshire County Council,E Staffs LD Team,Craegmoor Priory Group,14/07/2022,1831.80,Supported Group Care,Supported Group Care,http://opendatacommunities.org/id/county-council/staffordshire  
Staffordshire County Council,E Staffs LD Team,Craegmoor Priory Group,14/07/2022,1831.80,Supported Group Care,Supported Group Care,http://opendatacommunities.org/id/county-council/staffordshire  
Staffordshire County Council,E Staffs LD Team,Craegmoor Priory Group,14/07/2022,1831.80,Supported Group Care,Supported Group Care,http://opendatacommunities.org/id/county-council/staffordshire  
Staffordshire County Council,E Staffs LD Team,Craegmoor Priory Group,15/07/2022,1831.80,Supported Group Care,Supported Group Care,http://opendatacommunities.org/id/county-council/staffordshire  
Staffordshire County Council,S Staffs LD Team,Craegmoor Priory Group,26/07/2022,4050.00,Supported Group Care,Supported Group Care,http://opendatacommunities.org/id/county-council/staffordshire  
Staffordshire County Council,S Staffs LD Team,Craegmoor Priory Group,26/07/2022,5447.14,Supported Group Care,Supported Group Care,http://opendatacommunities.org/id/county-council/staffordshire  
Staffordshire County Council,S Staffs LD Team,Craegmoor Priory Group,13/07/2022,585.00,Supported Group Care,Supported Group Care,http://opendatacommunities.org/id/county-council/staffordshire  
Staffordshire County Council,S Staffs LD Team,Craegmoor Priory Group,26/07/2022,4185.00,Supported Group Care,Supported Group Care,http://opendatacommunities.org/id/county-council/staffordshire  
Staffordshire County Council,S Staffs LD Team,Craegmoor Priory Group,13/07/2022,604.50,Supported Group Care,Supported Group Care,http://opendatacommunities.org/id/county-council/staffordshire  
Staffordshire County Council,S Staffs LD Team,Craegmoor Priory Group,26/07/2022,5628.71,Supported Group Care,Supported Group Care,http://opendatacommunities.org/id/county-council/staffordshire  
Staffordshire County Council,S Staffs LD Team,Craegmoor Priory Group,18/07/2022,5049.55,Supported Group Care,Supported Group Care,http://opendatacommunities.org/id/county-council/staffordshire  
Staffordshire County Council,S Staffs LD Team,Craegmoor Priory Group,15/07/2022,4886.66,Supported Group Care,Supported Group Care,http://opendatacommunities.org/id/county-council/staffordshire  
Staffordshire County Council,S Staffs LD Team,Craegmoor Priory Group,18/07/2022,5049.55,Supported Group Care,Supported Group Care,http://opendatacommunities.org/id/county-council/staffordshire  
Staffordshire County Council,S Staffs LD Team,Craegmoor Priory Group,29/07/2022,5628.71,Supported Group Care,Supported Group Care,http://opendatacommunities.org/id/county-council/staffordshire  
Staffordshire County Council,S Staffs LD Team,Craegmoor Priory Group,29/07/2022,4185.00,Supported Group Care,Supported Group Care,http://opendatacommunities.org/id/county-council/staffordshire  
Staffordshire County Council,S Staffs LD Team,Craegmoor Priory Group,29/07/2022,604.50,Supported Group Care,Supported Group Care,http://opendatacommunities.org/id/county-council/staffordshire  
Staffordshire County Council,S Staffs LD Team,Craegmoor Priory Group,29/07/2022,5049.55,Supported Group Care,Supported Group Care,http://opendatacommunities.org/id/county-council/staffordshire  
Staffordshire County Council,E Staffs LD Team,Craegmoor Priory Group,29/07/2022,1831.80,Supported Group Care,Supported Group Care,http://opendatacommunities.org/id/county-council/staffordshire  
Staffordshire County Council,Tamworth LD Team,Creative Choices CIC,04/07/2022,550.00,Day Care,Day Care,http://opendatacommunities.org/id/county-council/staffordshire  
Staffordshire County Council,Tamworth LD Team,Creative Choices CIC,04/07/2022,550.00,Day Care,Day Care,http://opendatacommunities.org/id/county-council/staffordshire  
Staffordshire County Council,Tamworth LD Team,Creative Choices CIC,04/07/2022,550.00,Day Care,Day Care,http://opendatacommunities.org/id/county-council/staffordshire  
Staffordshire County Council,Tamworth LD Team,Creative Choices CIC,18/07/2022,550.00,Day Care,Day Care,http://opendatacommunities.org/id/county-council/staffordshire  
Staffordshire County Council,Tamworth LD Team,Creative Choices CIC,18/07/2022,550.00,Day Care,Day Care,http://opendatacommunities.org/id/county-council/staffordshire  
Staffordshire County Council,Tamworth LD Team,Creative Choices CIC,18/07/2022,550.00,Day Care,Day Care,http://opendatacommunities.org/id/county-council/staffordshire  
Staffordshire County Council,Cannock Chase LD Team,CREATIVE SUPPORT,19/07/2022,6505.38,Supported Group Care,Supported Group Care,http://opendatacommunities.org/id/county-council/staffordshire  
Staffordshire County Council,Think 2 Project,CROFT DAY NURSERY SCHOOL,11/07/2022,666.65,Awards Funded Childcare Places,Awards Funded Childcare Places,http://opendatacommunities.org/id/county-council/staffordshire  
Staffordshire County Council,Nursery Education Grant,CROFT DAY NURSERY SCHOOL,11/07/2022,4572.53,Grants Nursery Education Pymnt,Grants Nursery Education Pymnt,http://opendatacommunities.org/id/county-council/staffordshire  
Staffordshire County Council,Home to school transport-main,CRUSADE TRAVEL,28/07/2022,5164.94,Home School Contract Vehicles,Home School Contract Vehicles,http://opendatacommunities.org/id/county-council/staffordshire  
Staffordshire County Council,Occupational Health Unit,CTC PHYSIOTHERAPY,28/07/2022,2605.00,CONSULTANT FEES,CONSULTANT FEES,http://opendatacommunities.org/id/county-council/staffordshire  
Staffordshire County Council,Home to school transport-main,CTT (WOLVERHAMPTON) LTD,28/07/2022,7828.21,Home School Contract Vehicles,Home School Contract Vehicles,http://opendatacommunities.org/id/county-council/staffordshire  
Staffordshire County Council,Home to school transport-main,CTT (WOLVERHAMPTON) LTD,28/07/2022,8117.18,Home School Contract Vehicles,Home School Contract Vehicles,http://opendatacommunities.org/id/county-council/staffordshire  
Staffordshire County Council,HRSSC,CYCLESCHEME,08/07/2022,2350.00,Contingency,Contingency,http://opendatacommunities.org/id/county-council/staffordshire  
Staffordshire County Council,Bikeability,CYCLIST TRAINING LTD,11/07/2022,47097.00,CONSULTANT FEES,CONSULTANT FEES,http://opendatacommunities.org/id/county-council/staffordshire  
Staffordshire County Council,Bikeability,CYCLIST TRAINING LTD,05/07/2022,8390.00,CONSULTANT FEES,CONSULTANT FEES,http://opendatacommunities.org/id/county-council/staffordshire  
Staffordshire County Council,Bikeability,CYCLIST TRAINING LTD,11/07/2022,880.00,CONSULTANT FEES,CONSULTANT FEES,http://opendatacommunities.org/id/county-council/staffordshire  
Staffordshire County Council,Think 2 Project,CYGNETS PRE SCHOOL,11/07/2022,1189.72,Awards Funded Childcare Places,Awards Funded Childcare Places,http://opendatacommunities.org/id/county-council/staffordshire  
Staffordshire County Council,Nursery Education Grant,CYGNETS PRE SCHOOL,11/07/2022,7900.91,Grants Nursery Education Pymnt,Grants Nursery Education Pymnt,http://opendatacommunities.org/id/county-council/staffordshire  
Staffordshire County Council,Concessionary Fare Schemes,D &  G BUS,15/07/2022,103786.00,Payments to Bus Operators,Payments to Bus Operators,http://opendatacommunities.org/id/county-council/staffordshire  
Staffordshire County Council,Concessionary Fare Schemes,D &  G BUS,15/07/2022,65291.00,Payments to Bus Operators,Payments to Bus Operators,http://opendatacommunities.org/id/county-council/staffordshire  
Staffordshire County Council,Public Transp Support & Co-ord,D &  G BUS,28/07/2022,59435.38,Payments to Bus Operators,Payments to Bus Operators,http://opendatacommunities.org/id/county-council/staffordshire  
Staffordshire County Council,Public Transp Support & Co-ord,D &  G BUS,28/07/2022,3214.30,Manned Transport - Hire,Manned Transport - Hire,http://opendatacommunities.org/id/county-council/staffordshire  
Staffordshire County Council,Chasetown Special School,D A R K Cars Ltd,07/07/2022,2053.63,Home School Contract Vehicles,Home School Contract Vehicles,http://opendatacommunities.org/id/county-council/staffordshire  
Staffordshire County Council,Chasetown Special School,D A R K Cars Ltd,29/07/2022,2737.43,Home School Contract Vehicles,Home School Contract Vehicles,http://opendatacommunities.org/id/county-council/staffordshire  
Staffordshire County Council,Think 2 Project,D Copeland,11/07/2022,533.32,Awards Funded Childcare Places,Awards Funded Childcare Places,http://opendatacommunities.org/id/county-council/staffordshire  
Staffordshire County Council,Nursery Education Grant,D Copeland,11/07/2022,830.68,Grants Nursery Education Pymnt,Grants Nursery Education Pymnt,http://opendatacommunities.org/id/county-council/staffordshire  
Staffordshire County Council,Stat-OOC transport,,01/07/2022,1580.13,Personal Travel Budgets,Personal Travel Budgets,http://opendatacommunities.org/id/county-council/staffordshire  
Staffordshire County Council,Coppice School,D P JONES TAXIS,29/07/2022,2021.73,Home School Contract Vehicles,Home School Contract Vehicles,http://opendatacommunities.org/id/county-council/staffordshire  
Staffordshire County Council,Nursery Education Grant,D STOTHARD,11/07/2022,652.26,Grants Nursery Education Pymnt,Grants Nursery Education Pymnt,http://opendatacommunities.org/id/county-council/staffordshire  
Staffordshire County Council,Think 2 Project,Danielle Warren,11/07/2022,533.33,Awards Funded Childcare Places,Awards Funded Childcare Places,http://opendatacommunities.org/id/county-council/staffordshire  
Staffordshire County Council,Complaints Team,David Robson,08/07/2022,4550.00,Independent Investigations,Independent Investigations,http://opendatacommunities.org/id/county-council/staffordshire  
Staffordshire County Council,Home to school transport-main,David Wilde T/A Wilde Travel,28/07/2022,2218.16,Home School Contract Vehicles,Home School Contract Vehicles,http://opendatacommunities.org/id/county-council/staffordshire  
Staffordshire County Council,0938 Brewood Library Newport S,DAWKES & CO LTD,12/07/2022,1224.00,Day to Day External Areas,Day to Day External Areas,http://opendatacommunities.org/id/county-council/staffordshire  
Staffordshire County Council,New School - Land At Pye Green,DAWKES & CO LTD,12/07/2022,19912.04,Construction Works,Construction Works,http://opendatacommunities.org/id/county-council/staffordshire  
Staffordshire County Council,Fost Supervise & Support North,Dean & Cauvin Young People's Trust,28/07/2022,986.88,Fostering Equipment on Loans,Fostering Equipment on Loans,http://opendatacommunities.org/id/county-council/staffordshire  
Staffordshire County Council,LEP Core,Deans (Staffordshire) Ltd,12/07/2022,2010.00,EXTERNAL AUDIT FEES,EXTERNAL AUDIT FEES,http://opendatacommunities.org/id/county-council/staffordshire  
Staffordshire County Council,Waterside Court Enterprise Cen,Defib Machines,20/07/2022,1176.00,General Equipment Purchase,General Equipment Purchase,http://opendatacommunities.org/id/county-council/staffordshire  
Staffordshire County Council,SAP Archiving & Other Costs,Deloitte LLP,29/07/2022,6009.82,SOFTWARE LICENCES,SOFTWARE LICENCES,http://opendatacommunities.org/id/county-council/staffordshire  
Staffordshire County Council,Independent Sch Fees Mainstr'm,Demetae Academy Group Ltd,19/07/2022,15800.00,Fees to Independent Schools,Fees to Independent Schools,http://opendatacommunities.org/id/county-council/staffordshire  
Staffordshire County Council,Independent Sch Fees Mainstr'm,Demetae Academy Group Ltd,19/07/2022,15800.00,Fees to Independent Schools,Fees to Independent Schools,http://opendatacommunities.org/id/county-council/staffordshire  
Staffordshire County Council,5438 Staffs Place 1&2Tipping S,DEMMA CONTROLS LTD,08/07/2022,600.00,Day to Day Mechanical Services,Day to Day Mechanical Services,http://opendatacommunities.org/id/county-council/staffordshire  
Staffordshire County Council,"0821 17 Eastgate St, Stafford,",DEMMA CONTROLS LTD,08/07/2022,519.89,Day to Day Electrical Services,Day to Day Electrical Services,http://opendatacommunities.org/id/county-council/staffordshire  
Staffordshire County Council,5438 Staffs Place 1&2Tipping S,DEMMA CONTROLS LTD,28/07/2022,1749.07,Day to Day Mechanical Services,Day to Day Mechanical Services,http://opendatacommunities.org/id/county-council/staffordshire  
Staffordshire County Council,MCA / DoLs / AMHP,Denja Medical Consulting,05/07/2022,1080.00,Medical Fees,Medical Fees,http://opendatacommunities.org/id/county-council/staffordshire  
Staffordshire County Council,MCA / DoLs / AMHP,Denja Medical Consulting,05/07/2022,3000.00,Medical Fees,Medical Fees,http://opendatacommunities.org/id/county-council/staffordshire  
Staffordshire County Council,MCA / DoLs / AMHP,Denja Medical Consulting,05/07/2022,1800.00,Medical Fees,Medical Fees,http://opendatacommunities.org/id/county-council/staffordshire  
Staffordshire County Council,MCA / DoLs / AMHP,Denja Medical Consulting,05/07/2022,1200.00,Medical Fees,Medical Fees,http://opendatacommunities.org/id/county-council/staffordshire  
Staffordshire County Council,Hol Act & Food Prog 2021 (HAF),Department for Education,15/07/2022,38682.06,General Grants,General Grants,http://opendatacommunities.org/id/county-council/staffordshire  
Staffordshire County Council,South Staffs Coroner,Derby Hospital NHS Foundation Trust,28/07/2022,4281.14, BURTON SLA, BURTON SLA,http://opendatacommunities.org/id/county-council/staffordshire  
Staffordshire County Council,South Staffs Coroner,Derby Hospital NHS Foundation Trust,28/07/2022,4281.14, BURTON SLA, BURTON SLA,http://opendatacommunities.org/id/county-council/staffordshire  
Staffordshire County Council,South Staffs Coroner,Derby Hospital NHS Foundation Trust,28/07/2022,4281.14, BURTON SLA, BURTON SLA,http://opendatacommunities.org/id/county-council/staffordshire  
Staffordshire County Council,P16 top up for Indep Specialis,Derwen College,06/07/2022,21413.33,Events and Competitions,Events and Competitions,http://opendatacommunities.org/id/county-council/staffordshire  
Staffordshire County Council,P16 top up for Indep Specialis,Derwen College,06/07/2022,15941.67,Events and Competitions,Events and Competitions,http://opendatacommunities.org/id/county-council/staffordshire  
Staffordshire County Council,P16 top up for Indep Specialis,Derwen College,06/07/2022,15941.67,Events and Competitions,Events and Competitions,http://opendatacommunities.org/id/county-council/staffordshire  
Staffordshire County Council,P16 top up for Indep Specialis,Derwen College,06/07/2022,20917.67,Events and Competitions,Events and Competitions,http://opendatacommunities.org/id/county-council/staffordshire  
Staffordshire County Council,Marketing & Comms,Design By Mint Ltd,11/07/2022,1380.66,Marketing,Marketing,http://opendatacommunities.org/id/county-council/staffordshire  
Staffordshire County Council,Central Programme Costs,DG Private Hire Ltd,15/07/2022,600.00,Other Travel,Other Travel,http://opendatacommunities.org/id/county-council/staffordshire  
Staffordshire County Council,Central Programme Costs,DG Private Hire Ltd,29/07/2022,762.00,Other Travel,Other Travel,http://opendatacommunities.org/id/county-council/staffordshire  
Staffordshire County Council,Concessionary Fare Schemes,Diamond Bus Ltd,14/07/2022,7926.00,Payments to Bus Operators,Payments to Bus Operators,http://opendatacommunities.org/id/county-council/staffordshire  
Staffordshire County Council,Nursery Education Grant,Diane Smith,11/07/2022,1333.80,Grants Nursery Education Pymnt,Grants Nursery Education Pymnt,http://opendatacommunities.org/id/county-council/staffordshire  
Staffordshire County Council,Recruitment & Resourcing,Disclosure and Barring Service,15/07/2022,8105.00,DBS Checks,DBS Checks,http://opendatacommunities.org/id/county-council/staffordshire  
Staffordshire County Council,HWRC Mobilisation,DME Tyres Ltd,06/07/2022,646.80,WASTE MANAGEMENT,WASTE MANAGEMENT,http://opendatacommunities.org/id/county-council/staffordshire  
Staffordshire County Council,HWRC Mobilisation,DME Tyres Ltd,06/07/2022,582.12,WASTE MANAGEMENT,WASTE MANAGEMENT,http://opendatacommunities.org/id/county-council/staffordshire  
Staffordshire County Council,HWRC Mobilisation,DME Tyres Ltd,19/07/2022,1167.48,WASTE MANAGEMENT,WASTE MANAGEMENT,http://opendatacommunities.org/id/county-council/staffordshire  
Staffordshire County Council,HWRC Mobilisation,DME Tyres Ltd,19/07/2022,1256.16,WASTE MANAGEMENT,WASTE MANAGEMENT,http://opendatacommunities.org/id/county-council/staffordshire  
Staffordshire County Council,HWRC Mobilisation,DME Tyres Ltd,28/07/2022,622.32,WASTE MANAGEMENT,WASTE MANAGEMENT,http://opendatacommunities.org/id/county-council/staffordshire  
Staffordshire County Council,HWRC Mobilisation,DME Tyres Ltd,26/07/2022,1265.28,WASTE MANAGEMENT,WASTE MANAGEMENT,http://opendatacommunities.org/id/county-council/staffordshire  
Staffordshire County Council,COVID 19 COMF,Do It Life Social Enterprise Ltd,07/07/2022,12000.00,SOFTWARE LICENCES,SOFTWARE LICENCES,http://opendatacommunities.org/id/county-council/staffordshire  
Staffordshire County Council,Nursery Education Grant,DOLLY MIXTURES DAY NURSERY,11/07/2022,15846.33,Grants Nursery Education Pymnt,Grants Nursery Education Pymnt,http://opendatacommunities.org/id/county-council/staffordshire  
Staffordshire County Council,Nursery Education Grant,DOLLY MIXTURES DAY NURSERY,11/07/2022,3245.67,Grants Nursery Education Pymnt,Grants Nursery Education Pymnt,http://opendatacommunities.org/id/county-council/staffordshire  
Staffordshire County Council,Think 2 Project,Dollymixtures Day Nursery,11/07/2022,1641.00,Awards Funded Childcare Places,Awards Funded Childcare Places,http://opendatacommunities.org/id/county-council/staffordshire  
Staffordshire County Council,Nursery Education Grant,Dollymixtures Day Nursery,11/07/2022,6664.70,Grants Nursery Education Pymnt,Grants Nursery Education Pymnt,http://opendatacommunities.org/id/county-council/staffordshire  
Staffordshire County Council,Equipment Maintenance SET,Dolphin Lifts Midlands Ltd,25/07/2022,900.00,General Equipment Purchase,General Equipment Purchase,http://opendatacommunities.org/id/county-council/staffordshire  
Staffordshire County Council,Equipment Maintenance SET,Dolphin Lifts Midlands Ltd,19/07/2022,1794.41,General Equipment Purchase,General Equipment Purchase,http://opendatacommunities.org/id/county-council/staffordshire  
Staffordshire County Council,Equipment Maintenance SET,Dolphin Lifts Midlands Ltd,28/07/2022,900.00,General Equipment Purchase,General Equipment Purchase,http://opendatacommunities.org/id/county-council/staffordshire  
Staffordshire County Council,HWRC Mobilisation,DONALD WARD LTD,07/07/2022,1184.64,WASTE MANAGEMENT,WASTE MANAGEMENT,http://opendatacommunities.org/id/county-council/staffordshire  
Staffordshire County Council,HWRC Mobilisation,DONALD WARD LTD,07/07/2022,1065.36,WASTE MANAGEMENT,WASTE MANAGEMENT,http://opendatacommunities.org/id/county-council/staffordshire  
Staffordshire County Council,HWRC Mobilisation,DONALD WARD LTD,07/07/2022,1116.60,WASTE MANAGEMENT,WASTE MANAGEMENT,http://opendatacommunities.org/id/county-council/staffordshire  
Staffordshire County Council,HWRC Mobilisation,DONALD WARD LTD,07/07/2022,2040.00,WASTE MANAGEMENT,WASTE MANAGEMENT,http://opendatacommunities.org/id/county-council/staffordshire  
Staffordshire County Council,HWRC Mobilisation,DONALD WARD LTD,08/07/2022,1409.46,WASTE MANAGEMENT,WASTE MANAGEMENT,http://opendatacommunities.org/id/county-council/staffordshire  
Staffordshire County Council,HWRC Mobilisation,DONALD WARD LTD,08/07/2022,1296.54,WASTE MANAGEMENT,WASTE MANAGEMENT,http://opendatacommunities.org/id/county-council/staffordshire  
Staffordshire County Council,HWRC Mobilisation,DONALD WARD LTD,08/07/2022,16325.82,WASTE MANAGEMENT,WASTE MANAGEMENT,http://opendatacommunities.org/id/county-council/staffordshire  
Staffordshire County Council,HWRC Mobilisation,DONALD WARD LTD,08/07/2022,10841.58,WASTE MANAGEMENT,WASTE MANAGEMENT,http://opendatacommunities.org/id/county-council/staffordshire  
Staffordshire County Council,HWRC Mobilisation,DONALD WARD LTD,08/07/2022,909.72,WASTE MANAGEMENT,WASTE MANAGEMENT,http://opendatacommunities.org/id/county-council/staffordshire  
Staffordshire County Council,HWRC Mobilisation,DONALD WARD LTD,08/07/2022,800.22,WASTE MANAGEMENT,WASTE MANAGEMENT,http://opendatacommunities.org/id/county-council/staffordshire  
Staffordshire County Council,HWRC Mobilisation,DONALD WARD LTD,29/07/2022,4397.22,WASTE MANAGEMENT,WASTE MANAGEMENT,http://opendatacommunities.org/id/county-council/staffordshire  
Staffordshire County Council,HWRC Mobilisation,DONALD WARD LTD,29/07/2022,9467.94,WASTE MANAGEMENT,WASTE MANAGEMENT,http://opendatacommunities.org/id/county-council/staffordshire  
Staffordshire County Council,HWRC Mobilisation,DONALD WARD LTD,29/07/2022,17996.16,WASTE MANAGEMENT,WASTE MANAGEMENT,http://opendatacommunities.org/id/county-council/staffordshire  
Staffordshire County Council,Victoria SLC Speech & Lang ,,25/07/2022,640.10,Home School Direct Payment,Home School Direct Payment,http://opendatacommunities.org/id/county-council/staffordshire  
Staffordshire County Council,SEN Direct Payments,,29/07/2022,2326.22,Direct Payments Other,Direct Payments Other,http://opendatacommunities.org/id/county-council/staffordshire  
Staffordshire County Council,Telecare,Doro Care (UK) Ltd,04/07/2022,722.57,OTHER HIRED SERVICES,OTHER HIRED SERVICES,http://opendatacommunities.org/id/county-council/staffordshire  
Staffordshire County Council,Telecare,Doro Care (UK) Ltd,04/07/2022,2001.00,OTHER HIRED SERVICES,OTHER HIRED SERVICES,http://opendatacommunities.org/id/county-council/staffordshire  
Staffordshire County Council,Think 2 Project,Dosthill Nursery and Care Club,11/07/2022,799.98,Awards Funded Childcare Places,Awards Funded Childcare Places,http://opendatacommunities.org/id/county-council/staffordshire  
Staffordshire County Council,Nursery Education Grant,Dosthill Nursery and Care Club,11/07/2022,8127.54,Grants Nursery Education Pymnt,Grants Nursery Education Pymnt,http://opendatacommunities.org/id/county-council/staffordshire  
Staffordshire County Council,Think 2 Project,Dosthill Nursery and Care Club,11/07/2022,1466.64,Awards Funded Childcare Places,Awards Funded Childcare Places,http://opendatacommunities.org/id/county-council/staffordshire  
Staffordshire County Council,Nursery Education Grant,Dosthill Nursery and Care Club,11/07/2022,3948.10,Grants Nursery Education Pymnt,Grants Nursery Education Pymnt,http://opendatacommunities.org/id/county-council/staffordshire  
Staffordshire County Council,Nursery Education Grant,Dosthill Nursery and Care Club,11/07/2022,5179.60,Grants Nursery Education Pymnt,Grants Nursery Education Pymnt,http://opendatacommunities.org/id/county-council/staffordshire  
Staffordshire County Council,Nursery Education Grant,Dosthill Nursery and Care Club,11/07/2022,9406.07,Grants Nursery Education Pymnt,Grants Nursery Education Pymnt,http://opendatacommunities.org/id/county-council/staffordshire  
Staffordshire County Council,Nursery Education Grant,Dosthill Nursery and Care Club,11/07/2022,6088.46,Grants Nursery Education Pymnt,Grants Nursery Education Pymnt,http://opendatacommunities.org/id/county-council/staffordshire  
Staffordshire County Council,Nursery Education Grant,Dosthill Nursery and Care Club,11/07/2022,10411.42,Grants Nursery Education Pymnt,Grants Nursery Education Pymnt,http://opendatacommunities.org/id/county-council/staffordshire  
Staffordshire County Council,Think 2 Project,DOSTHILL PARK PRE SCHOOL P GRP,11/07/2022,579.13,Awards Funded Childcare Places,Awards Funded Childcare Places,http://opendatacommunities.org/id/county-council/staffordshire  
Staffordshire County Council,Nursery Education Grant,DOSTHILL PARK PRE SCHOOL P GRP,11/07/2022,7275.21,Grants Nursery Education Pymnt,Grants Nursery Education Pymnt,http://opendatacommunities.org/id/county-council/staffordshire  
Staffordshire County Council,LD North (LD North Team),Doughty Street Chambers,15/07/2022,1800.00,Legal Costs and Stamp Duty,Legal Costs and Stamp Duty,http://opendatacommunities.org/id/county-council/staffordshire  
Staffordshire County Council,Home to school transport-main,DOVELIN CARS,28/07/2022,17784.96,Home School Contract Vehicles,Home School Contract Vehicles,http://opendatacommunities.org/id/county-council/staffordshire  
Staffordshire County Council,South Staffs Coroner,Dr A Hitchcock,28/07/2022,3470.50,INQ EXPS S STAFFS,INQ EXPS S STAFFS,http://opendatacommunities.org/id/county-council/staffordshire  
Staffordshire County Council,South Staffs Coroner,Dr Adrian T Warfield,06/07/2022,927.50,INQ EXPS S STAFFS,INQ EXPS S STAFFS,http://opendatacommunities.org/id/county-council/staffordshire  
Staffordshire County Council,MCA / DoLs / AMHP,Dr Jonathon Mayo,01/07/2022,1008.00,Medical Fees,Medical Fees,http://opendatacommunities.org/id/county-council/staffordshire  
Staffordshire County Council,MCA / DoLs / AMHP,Dr Jonathon Mayo,12/07/2022,2448.00,Medical Fees,Medical Fees,http://opendatacommunities.org/id/county-council/staffordshire  
Staffordshire County Council,MCA / DoLs / AMHP,Dr Jonathon Mayo,25/07/2022,1152.00,Medical Fees,Medical Fees,http://opendatacommunities.org/id/county-council/staffordshire  
Staffordshire County Council,Specialist Assessment,Dr L Earley,12/07/2022,3850.00,Prev Supp Legal Costs,Prev Supp Legal Costs,http://opendatacommunities.org/id/county-council/staffordshire  
Staffordshire County Council,Diabetes,Dr Law & Partners,01/07/2022,693.10,Other payments / claims,Other payments / claims,http://opendatacommunities.org/id/county-council/staffordshire  
Staffordshire County Council,Independent School Fee Special,Draycott Moor College,14/07/2022,1608.16,Grants to third parties,Grants to third parties,http://opendatacommunities.org/id/county-council/staffordshire  
Staffordshire County Council,Independent School Fee Special,Draycott Moor College,14/07/2022,1160.00,Grants to third parties,Grants to third parties,http://opendatacommunities.org/id/county-council/staffordshire  
Staffordshire County Council,Further Education Placements,Dudley College of Technology,22/07/2022,3214.00,Events and Competitions,Events and Competitions,http://opendatacommunities.org/id/county-council/staffordshire  
Staffordshire County Council,1 STI Test & Treat,DUDLEY GROUP OF HOSPITALS NHS TRUST,29/07/2022,4040.00,PH OoA Claims - NHS/Las,PH OoA Claims - NHS/Las,http://opendatacommunities.org/id/county-council/staffordshire  
Staffordshire County Council,1 STI Test & Treat,DUDLEY GROUP OF HOSPITALS NHS TRUST,01/07/2022,5615.00,PH OoA Claims - NHS/Las,PH OoA Claims - NHS/Las,http://opendatacommunities.org/id/county-council/staffordshire  
Staffordshire County Council,Nursery Education Grant,E BAILEY,11/07/2022,750.54,Grants Nursery Education Pymnt,Grants Nursery Education Pymnt,http://opendatacommunities.org/id/county-council/staffordshire  
Staffordshire County Council,Staffordshire Warmer Homes,E ON ENERGY SOLUTIONS ( METERING SERV ),28/07/2022,104243.00,PH Cat 1,PH Cat 1,http://opendatacommunities.org/id/county-council/staffordshire  
Staffordshire County Council,HSF Winter Warmth,E ON ENERGY SOLUTIONS ( METERING SERV ),18/07/2022,7960.00,OTHER HIRED SERVICES,OTHER HIRED SERVICES,http://opendatacommunities.org/id/county-council/staffordshire  
Staffordshire County Council,Lighting & Signals Works,E ON Energy Solutions Ltd,21/07/2022,1223.90,Traffic Sigs non Routine Maint,Traffic Sigs non Routine Maint,http://opendatacommunities.org/id/county-council/staffordshire  
Staffordshire County Council,Concessionary Fare Schemes,E S P SYSTEX LTD,28/07/2022,6082.56,Printing General,Printing General,http://opendatacommunities.org/id/county-council/staffordshire  
Staffordshire County Council,DIPS EOTAS,Eagle's Nest,12/07/2022,780.00, Alternative Education Schemes, Alternative Education Schemes,http://opendatacommunities.org/id/county-council/staffordshire  
Staffordshire County Council,SEN Direct Payments,Eagle's Nest,12/07/2022,990.00,Direct Payments Other,Direct Payments Other,http://opendatacommunities.org/id/county-council/staffordshire  
Staffordshire County Council,Think 2 Project,EARLY YEARS EDUCATION CENTRE,11/07/2022,953.83,Awards Funded Childcare Places,Awards Funded Childcare Places,http://opendatacommunities.org/id/county-council/staffordshire  
Staffordshire County Council,Nursery Education Grant,EARLY YEARS EDUCATION CENTRE,11/07/2022,3969.25,Grants Nursery Education Pymnt,Grants Nursery Education Pymnt,http://opendatacommunities.org/id/county-council/staffordshire  
Staffordshire County Council,Think 2 Project,EARLYDAYS NURSERY SCHOOL,11/07/2022,7187.56,Awards Funded Childcare Places,Awards Funded Childcare Places,http://opendatacommunities.org/id/county-council/staffordshire  
Staffordshire County Council,Nursery Education Grant,EARLYDAYS NURSERY SCHOOL,11/07/2022,12490.08,Grants Nursery Education Pymnt,Grants Nursery Education Pymnt,http://opendatacommunities.org/id/county-council/staffordshire  
Staffordshire County Council,Homes for Ukraine,East Staffordshire Borough Council,13/07/2022,23450.00,Payments to other Authorities,Payments to other Authorities,http://opendatacommunities.org/id/county-council/staffordshire  
Staffordshire County Council,Statutory Recycling Credits,EAST STAFFS BOROUGH COUNCIL,01/07/2022,77138.98,Recycling Credits,Recycling Credits,http://opendatacommunities.org/id/county-council/staffordshire  
Staffordshire County Council,Amey Routine Highway Maint,EAST STAFFS BOROUGH COUNCIL,04/07/2022,52564.82,Parish District Grass Cutting,Parish District Grass Cutting,http://opendatacommunities.org/id/county-council/staffordshire  
Staffordshire County Council,MOOR Assess & Staying Together,EASTWOOD NEIGHBOURHOOD NURSERY,11/07/2022,500.00,S17-NURSERY,S17-NURSERY,http://opendatacommunities.org/id/county-council/staffordshire  
Staffordshire County Council,Nursery Education Grant,Edenhurst Nursery In The Westlands,11/07/2022,18019.40,Grants Nursery Education Pymnt,Grants Nursery Education Pymnt,http://opendatacommunities.org/id/county-council/staffordshire  
Staffordshire County Council,Nursery Education Grant,EDENHURST SCHOOL,11/07/2022,1521.94,Grants Nursery Education Pymnt,Grants Nursery Education Pymnt,http://opendatacommunities.org/id/county-council/staffordshire  
Staffordshire County Council,Lighting & Signals Works,EDF Energy,28/07/2022,7339.66,Traffic Signals Energy,Traffic Signals Energy,http://opendatacommunities.org/id/county-council/staffordshire  
Staffordshire County Council,Lighting & Signals Works,EDF Energy,28/07/2022,19528.57,Traffic Signals Energy,Traffic Signals Energy,http://opendatacommunities.org/id/county-council/staffordshire  
Staffordshire County Council,Lighting & Signals Works,EDF Energy,28/07/2022,18988.54,Traffic Signals Energy,Traffic Signals Energy,http://opendatacommunities.org/id/county-council/staffordshire  
Staffordshire County Council,Lighting & Signals Works,EDF Energy,28/07/2022,7162.90,Traffic Signals Energy,Traffic Signals Energy,http://opendatacommunities.org/id/county-council/staffordshire  
Staffordshire County Council,HAF Summer 2022,EDUCATING KIDS OUTDOORS,04/07/2022,3200.00,OTHER HIRED SERVICES,OTHER HIRED SERVICES,http://opendatacommunities.org/id/county-council/staffordshire  
Staffordshire County Council,Independent Sch Fees Mainstr'm,Elmfield Rudolph Steiner School Ltd,05/07/2022,765.00,Fees to Independent Schools,Fees to Independent Schools,http://opendatacommunities.org/id/county-council/staffordshire  
Staffordshire County Council,Think 2 Project,ELMHURST HOUSE PRE SCHOOL,11/07/2022,1989.70,Awards Funded Childcare Places,Awards Funded Childcare Places,http://opendatacommunities.org/id/county-council/staffordshire  
Staffordshire County Council,Nursery Education Grant,ELMHURST HOUSE PRE SCHOOL,11/07/2022,13976.47,Grants Nursery Education Pymnt,Grants Nursery Education Pymnt,http://opendatacommunities.org/id/county-council/staffordshire  
Staffordshire County Council,Nursery Education Grant,Elswick House Nursery School,11/07/2022,5691.28,Grants Nursery Education Pymnt,Grants Nursery Education Pymnt,http://opendatacommunities.org/id/county-council/staffordshire  
Staffordshire County Council,Think 2 Project,ELVEDEN PLAYGROUP,11/07/2022,533.32,Awards Funded Childcare Places,Awards Funded Childcare Places,http://opendatacommunities.org/id/county-council/staffordshire  
Staffordshire County Council,Nursery Education Grant,ELVEDEN PLAYGROUP,11/07/2022,3096.96,Grants Nursery Education Pymnt,Grants Nursery Education Pymnt,http://opendatacommunities.org/id/county-council/staffordshire  
Staffordshire County Council,Stafford Invoice Led Older Peo,Embrace Quality Care,14/07/2022,3998.49,Practical Care,Practical Care,http://opendatacommunities.org/id/county-council/staffordshire  
Staffordshire County Council,Corp. Learning & Development,Emerald Works Ltd,28/07/2022,29880.00,OTHER HIRED SERVICES,OTHER HIRED SERVICES,http://opendatacommunities.org/id/county-council/staffordshire  
Staffordshire County Council,Fountains High School,EMINENCE TRAVEL,04/07/2022,31234.98,Home School Contract Vehicles,Home School Contract Vehicles,http://opendatacommunities.org/id/county-council/staffordshire  
Staffordshire County Council,Fountains High School,EMINENCE TRAVEL,28/07/2022,30400.09,Home School Contract Vehicles,Home School Contract Vehicles,http://opendatacommunities.org/id/county-council/staffordshire  
Staffordshire County Council,Rocklands School,,01/07/2022,596.95,Personal Travel Budgets,Personal Travel Budgets,http://opendatacommunities.org/id/county-council/staffordshire  
Staffordshire County Council,TAM Assess & Staying Together,,15/07/2022,1520.46,S17-CASH ASSISTANCE,S17-CASH ASSISTANCE,http://opendatacommunities.org/id/county-council/staffordshire  
Staffordshire County Council,Saxon Hill School,,01/07/2022,941.02,Personal Travel Budgets,Personal Travel Budgets,http://opendatacommunities.org/id/county-council/staffordshire  
Staffordshire County Council,Nursery Education Grant,Emma Norton,11/07/2022,613.44,Grants Nursery Education Pymnt,Grants Nursery Education Pymnt,http://opendatacommunities.org/id/county-council/staffordshire  
Staffordshire County Council,Rocklands School,,26/07/2022,1128.00,Home School Direct Payment,Home School Direct Payment,http://opendatacommunities.org/id/county-council/staffordshire  
Staffordshire County Council,Healthy Communities,Emotional Logic Ltd,19/07/2022,2988.00,Other payments / claims,Other payments / claims,http://opendatacommunities.org/id/county-council/staffordshire  
Staffordshire County Council,Specialist Assessment,EMOTIONS CLINIC,21/07/2022,1000.00,Prev Supp Legal Costs,Prev Supp Legal Costs,http://opendatacommunities.org/id/county-council/staffordshire  
Staffordshire County Council,Lichfield LD Team,Empowering U Care Ltd,28/07/2022,1961.82,Day Care,Day Care,http://opendatacommunities.org/id/county-council/staffordshire  
Staffordshire County Council,Social Care in Prisons ,Enable Rehab Ltd,15/07/2022,811.95,Agency Staff,Agency Staff,http://opendatacommunities.org/id/county-council/staffordshire  
Staffordshire County Council,Nursery Education Grant,ENGLISH MARTYRS NURSERY,11/07/2022,4364.98,Grants Nursery Education Pymnt,Grants Nursery Education Pymnt,http://opendatacommunities.org/id/county-council/staffordshire  
Staffordshire County Council,Client Landfill Unallocated,ENITIAL,20/07/2022,7305.64,WASTE MANAGEMENT,WASTE MANAGEMENT,http://opendatacommunities.org/id/county-council/staffordshire  
Staffordshire County Council,Client Landfill Unallocated,ENITIAL,20/07/2022,7365.64,WASTE MANAGEMENT,WASTE MANAGEMENT,http://opendatacommunities.org/id/county-council/staffordshire  
Staffordshire County Council,Client Landfill Unallocated,ENITIAL,20/07/2022,7365.64,WASTE MANAGEMENT,WASTE MANAGEMENT,http://opendatacommunities.org/id/county-council/staffordshire  
Staffordshire County Council,Client Landfill Unallocated,ENITIAL,20/07/2022,7365.64,WASTE MANAGEMENT,WASTE MANAGEMENT,http://opendatacommunities.org/id/county-council/staffordshire  
Staffordshire County Council,Cent Cty Psychol Service HQ,Enjoy and Achieve,28/07/2022,900.00,PROFESSIONAL FEES,PROFESSIONAL FEES,http://opendatacommunities.org/id/county-council/staffordshire  
Staffordshire County Council,School Improvement Grant,Entrust Support Services Ltd,18/07/2022,6458.18,Contingency,Contingency,http://opendatacommunities.org/id/county-council/staffordshire  
Staffordshire County Council,School Improvement Grant,Entrust Support Services Ltd,18/07/2022,7540.92,Contingency,Contingency,http://opendatacommunities.org/id/county-council/staffordshire  
Staffordshire County Council,JVCo - Commissioning General,Entrust Support Services Ltd,04/07/2022,6482.96,Partnership - Unallocated,Partnership - Unallocated,http://opendatacommunities.org/id/county-council/staffordshire  
Staffordshire County Council,PAYG Pass Through to Schools,Entrust Support Services Ltd,18/07/2022,3522.00,Partnership - Unallocated,Partnership - Unallocated,http://opendatacommunities.org/id/county-council/staffordshire  
Staffordshire County Council,Training,Entrust Support Services Ltd,25/07/2022,750.96,ACCOMMODATION,ACCOMMODATION,http://opendatacommunities.org/id/county-council/staffordshire  
Staffordshire County Council,Training,Entrust Support Services Ltd,28/07/2022,555.84,ACCOMMODATION,ACCOMMODATION,http://opendatacommunities.org/id/county-council/staffordshire  
Staffordshire County Council,HWRC Mobilisation,ENVA England Specialist Waste Ltd,20/07/2022,3547.20,WASTE MANAGEMENT,WASTE MANAGEMENT,http://opendatacommunities.org/id/county-council/staffordshire  
Staffordshire County Council,HWRC Mobilisation,ENVA England Specialist Waste Ltd,28/07/2022,4134.00,WASTE MANAGEMENT,WASTE MANAGEMENT,http://opendatacommunities.org/id/county-council/staffordshire  
Staffordshire County Council,HWRC Mobilisation,ENVA England Specialist Waste Ltd,28/07/2022,3942.00,WASTE MANAGEMENT,WASTE MANAGEMENT,http://opendatacommunities.org/id/county-council/staffordshire  
Staffordshire County Council,Growth Hub ERDF 2019-2022,Envisage Associates Ltd,27/07/2022,3000.00,Grants Other,Grants Other,http://opendatacommunities.org/id/county-council/staffordshire  
Staffordshire County Council,County,Epyx Ltd,29/07/2022,504.00,CFC Purchase of Stock,CFC Purchase of Stock,http://opendatacommunities.org/id/county-council/staffordshire  
Staffordshire County Council,Waterside Court Enterprise Cen,ESP Security Solutions Limited,20/07/2022,17520.05,Premises Services,Premises Services,http://opendatacommunities.org/id/county-council/staffordshire  
Staffordshire County Council,Chasewater Visitor Centre,ESP Security Solutions Limited,20/07/2022,7665.00,Premises Services,Premises Services,http://opendatacommunities.org/id/county-council/staffordshire  
Staffordshire County Council,Cannock Enterprise Centre,ESP Security Solutions Limited,20/07/2022,39420.11,Premises Services,Premises Services,http://opendatacommunities.org/id/county-council/staffordshire  
Staffordshire County Council,5438 Staffs Place 1&2Tipping S,ESP Security Solutions Limited,08/07/2022,6643.02,Premises Services,Premises Services,http://opendatacommunities.org/id/county-council/staffordshire  
Staffordshire County Council,Beaconside Innovation Centre,ESP Security Solutions Limited,20/07/2022,26280.07,Premises Services,Premises Services,http://opendatacommunities.org/id/county-council/staffordshire  
Staffordshire County Council,Chasewater Innovation Centre,ESPO,15/07/2022,772.80,General Equipment Purchase,General Equipment Purchase,http://opendatacommunities.org/id/county-council/staffordshire  
Staffordshire County Council,Think 2 Project,Etching Hill CE Primary Academy,11/07/2022,791.78,Awards Funded Childcare Places,Awards Funded Childcare Places,http://opendatacommunities.org/id/county-council/staffordshire  
Staffordshire County Council,Nursery Education Grant,Etching Hill CE Primary Academy,11/07/2022,21495.40,Grants Nursery Education Pymnt,Grants Nursery Education Pymnt,http://opendatacommunities.org/id/county-council/staffordshire  
Staffordshire County Council,"0816 County building,Martin St",EVAC CHAIR INT LTD,28/07/2022,3124.80,General Equipment Purchase,General Equipment Purchase,http://opendatacommunities.org/id/county-council/staffordshire  
Staffordshire County Council,HAF Summer 2022,Everyone Active,04/07/2022,5119.00,OTHER HIRED SERVICES,OTHER HIRED SERVICES,http://opendatacommunities.org/id/county-council/staffordshire  
Staffordshire County Council,Pre-Sale And Planning Costs,Evolution Ecology Ltd,05/07/2022,2340.00,Int Fees Construction,Int Fees Construction,http://opendatacommunities.org/id/county-council/staffordshire  
Staffordshire County Council,Pre-Sale And Planning Costs,Evolution Ecology Ltd,06/07/2022,1796.40,Int Fees Construction,Int Fees Construction,http://opendatacommunities.org/id/county-council/staffordshire  
Staffordshire County Council,Stat-OOC transport,Excel Taxis Stoke,28/07/2022,2189.63,Home School Contract Vehicles,Home School Contract Vehicles,http://opendatacommunities.org/id/county-council/staffordshire  
Staffordshire County Council,Procurement Administration,Experian Ltd,28/07/2022,990.00,Subscriptions General,Subscriptions General,http://opendatacommunities.org/id/county-council/staffordshire  
Staffordshire County Council,CRF Staffs Apprenticeship 500,Expert Trade Services Limited,07/07/2022,5000.00,Grants to third parties,Grants to third parties,http://opendatacommunities.org/id/county-council/staffordshire  
Staffordshire County Council,Fountains High School,Express Cars,28/07/2022,5589.48,Home School Contract Vehicles,Home School Contract Vehicles,http://opendatacommunities.org/id/county-council/staffordshire  
Staffordshire County Council,Stat-OOC transport,,01/07/2022,659.13,Personal Travel Budgets,Personal Travel Budgets,http://opendatacommunities.org/id/county-council/staffordshire  
Staffordshire County Council,Early Help - Central,Family Action,29/07/2022,151876.80,Grants Other,Grants Other,http://opendatacommunities.org/id/county-council/staffordshire  
Staffordshire County Council,Early Help - North,Family Action,29/07/2022,93330.64,Grants Other,Grants Other,http://opendatacommunities.org/id/county-council/staffordshire  
Staffordshire County Council,Nursery Education Grant,Farlea Childcare Ltd,11/07/2022,1167.08,Grants Nursery Education Pymnt,Grants Nursery Education Pymnt,http://opendatacommunities.org/id/county-council/staffordshire  
Staffordshire County Council,Nursery Education Grant,Farlea Childcare Ltd,11/07/2022,4924.97,Grants Nursery Education Pymnt,Grants Nursery Education Pymnt,http://opendatacommunities.org/id/county-council/staffordshire  
Staffordshire County Council,Nursery Education Grant,Farlea Childcare Ltd,11/07/2022,1172.96,Grants Nursery Education Pymnt,Grants Nursery Education Pymnt,http://opendatacommunities.org/id/county-council/staffordshire  
Staffordshire County Council,Think 2 Project,Farlea Childcare Ltd,11/07/2022,1282.03,Awards Funded Childcare Places,Awards Funded Childcare Places,http://opendatacommunities.org/id/county-council/staffordshire  
Staffordshire County Council,Nursery Education Grant,Farlea Childcare Ltd,11/07/2022,4124.25,Grants Nursery Education Pymnt,Grants Nursery Education Pymnt,http://opendatacommunities.org/id/county-council/staffordshire  
Staffordshire County Council,Home to school transport-main,Fastrack Travel SOT Ltd,06/07/2022,16697.44,Home School Contract Vehicles,Home School Contract Vehicles,http://opendatacommunities.org/id/county-council/staffordshire  
Staffordshire County Council,Home to school transport-main,Fastrack Travel SOT Ltd,19/07/2022,1024.70,Home School Contract Vehicles,Home School Contract Vehicles,http://opendatacommunities.org/id/county-council/staffordshire  
Staffordshire County Council,Nursery Education Grant,FAZELEY PRE-SCHOOL,11/07/2022,8746.05,Grants Nursery Education Pymnt,Grants Nursery Education Pymnt,http://opendatacommunities.org/id/county-council/staffordshire  
Staffordshire County Council,Cannock Chase AONB Core,FDA Design Ltd,28/07/2022,588.00,Printing General,Printing General,http://opendatacommunities.org/id/county-council/staffordshire  
Staffordshire County Council,Cannock Chase AONB Core,FDA Design Ltd,28/07/2022,1770.00,Project Activities,Project Activities,http://opendatacommunities.org/id/county-council/staffordshire  
Staffordshire County Council,Analyst Work,FINDLAY IRVINE LTD,21/07/2022,2496.00,General Equipment Repair/Maint,General Equipment Repair/Maint,http://opendatacommunities.org/id/county-council/staffordshire  
Staffordshire County Council,Concessionary Fare Schemes,FIRST POTTERIES LTD,14/07/2022,90004.00,Payments to Bus Operators,Payments to Bus Operators,http://opendatacommunities.org/id/county-council/staffordshire  
Staffordshire County Council,Nursery Education Grant,FIRST STEPS PRE SCHOOL,11/07/2022,8959.10,Grants Nursery Education Pymnt,Grants Nursery Education Pymnt,http://opendatacommunities.org/id/county-council/staffordshire  
Staffordshire County Council,Greenfields House,Firstplus Care Ltd,11/07/2022,821.68,Agency Staff,Agency Staff,http://opendatacommunities.org/id/county-council/staffordshire  
Staffordshire County Council,Greenfields House,Firstplus Care Ltd,15/07/2022,819.33,Agency Staff,Agency Staff,http://opendatacommunities.org/id/county-council/staffordshire  
Staffordshire County Council,HWS Unallocated,Fissara Limited,05/07/2022,1464.00,SOFTWARE LICENCES,SOFTWARE LICENCES,http://opendatacommunities.org/id/county-council/staffordshire  
Staffordshire County Council,HWS Unallocated,Fissara Limited,05/07/2022,1464.00,SOFTWARE LICENCES,SOFTWARE LICENCES,http://opendatacommunities.org/id/county-council/staffordshire  
Staffordshire County Council,HWS Unallocated,Fissara Limited,28/07/2022,1464.00,SOFTWARE LICENCES,SOFTWARE LICENCES,http://opendatacommunities.org/id/county-council/staffordshire  
Staffordshire County Council,Nursery Education Grant,FIVE SPIRES ACADEMY NURSERY,11/07/2022,8109.74,Grants Nursery Education Pymnt,Grants Nursery Education Pymnt,http://opendatacommunities.org/id/county-council/staffordshire  
Staffordshire County Council,Workshop Overheads,Fleet Factors Ltd,08/07/2022,3310.14,CFC Purchase of Stock,CFC Purchase of Stock,http://opendatacommunities.org/id/county-council/staffordshire  
Staffordshire County Council,Workshop Overheads,Fleet Factors Ltd,15/07/2022,2707.98,CFC Purchase of Stock,CFC Purchase of Stock,http://opendatacommunities.org/id/county-council/staffordshire  
Staffordshire County Council,Workshop Overheads,Fleet Factors Ltd,22/07/2022,5151.89,CFC Purchase of Stock,CFC Purchase of Stock,http://opendatacommunities.org/id/county-council/staffordshire  
Staffordshire County Council,Workshop Overheads,Fleet Factors Ltd,29/07/2022,5586.12,CFC Purchase of Stock,CFC Purchase of Stock,http://opendatacommunities.org/id/county-council/staffordshire  
Staffordshire County Council,Project A - A50 Growth Corrido,FLOGAS UK LTD,15/07/2022,923.81,Construction Works,Construction Works,http://opendatacommunities.org/id/county-council/staffordshire  
Staffordshire County Council,Think 2 Project,Flying High Outdoor Nursery,11/07/2022,1392.12,Awards Funded Childcare Places,Awards Funded Childcare Places,http://opendatacommunities.org/id/county-council/staffordshire  
Staffordshire County Council,Nursery Education Grant,Flying High Outdoor Nursery,11/07/2022,2363.46,Grants Nursery Education Pymnt,Grants Nursery Education Pymnt,http://opendatacommunities.org/id/county-council/staffordshire  
Staffordshire County Council,Business Supp Childrens Centre,FMS Interior Services Ltd,07/07/2022,6742.40,General Equipment Purchase,General Equipment Purchase,http://opendatacommunities.org/id/county-council/staffordshire  
Staffordshire County Council,Business Supp Childrens Centre,FMS Interior Services Ltd,07/07/2022,7035.55,General Equipment Purchase,General Equipment Purchase,http://opendatacommunities.org/id/county-council/staffordshire  
Staffordshire County Council,Business Supp Childrens Centre,FMS Interior Services Ltd,07/07/2022,9177.18,General Equipment Purchase,General Equipment Purchase,http://opendatacommunities.org/id/county-council/staffordshire  
Staffordshire County Council,Think 2 Project,Footsteps Day Nurseries Ltd-Cannock,11/07/2022,851.26,Awards Funded Childcare Places,Awards Funded Childcare Places,http://opendatacommunities.org/id/county-council/staffordshire  
Staffordshire County Council,Nursery Education Grant,Footsteps Day Nurseries Ltd-Cannock,11/07/2022,9528.10,Grants Nursery Education Pymnt,Grants Nursery Education Pymnt,http://opendatacommunities.org/id/county-council/staffordshire  
Staffordshire County Council,Nursery Education Grant,Footsteps Day Nurseries Ltd-Fazeley,11/07/2022,5921.17,Grants Nursery Education Pymnt,Grants Nursery Education Pymnt,http://opendatacommunities.org/id/county-council/staffordshire  
Staffordshire County Council,Nursery Education Grant,FOOTSTEPS DAY NURSERY,11/07/2022,5299.85,Grants Nursery Education Pymnt,Grants Nursery Education Pymnt,http://opendatacommunities.org/id/county-council/staffordshire  
Staffordshire County Council,Nursery Education Grant,FOOTSTEPS DAY NURSERY,11/07/2022,9699.20,Grants Nursery Education Pymnt,Grants Nursery Education Pymnt,http://opendatacommunities.org/id/county-council/staffordshire  
Staffordshire County Council,Nursery Education Grant,FOOTSTEPS DAY NURSERY,11/07/2022,6371.21,Grants Nursery Education Pymnt,Grants Nursery Education Pymnt,http://opendatacommunities.org/id/county-council/staffordshire  
Staffordshire County Council,Nursery Education Grant,Footsteps Nursery ,11/07/2022,10445.81,Grants Nursery Education Pymnt,Grants Nursery Education Pymnt,http://opendatacommunities.org/id/county-council/staffordshire  
Staffordshire County Council,Nursery Education Grant,FOOTSTEPS NURSERY & PRE-SCHOOL,11/07/2022,8828.59,Grants Nursery Education Pymnt,Grants Nursery Education Pymnt,http://opendatacommunities.org/id/county-council/staffordshire  
Staffordshire County Council,STAF Assess & Staying Together,FOOTSTEPS NURSERY & PRE-SCHOOL,18/07/2022,702.91,S17-NURSERY,S17-NURSERY,http://opendatacommunities.org/id/county-council/staffordshire  
Staffordshire County Council,Think 2 Project,FOOTSTEPS NURSERY AND PRE SCHOOL,11/07/2022,666.66,Awards Funded Childcare Places,Awards Funded Childcare Places,http://opendatacommunities.org/id/county-council/staffordshire  
Staffordshire County Council,Nursery Education Grant,FOOTSTEPS NURSERY AND PRE SCHOOL,11/07/2022,9223.97,Grants Nursery Education Pymnt,Grants Nursery Education Pymnt,http://opendatacommunities.org/id/county-council/staffordshire  
Staffordshire County Council,7269 Apedale Energy Visitor Ce,FORCE ONE SECURITY UK LTD,04/07/2022,5400.00,Premises Services,Premises Services,http://opendatacommunities.org/id/county-council/staffordshire  
Staffordshire County Council,Lymedale West Business Centre,FORCE ONE SECURITY UK LTD,29/07/2022,1598.11,Premises Services,Premises Services,http://opendatacommunities.org/id/county-council/staffordshire  
Staffordshire County Council,Lymedale Enterprise Centre,FORCE ONE SECURITY UK LTD,29/07/2022,1598.11,Premises Services,Premises Services,http://opendatacommunities.org/id/county-council/staffordshire  
Staffordshire County Council,Knutton Enterprise Centre,FORCE ONE SECURITY UK LTD,29/07/2022,1598.11,Premises Services,Premises Services,http://opendatacommunities.org/id/county-council/staffordshire  
Staffordshire County Council,Silverdale Enterprise Centre,FORCE ONE SECURITY UK LTD,29/07/2022,1598.11,Premises Services,Premises Services,http://opendatacommunities.org/id/county-council/staffordshire  
Staffordshire County Council,0919 Clayton Library Dartmouth,FORD MAINWARING LTD,28/07/2022,593.76,Day to Day Mechanical Services,Day to Day Mechanical Services,http://opendatacommunities.org/id/county-council/staffordshire  
Staffordshire County Council,54 Yarlet - Sewage Plant,FORDS OF BLYTHE BRIDGE LTD,22/07/2022,13608.00,Construction Works,Construction Works,http://opendatacommunities.org/id/county-council/staffordshire  
Staffordshire County Council,"0820 56 Eastgate St, ST16 2LY",FORDS OF BLYTHE BRIDGE LTD,07/07/2022,564.17,Day to Day Int Wall Door etc,Day to Day Int Wall Door etc,http://opendatacommunities.org/id/county-council/staffordshire  
Staffordshire County Council,"0820 56 Eastgate St, ST16 2LY",FORDS OF BLYTHE BRIDGE LTD,07/07/2022,878.40,Day to Day Int Wall Door etc,Day to Day Int Wall Door etc,http://opendatacommunities.org/id/county-council/staffordshire  
Staffordshire County Council,Stone Depot,FORDS OF BLYTHE BRIDGE LTD,11/07/2022,4164.00,General Equipment Repair/Maint,General Equipment Repair/Maint,http://opendatacommunities.org/id/county-council/staffordshire  
Staffordshire County Council,1641 Stone Hway Depot,FORDS OF BLYTHE BRIDGE LTD,11/07/2022,738.00,General Equipment Repair/Maint,General Equipment Repair/Maint,http://opendatacommunities.org/id/county-council/staffordshire  
Staffordshire County Council,Stafford HWRC,FORDS OF BLYTHE BRIDGE LTD,11/07/2022,1143.60,Day to Day External Areas,Day to Day External Areas,http://opendatacommunities.org/id/county-council/staffordshire  
Staffordshire County Council,Princefield First Expansion,FORDS OF BLYTHE BRIDGE LTD,11/07/2022,283899.60,Construction Works,Construction Works,http://opendatacommunities.org/id/county-council/staffordshire  
Staffordshire County Council,Specialist Assessment,FORESIGHT CLINICAL SERVICES LTD,07/07/2022,893.52,Prev Supp Legal Costs,Prev Supp Legal Costs,http://opendatacommunities.org/id/county-council/staffordshire  
Staffordshire County Council,Specialist Assessment,FORESIGHT CLINICAL SERVICES LTD,21/07/2022,648.00,Prev Supp Legal Costs,Prev Supp Legal Costs,http://opendatacommunities.org/id/county-council/staffordshire  
Staffordshire County Council,Think 2 Project,Forest Hills Primary,11/07/2022,2699.22,Awards Funded Childcare Places,Awards Funded Childcare Places,http://opendatacommunities.org/id/county-council/staffordshire  
Staffordshire County Council,Nursery Education Grant,Forest Hills Primary,11/07/2022,2620.80,Grants Nursery Education Pymnt,Grants Nursery Education Pymnt,http://opendatacommunities.org/id/county-council/staffordshire  
Staffordshire County Council,DIPS EOTAS,Forest Lodge t/a New Leaf AP,15/07/2022,2400.00, Alternative Education Schemes, Alternative Education Schemes,http://opendatacommunities.org/id/county-council/staffordshire  
Staffordshire County Council,DIPS EOTAS,Forest Lodge t/a New Leaf AP,15/07/2022,2400.00, Alternative Education Schemes, Alternative Education Schemes,http://opendatacommunities.org/id/county-council/staffordshire  
Staffordshire County Council,DIPS EOTAS,Forest Lodge t/a New Leaf AP,15/07/2022,600.00, Alternative Education Schemes, Alternative Education Schemes,http://opendatacommunities.org/id/county-council/staffordshire  
Staffordshire County Council,DIPS EOTAS,Forest Lodge t/a New Leaf AP,22/07/2022,1200.00, Alternative Education Schemes, Alternative Education Schemes,http://opendatacommunities.org/id/county-council/staffordshire  
Staffordshire County Council,DIPS EOTAS,Forest Lodge t/a New Leaf AP,22/07/2022,1200.00, Alternative Education Schemes, Alternative Education Schemes,http://opendatacommunities.org/id/county-council/staffordshire  
Staffordshire County Council,DIPS EOTAS,Forest Lodge t/a New Leaf AP,22/07/2022,640.00, Alternative Education Schemes, Alternative Education Schemes,http://opendatacommunities.org/id/county-council/staffordshire  
Staffordshire County Council,DIPS EOTAS,Forest Lodge t/a New Leaf AP,22/07/2022,1200.00, Alternative Education Schemes, Alternative Education Schemes,http://opendatacommunities.org/id/county-council/staffordshire  
Staffordshire County Council,DIPS EOTAS,Forest Lodge t/a New Leaf AP,22/07/2022,1200.00, Alternative Education Schemes, Alternative Education Schemes,http://opendatacommunities.org/id/county-council/staffordshire  
Staffordshire County Council,DIPS EOTAS,Forest Lodge t/a New Leaf AP,28/07/2022,960.00, Alternative Education Schemes, Alternative Education Schemes,http://opendatacommunities.org/id/county-council/staffordshire  
Staffordshire County Council,DIPS EOTAS,Forest Lodge t/a New Leaf AP,28/07/2022,960.00, Alternative Education Schemes, Alternative Education Schemes,http://opendatacommunities.org/id/county-council/staffordshire  
Staffordshire County Council,Nursery Education Grant,Forton Day Nursery,11/07/2022,1296.82,Grants Nursery Education Pymnt,Grants Nursery Education Pymnt,http://opendatacommunities.org/id/county-council/staffordshire  
Staffordshire County Council,Marketing & Comms,Framework Design,15/07/2022,1920.00,COMPUTING OTHER,COMPUTING OTHER,http://opendatacommunities.org/id/county-council/staffordshire  
Staffordshire County Council,HAF Summer 2022,Freedom Leisure,04/07/2022,4800.00,OTHER HIRED SERVICES,OTHER HIRED SERVICES,http://opendatacommunities.org/id/county-council/staffordshire  
Staffordshire County Council,HAF Summer 2022,Freedom Leisure,04/07/2022,3280.00,OTHER HIRED SERVICES,OTHER HIRED SERVICES,http://opendatacommunities.org/id/county-council/staffordshire  
Staffordshire County Council,Moorlands LD Team,Freespirits Day Care Ltd,05/07/2022,3275.80,Day Care,Day Care,http://opendatacommunities.org/id/county-council/staffordshire  
Staffordshire County Council,Newcastle LD Team,Freespirits Day Care Ltd,28/07/2022,1417.50,Day Care,Day Care,http://opendatacommunities.org/id/county-council/staffordshire  
Staffordshire County Council,Moorlands LD Team,Freespirits Day Care Ltd,29/07/2022,3126.90,Day Care,Day Care,http://opendatacommunities.org/id/county-council/staffordshire  
Staffordshire County Council,Moorlands LD Team,Freespirits Day Care Ltd,28/07/2022,1284.00,Day Care,Day Care,http://opendatacommunities.org/id/county-council/staffordshire  
Staffordshire County Council,HAF Summer 2022,Friends of Lichfield Cathedral,04/07/2022,1180.00,OTHER HIRED SERVICES,OTHER HIRED SERVICES,http://opendatacommunities.org/id/county-council/staffordshire  
Staffordshire County Council,HAF Summer 2022,Friends of Lichfield Cathedral,04/07/2022,750.00,OTHER HIRED SERVICES,OTHER HIRED SERVICES,http://opendatacommunities.org/id/county-council/staffordshire  
Staffordshire County Council,Think 2 Project,FUNSTART CHILDCARE,11/07/2022,3651.21,Awards Funded Childcare Places,Awards Funded Childcare Places,http://opendatacommunities.org/id/county-council/staffordshire  
Staffordshire County Council,Nursery Education Grant,FUNSTART CHILDCARE,11/07/2022,3851.25,Grants Nursery Education Pymnt,Grants Nursery Education Pymnt,http://opendatacommunities.org/id/county-council/staffordshire  
Staffordshire County Council,Home to school transport-main,FUTURE TRAVEL,28/07/2022,3502.97,Home School Contract Vehicles,Home School Contract Vehicles,http://opendatacommunities.org/id/county-council/staffordshire  
Staffordshire County Council,SEN Direct Payments,,08/07/2022,4449.73,Direct Payments Other,Direct Payments Other,http://opendatacommunities.org/id/county-council/staffordshire  
Staffordshire County Council,SEN Direct Payments,,08/07/2022,4093.23,Direct Payments Other,Direct Payments Other,http://opendatacommunities.org/id/county-council/staffordshire  
Staffordshire County Council,SEN Direct Payments,,08/07/2022,2876.26,Direct Payments Other,Direct Payments Other,http://opendatacommunities.org/id/county-council/staffordshire  
Staffordshire County Council,7115 Unit Qa Beacon Business P,G BRASSINGTON ELECTRICS,05/07/2022,590.00,Repair and Maintenance,Repair and Maintenance,http://opendatacommunities.org/id/county-council/staffordshire  
Staffordshire County Council,Cannock Enterprise Centre,G EVANS (SERVICES) LTD,07/07/2022,526.50,Minor Improvements Budget Only,Minor Improvements Budget Only,http://opendatacommunities.org/id/county-council/staffordshire  
Staffordshire County Council,Cannock Enterprise Centre,G EVANS (SERVICES) LTD,07/07/2022,1505.24,Repair and Maint Buildings NPS,Repair and Maint Buildings NPS,http://opendatacommunities.org/id/county-council/staffordshire  
Staffordshire County Council,West Hill Roof Investigation,G EVANS (SERVICES) LTD,18/07/2022,4692.30,Construction Works,Construction Works,http://opendatacommunities.org/id/county-council/staffordshire  
Staffordshire County Council,Kettlebrook Boilers,G EVANS (SERVICES) LTD,06/07/2022,9189.60,Construction Works,Construction Works,http://opendatacommunities.org/id/county-council/staffordshire  
Staffordshire County Council,Cannock Enterprise Centre,G EVANS (SERVICES) LTD,28/07/2022,2432.40,Contract Grounds Maintenance,Contract Grounds Maintenance,http://opendatacommunities.org/id/county-council/staffordshire  
Staffordshire County Council,Wood Lane Extension to form LG,G EVANS (SERVICES) LTD,11/07/2022,54000.00,Construction Works,Construction Works,http://opendatacommunities.org/id/county-council/staffordshire  
Staffordshire County Council,Wood Lane Extension to form LG,G EVANS (SERVICES) LTD,11/07/2022,36000.00,Construction Works,Construction Works,http://opendatacommunities.org/id/county-council/staffordshire  
Staffordshire County Council,St Anne's Heating System,G EVANS (SERVICES) LTD,28/07/2022,54000.00,Construction Works,Construction Works,http://opendatacommunities.org/id/county-council/staffordshire  
Staffordshire County Council,St Chad's Pipework,G EVANS (SERVICES) LTD,28/07/2022,87952.80,Construction Works,Construction Works,http://opendatacommunities.org/id/county-council/staffordshire  
Staffordshire County Council,St. Michael's First boilers,G EVANS (SERVICES) LTD,28/07/2022,53788.80,Construction Works,Construction Works,http://opendatacommunities.org/id/county-council/staffordshire  
Staffordshire County Council,In-House Residential Pilot,G EVANS (SERVICES) LTD,11/07/2022,6609.58,Construction Works,Construction Works,http://opendatacommunities.org/id/county-council/staffordshire  
Staffordshire County Council,Landywood Primary boilers,G EVANS (SERVICES) LTD,28/07/2022,42000.00,Construction Works,Construction Works,http://opendatacommunities.org/id/county-council/staffordshire  
Staffordshire County Council,0927 Burton Library Riverside ,G EVANS (SERVICES) LTD,28/07/2022,613.80,Day to Day Ext Wall window etc,Day to Day Ext Wall window etc,http://opendatacommunities.org/id/county-council/staffordshire  
Staffordshire County Council,0008 Stafford Ccent Faraday Ro,G EVANS (SERVICES) LTD,22/07/2022,1042.50,Day to Day Mechanical Services,Day to Day Mechanical Services,http://opendatacommunities.org/id/county-council/staffordshire  
Staffordshire County Council,Tillington Manor Energy effici,G EVANS (SERVICES) LTD,22/07/2022,22382.40,Construction Works,Construction Works,http://opendatacommunities.org/id/county-council/staffordshire  
Staffordshire County Council,Tillington manor/Marshlands,G EVANS (SERVICES) LTD,28/07/2022,120000.00,Construction Works,Construction Works,http://opendatacommunities.org/id/county-council/staffordshire  
Staffordshire County Council,1456 59 High St Uttoxeter ST14,G EVANS (SERVICES) LTD,26/07/2022,1155.00,Day to Day Electrical Services,Day to Day Electrical Services,http://opendatacommunities.org/id/county-council/staffordshire  
Staffordshire County Council,Bilbrook toilets,G EVANS (SERVICES) LTD,28/07/2022,60000.00,Construction Works,Construction Works,http://opendatacommunities.org/id/county-council/staffordshire  
Staffordshire County Council,Blakeley Heath Primary toilets,G EVANS (SERVICES) LTD,28/07/2022,21600.00,Construction Works,Construction Works,http://opendatacommunities.org/id/county-council/staffordshire  
Staffordshire County Council,Berkswich Prim toilet refurb,G EVANS (SERVICES) LTD,28/07/2022,24179.67,Construction Works,Construction Works,http://opendatacommunities.org/id/county-council/staffordshire  
Staffordshire County Council,0817 Eastgate House 79/79a ST1,G EVANS (SERVICES) LTD,28/07/2022,14253.36,Planned Ext Wall Window Door,Planned Ext Wall Window Door,http://opendatacommunities.org/id/county-council/staffordshire  
Staffordshire County Council,2906 Mister Hall SYPS Dam St W,G EVANS (SERVICES) LTD,28/07/2022,9000.00,Planned Ext Wall Window Door,Planned Ext Wall Window Door,http://opendatacommunities.org/id/county-council/staffordshire  
Staffordshire County Council,Lichfield Day Centre,G EVANS (SERVICES) LTD,28/07/2022,11459.16,Planned Int Wall Door Fixtures,Planned Int Wall Door Fixtures,http://opendatacommunities.org/id/county-council/staffordshire  
Staffordshire County Council,New School - Land at Parks Far,G F Tomlinson Building Ltd,11/07/2022,289445.82,Construction Works,Construction Works,http://opendatacommunities.org/id/county-council/staffordshire  
Staffordshire County Council,Fradley Park Primary,G F Tomlinson Building Ltd,11/07/2022,268219.80,Construction Works,Construction Works,http://opendatacommunities.org/id/county-council/staffordshire  
Staffordshire County Council,MCA / DoLs / AMHP,G Moffat Ltd,25/07/2022,920.00,Independent Investigations,Independent Investigations,http://opendatacommunities.org/id/county-council/staffordshire  
Staffordshire County Council,Rowley Farm Hamstall Ridware,,20/07/2022,6811.24,Tenant Right Valuations,Tenant Right Valuations,http://opendatacommunities.org/id/county-council/staffordshire  
Staffordshire County Council,DIPS EOTAS,G T COLLETT PROPERTIES,29/07/2022,2160.00,Rent / Lease Of Premises,Rent / Lease Of Premises,http://opendatacommunities.org/id/county-council/staffordshire  
Staffordshire County Council,Country Parks Team,G W Skip Hire Ltd,28/07/2022,3000.00,WASTE COLLECTION,WASTE COLLECTION,http://opendatacommunities.org/id/county-council/staffordshire  
Staffordshire County Council,Amey Routine Highway Maint,Gaist Solutions Limited,01/07/2022,104445.60,other services external,other services external,http://opendatacommunities.org/id/county-council/staffordshire  
Staffordshire County Council,HAF Summer 2022,GARTMORE RIDING SCHOOL,04/07/2022,3150.00,OTHER HIRED SERVICES,OTHER HIRED SERVICES,http://opendatacommunities.org/id/county-council/staffordshire  
Staffordshire County Council,Corporate Services,GatenbySanderson,06/07/2022,8220.00,legal services,legal services,http://opendatacommunities.org/id/county-council/staffordshire  
Staffordshire County Council,Corporate Services,GatenbySanderson,08/07/2022,3480.00,legal services,legal services,http://opendatacommunities.org/id/county-council/staffordshire  
Staffordshire County Council,Adoption Support Fund,GATEWAY PSYCHOLOGY LTD,22/07/2022,776.25,PROFESSIONAL FEES,PROFESSIONAL FEES,http://opendatacommunities.org/id/county-council/staffordshire  
Staffordshire County Council,Adoption Support Fund,GATEWAY PSYCHOLOGY LTD,22/07/2022,525.00,PROFESSIONAL FEES,PROFESSIONAL FEES,http://opendatacommunities.org/id/county-council/staffordshire  
Staffordshire County Council,Adoption Support Fund,GATEWAY PSYCHOLOGY LTD,22/07/2022,540.00,PROFESSIONAL FEES,PROFESSIONAL FEES,http://opendatacommunities.org/id/county-council/staffordshire  
Staffordshire County Council,Adoption Support Fund,GATEWAY PSYCHOLOGY LTD,22/07/2022,506.25,PROFESSIONAL FEES,PROFESSIONAL FEES,http://opendatacommunities.org/id/county-council/staffordshire  
Staffordshire County Council,Adoption Support Fund,GATEWAY PSYCHOLOGY LTD,22/07/2022,506.25,PROFESSIONAL FEES,PROFESSIONAL FEES,http://opendatacommunities.org/id/county-council/staffordshire  
Staffordshire County Council,Adoption Support Fund,GATEWAY PSYCHOLOGY LTD,22/07/2022,945.00,PROFESSIONAL FEES,PROFESSIONAL FEES,http://opendatacommunities.org/id/county-council/staffordshire  
Staffordshire County Council,Adoption Support Fund,GATEWAY PSYCHOLOGY LTD,22/07/2022,742.50,PROFESSIONAL FEES,PROFESSIONAL FEES,http://opendatacommunities.org/id/county-council/staffordshire  
Staffordshire County Council,Adoption Support Fund,GATEWAY PSYCHOLOGY LTD,22/07/2022,742.50,PROFESSIONAL FEES,PROFESSIONAL FEES,http://opendatacommunities.org/id/county-council/staffordshire  
Staffordshire County Council,Staffs Apprenticeship 500,GB Inspection Systems Limited,28/07/2022,5000.00,Grants to third parties,Grants to third parties,http://opendatacommunities.org/id/county-council/staffordshire  
Staffordshire County Council,Workforce Wellbeing Strategy,GB Prohealth Ltd,14/07/2022,2998.80,CONSULTANT FEES,CONSULTANT FEES,http://opendatacommunities.org/id/county-council/staffordshire  
Staffordshire County Council,Staffordshire Wood Fuel,GELLATLY STAFFORD LTD,01/07/2022,6236.10,Wood Chip,Wood Chip,http://opendatacommunities.org/id/county-council/staffordshire  
Staffordshire County Council,Staffordshire Wood Fuel,GELLATLY STAFFORD LTD,15/07/2022,6060.60,Wood Chip,Wood Chip,http://opendatacommunities.org/id/county-council/staffordshire  
Staffordshire County Council,Staffordshire Wood Fuel,GELLATLY STAFFORD LTD,19/07/2022,2090.40,Wood Chip,Wood Chip,http://opendatacommunities.org/id/county-council/staffordshire  
Staffordshire County Council,Wightwick Hall School,,01/07/2022,609.38,Personal Travel Budgets,Personal Travel Budgets,http://opendatacommunities.org/id/county-council/staffordshire  
Staffordshire County Council,HAF Summer 2022,Genius Tuition,04/07/2022,19680.00,OTHER HIRED SERVICES,OTHER HIRED SERVICES,http://opendatacommunities.org/id/county-council/staffordshire  
Staffordshire County Council,Nursery Education Grant,Gentleshaw Primary Academy,11/07/2022,5044.15,Grants Nursery Education Pymnt,Grants Nursery Education Pymnt,http://opendatacommunities.org/id/county-council/staffordshire  
Staffordshire County Council,Highways Laboratory,GERRARD ELECTRICAL CONTRACTORS LTD,07/07/2022,549.40,General Equipment Repair/Maint,General Equipment Repair/Maint,http://opendatacommunities.org/id/county-council/staffordshire  
Staffordshire County Council,Staffordshire Wood Fuel,GF & VJ WHIRLEDGE,05/07/2022,2000.00,Rent / Lease Of Premises,Rent / Lease Of Premises,http://opendatacommunities.org/id/county-council/staffordshire  
Staffordshire County Council,Think 2 Project,Giggles & Wiggles,11/07/2022,799.98,Awards Funded Childcare Places,Awards Funded Childcare Places,http://opendatacommunities.org/id/county-council/staffordshire  
Staffordshire County Council,Nursery Education Grant,Giggles & Wiggles,11/07/2022,8452.83,Grants Nursery Education Pymnt,Grants Nursery Education Pymnt,http://opendatacommunities.org/id/county-council/staffordshire  
Staffordshire County Council,Think 2 Project,GIGGLES & WIGGLES LTD,11/07/2022,533.32,Awards Funded Childcare Places,Awards Funded Childcare Places,http://opendatacommunities.org/id/county-council/staffordshire  
Staffordshire County Council,Nursery Education Grant,GIGGLES & WIGGLES LTD,11/07/2022,10450.81,Grants Nursery Education Pymnt,Grants Nursery Education Pymnt,http://opendatacommunities.org/id/county-council/staffordshire  
Staffordshire County Council,Think 2 Project,Giggles and Wiggles Ltd,11/07/2022,2194.82,Awards Funded Childcare Places,Awards Funded Childcare Places,http://opendatacommunities.org/id/county-council/staffordshire  
Staffordshire County Council,Independent School Fee Special,Glebedale School,14/07/2022,804.08,Grants to third parties,Grants to third parties,http://opendatacommunities.org/id/county-council/staffordshire  
Staffordshire County Council,Independent School Fee Special,Glebedale School,14/07/2022,580.00,Grants to third parties,Grants to third parties,http://opendatacommunities.org/id/county-council/staffordshire  
Staffordshire County Council,SEND Assessment Planning Serv,Global Mediation Limited,12/07/2022,2496.00,other services external,other services external,http://opendatacommunities.org/id/county-council/staffordshire  
Staffordshire County Council,SEND Assessment Planning Serv,Global Mediation Limited,13/07/2022,15132.00,other services external,other services external,http://opendatacommunities.org/id/county-council/staffordshire  
Staffordshire County Council,SEND Assessment Planning Serv,Global Mediation Limited,28/07/2022,2688.00,other services external,other services external,http://opendatacommunities.org/id/county-council/staffordshire  
Staffordshire County Council,Hol Act & Food Prog 2021 (HAF),Global Outdoor Media Ltd,28/07/2022,3596.40,Books,Books,http://opendatacommunities.org/id/county-council/staffordshire  
Staffordshire County Council,Hol Act & Food Prog 2021 (HAF),Global Outdoor Media Ltd,28/07/2022,1101.60,Books,Books,http://opendatacommunities.org/id/county-council/staffordshire  
Staffordshire County Council,LMG Newcastle,GLOW,27/07/2022,15000.00, Alternative Education Schemes, Alternative Education Schemes,http://opendatacommunities.org/id/county-council/staffordshire  
Staffordshire County Council,Think 2 Project,GNOSALL PRE SCHOOL,11/07/2022,533.32,Awards Funded Childcare Places,Awards Funded Childcare Places,http://opendatacommunities.org/id/county-council/staffordshire  
Staffordshire County Council,Nursery Education Grant,GNOSALL PRE SCHOOL,11/07/2022,11364.04,Grants Nursery Education Pymnt,Grants Nursery Education Pymnt,http://opendatacommunities.org/id/county-council/staffordshire  
Staffordshire County Council,Public Transp Support & Co-ord,Going My Way Ltd T/A Stantons of Stoke,07/07/2022,42763.84,Payments to Bus Operators,Payments to Bus Operators,http://opendatacommunities.org/id/county-council/staffordshire  
Staffordshire County Council,Public Transp Support & Co-ord,Going My Way Ltd T/A Stantons of Stoke,29/07/2022,37273.03,Payments to Bus Operators,Payments to Bus Operators,http://opendatacommunities.org/id/county-council/staffordshire  
Staffordshire County Council,Home to school transport-main,GOLDEN GREEN GARAGE,28/07/2022,25104.61,Home School Contract Vehicles,Home School Contract Vehicles,http://opendatacommunities.org/id/county-council/staffordshire  
Staffordshire County Council,Loxley Hall School,Goldstar Taxis,04/07/2022,6782.67,Home School Contract Vehicles,Home School Contract Vehicles,http://opendatacommunities.org/id/county-council/staffordshire  
Staffordshire County Council,Loxley Hall School,Goldstar Taxis,28/07/2022,6057.34,Home School Contract Vehicles,Home School Contract Vehicles,http://opendatacommunities.org/id/county-council/staffordshire  
Staffordshire County Council,Cheadle Prim Internal Door Rep,GOLIATH HOME WORLD LTD,28/07/2022,39874.80,Construction Works,Construction Works,http://opendatacommunities.org/id/county-council/staffordshire  
Staffordshire County Council,Croft Primary window mechanism,GOLIATH HOME WORLD LTD,28/07/2022,34591.20,Construction Works,Construction Works,http://opendatacommunities.org/id/county-council/staffordshire  
